Workbook

Sheet III Tool Overview
C2: Informing Investment to tackle health Inequalities in Scotland (III) - Counterweight
C3: What is the nature of the intervention? Diet and physical activity lifestyle changes underpinned by behavioural therapy, delivered by primary care and pharmacy support staff. The model assumes that the maximum number of obese adults who could be reached is 71% (all those with a BMI of 30+ who want to control their weight) (Source: Knowledge Attitudes and Motivations to health module of the Scottish Health Survey, 2008-2011).
G7: Geography | H7: Orkney Health Board
G8: Intervention | H8: Counterweight
G9: Number of people treated through Counterweight | H9: 1000 | I9: =IF(H9>D19,"Too high - please check & re-enter","") -> 
G10: Number treated at baseline | H10: 0
G11: Targeting strategy | H11: Proportionate to need | I11: =IF(H11="Even distribution","Interventions are divided evenly across all quintiles",IF(H11="Targeting to Q1","Interventions are targeted at Q1 only",IF(H11="Targeting to Q1 & Q2","Interventions are targeted to Q1 & Q2",IF(H11="Proportionate to need","Interventions target the pop. distribution of obesity")))) -> Interventions target the pop. distribution of obesity | X11: Geographies | AB11: Orkney Health Board
G12: Total direct cost of intervention (£m, 2012 prices) | H12: =(D32*H9)/1000000 -> 0.073 | X12: Scotland | AB12: Shetland Health Board
X13: Ayrshire & Arran Health Board | AB13: Orkney Islands Local Authority
X14: Borders Health Board | AB14: Shetland Islands Local Authority
X15: Dumfries & Galloway Health Board
C16: Baseline Information: Counterweight | G16: Model Outcomes (whole population) | H16: 2 years | I16: 10 years | J16: 20 years | X16: Fife Health Board
C17: Baseline year | D17: =Calculations!C1 -> 2012 | X17: Forth Valley Health Board
C18: Age group | D18: 16+ | G18: Years of life gained | H18: =Calculations!S86+Calculations!S107+Calculations!S129+Calculations!S150+Calculations!S172+Calculations!S193+Calculations!S215+Calculations!S236+Calculations!S258+Calculations!S279 -> 11.9387241 | I18: =Calculations!Y86+Calculations!Y107+Calculations!Y129+Calculations!Y150+Calculations!Y172+Calculations!Y193+Calculations!Y215+Calculations!Y236+Calculations!Y258+Calculations!Y279 -> 30.50485384 | J18: =Calculations!AB86+Calculations!AB107+Calculations!AB129+Calculations!AB150+Calculations!AB172+Calculations!AB193+Calculations!AB215+Calculations!AB236+Calculations!AB258+Calculations!AB279 -> 26.74888919 | X18: Grampian Health Board
C19: Number of adults with BMI of 30+ | D19: =HLOOKUP('III Tool Overview'!$H$7,Baseline_Data_2012!$B$2:$AW$285,Baseline_Data_2012!AW271,FALSE) -> 6065.468088 | G19: Continuous inpatient stays prevented | H19: =Calculations!AE86+Calculations!AE107+Calculations!AE129+Calculations!AE150+Calculations!AE172+Calculations!AE193+Calculations!AE215+Calculations!AE236+Calculations!AE258+Calculations!AE279 -> 9.08907185 | I19: =Calculations!AK86+Calculations!AK107+Calculations!AK129+Calculations!AK150+Calculations!AK172+Calculations!AK193+Calculations!AK215+Calculations!AK236+Calculations!AK258+Calculations!AK279 -> 23.31442674 | J19: =Calculations!AN86+Calculations!AN107+Calculations!AN129+Calculations!AN150+Calculations!AN172+Calculations!AN193+Calculations!AN215+Calculations!AN236+Calculations!AN258+Calculations!AN279 -> 19.0467808 | X19: Greater Glasgow & Clyde Health Board
C20: Of which, Q1 only: | D20: =HLOOKUP('III Tool Overview'!$H$7,Baseline_Data_2012!$B$2:$AW$285,Baseline_Data_2012!AW272,FALSE) -> 0 | X20: Highland Health Board
C21: Of which, Q1 & Q2: | D21: =HLOOKUP('III Tool Overview'!$H$7,Baseline_Data_2012!$B$2:$AW$285,Baseline_Data_2012!AW273,FALSE) -> 1411.611544 | G21: Model Outcomes (Quintiles 1 & 2) | H21: 2 years | I21: 10 years | J21: 20 years | X21: Lanarkshire Health Board
G22: Years of life gained | H22: =Calculations!S86+Calculations!S107+Calculations!S129+Calculations!S150 -> 3.619299672 | I22: =Calculations!Y86+Calculations!Y107+Calculations!Y129+Calculations!Y150 -> 8.739829795 | J22: =Calculations!AB86+Calculations!AB107+Calculations!AB129+Calculations!AB150 -> 7.411128219 | X22: Lothian Health Board
C23: No. of obese adults who want to control weight | D23: =HLOOKUP('III Tool Overview'!$H$7,Baseline_Data_2012!$B$2:$AV$285,Baseline_Data_2012!AW275,FALSE) -> 4306.482343 | G23: Continuous inpatient stays prevented | H23: =Calculations!AE86+Calculations!AE107+Calculations!AE129+Calculations!AE150 -> 2.581064403 | I23: =Calculations!AK86+Calculations!AK107+Calculations!AK129+Calculations!AK150 -> 6.186942178 | J23: =Calculations!AN86+Calculations!AN107+Calculations!AN129+Calculations!AN150 -> 4.845043919 | X23: Orkney Health Board
C24: Of which, Q1 only: | D24: =HLOOKUP('III Tool Overview'!$H$7,Baseline_Data_2012!$B$2:$AV$285,Baseline_Data_2012!AW276,FALSE) -> 0 | X24: Shetland Health Board
C25: Of which, Q1 & Q2: | D25: =HLOOKUP('III Tool Overview'!$H$7,Baseline_Data_2012!$B$2:$AV$285,Baseline_Data_2012!AW277,FALSE) -> 1002.244196 | G25: Model Outcomes (comparative health inequalities) | H25: 2 years | I25: 10 years | J25: 20 years | X25: Tayside Health Board
G26: RII: Years of life lost (without intervention) | H26: ='RII '!H20 -> -0.9535431066 | I26: ='RII '!H39 -> -1.050502567 | J26: ='RII '!H58 -> -1.140469467 | X26: Western Isles Health Board
C27: Annual continuous inpatient stays (2012) | D27: =HLOOKUP('III Tool Overview'!$H$7,Baseline_Data_2012!$B$2:$AV$285,Baseline_Data_2012!AW280,FALSE) -> 5624 | G27: RII: Years of life lost (with intervention) | H27: ='RII '!S20 -> -0.9531894641 | I27: ='RII '!S39 -> -1.050331961 | J27: ='RII '!S58 -> -1.140381718 | X27: Aberdeen City Local Authority
C28: Of which, Q1 only: | D28: =HLOOKUP('III Tool Overview'!$H$7,Baseline_Data_2012!$B$2:$AV$285,Baseline_Data_2012!AW281,FALSE) -> 0 | G28: RII: years of life lost (difference) | H28: =H27-H26 -> 0.0003536424915 | I28: =I27-I26 -> 0.0001706064975 | J28: 8.774942342e-05 | X28: Aberdeenshire Local Authority
C29: Of which, Q1 & Q2: | D29: =HLOOKUP('III Tool Overview'!$H$7,Baseline_Data_2012!$B$2:$AV$285,Baseline_Data_2012!AW282,FALSE) -> 1342 | G29: RII: continuous inpatient stays (without intervention) | H29: ='RII '!H77 -> -1.306055013 | I29: ='RII '!H96 -> -1.392337756 | J29: ='RII '!H115 -> -1.493608387 | X29: Angus Local Authority
G30: RII: continuous inpatient stays (with intervention) | H30: ='RII '!S77 -> -1.305857384 | I30: ='RII '!S96 -> -1.392216797 | J30: ='RII '!M114 -> -1.493553952 | X30: Argyll & Bute Local Authority
C31: Direct financial costs of intervention | G31: RII: continuous inpatient stays (difference) | H31: =H30-H29 -> 0.0001976294104 | I31: =I30-I29 -> 0.0001209581806 | J31: 5.443471292e-05 | X31: Clackmannanshire Local Authority
C32: Cost per intervention (£, 2012 prices) | D32: 73 | X32: Dumfries & Galloway Local Authority
G33: Direct financial savings | H33: 2 years | I33: 10 years | J33: 20 years | X33: Dundee City Local Authority
G34: Reduced continuous inpatient stays (£'000s) - all | H34: =(H19*2445)/1000 -> 22.22278067 | I34: =(I19*2445)/1000 -> 57.00377338 | J34: =(J19*2445)/1000 -> 46.56937906 | X34: East Ayrshire Local Authority
G35: Reduced continuous inpatient stays (£'000s) - Q 1 & 2 | H35: =(H23*2445)/1000 -> 6.310702465 | I35: =(I23*2445)/1000 -> 15.12707363 | J35: =(J23*2445)/1000 -> 11.84613238 | X35: East Dunbartonshire Local Authority
X36: East Lothian Local Authority
G37: How are costs and financial savings estimated? | X37: East Renfrewshire Local Authority
G38: The cost of an counterweight intervention was estimated at £72 in 2011 - this was updated to 2012 prices. Geue et al. (2012) estimated the cost of a continuous inpatient stay at £2113 in 2006/07 - this has been adjusted to 2012/13 prices. | X38: Edinburgh, City of Local Authority
X39: Eilean Siar Local Authority
X40: Falkirk Local Authority
X41: Fife Local Authority
X42: Glasgow City Local Authority
X43: Highland Local Authority
X44: Inverclyde Local Authority
X45: Midlothian Local Authority
X46: Moray Local Authority
X47: North Ayrshire Local Authority
X48: North Lanarkshire Local Authority
X49: Orkney Islands Local Authority
X50: Perth & Kinross Local Authority
X51: Renfrewshire Local Authority
X52: Scottish Borders Local Authority
X53: Shetland Islands Local Authority
X54: South Ayrshire Local Authority
X55: South Lanarkshire Local Authority
X56: Stirling Local Authority
X57: West Dunbartonshire Local Authority
X58: West Lothian Local Authority
X64: Even distribution
X65: Targeting to Q1
X66: Targeting to Q1 & Q2
X67: Proportionate to need

Sheet RII
A1: This sheet calculates the Relative Index of Inequality for the III Tool Overview page.
A2: For more information on measuring inequalities in health, please see:
A3: http://www.scotpho.org.uk/downloads/scotphoreports/scotpho071009_measuringinequalities_rep.pdf
A4: THESE TABLES CALCULATE THE RII FOR YEARS OF LIFE LOST, BEFORE AND AFTER THE POLICY
A5: YEARS OF LIFE LOST: Both sexes combined - 2 YEARS, baseline | L5: YEARS OF LIFE LOST: Both sexes combined - 2 YEARS, policy
B6: Y | D6: a | F6: b | M6: Y | O6: a | Q6: b
A7: SIMD_Q | B7: years of life lost | C7: Pop | D7: proportion of total population | E7: Cumulative proportion | F7: Relative rank | G7: Y*√a | H7: √a | I7: b*√a | L7: SIMD_Q | M7: years of life lost | N7: Pop | O7: proportion of total population | P7: Cumulative proportion | Q7: Relative rank | R7: Y*√a | S7: √a | T7: b*√a
E8: 0 | P8: 0
A9: 1 | B9: =Calculations!Q5 -> 0 | C9: =Calculations!F5 -> 0 | D9: =C9/$C$14 -> 0 | E9: =E8+D9 -> 0 | F9: =E8+(0.5*D9) -> 0 | G9: =SQRT(D9)*B9 -> 0 | H9: =SQRT(D9) -> 0 | I9: =F9*SQRT(D9) -> 0 | L9: 1 | M9: =Calculations!R5 -> 0 | N9: =C9 -> 0 | O9: =N9/$C$14 -> 0 | P9: =P8+O9 -> 0 | Q9: =P8+(0.5*O9) -> 0 | R9: =SQRT(O9)*M9 -> 0 | S9: =SQRT(O9) -> 0 | T9: =Q9*SQRT(O9) -> 0
A10: 2 | B10: =Calculations!Q6 -> 1304.292267 | C10: =Calculations!F6 -> 3661.2 | D10: =C10/$C$14 -> 0.2152026709 | E10: =E9+D10 -> 0.2152026709 | F10: =E9+(0.5*D10) -> 0.1076013355 | G10: 605.0604247 | H10: 0.463899419 | I10: 0.049916197 | L10: 2 | M10: =Calculations!R6 -> 1300.672967 | N10: =C10 -> 3661.2 | O10: =N10/$C$14 -> 0.2152026709 | P10: =P9+O10 -> 0.2152026709 | Q10: =P9+(0.5*O10) -> 0.1076013355 | R10: 603.3814337 | S10: 0.463899419 | T10: 0.049916197
A11: 3 | B11: =Calculations!Q7 -> 1052.702286 | C11: =Calculations!F7 -> 3573.6 | D11: =C11/$C$14 -> 0.2100536067 | E11: =E10+D11 -> 0.4252562776 | F11: =E10+(0.5*D11) -> 0.3202294743 | G11: 482.4703591 | H11: 0.4583160555 | I11: 0.1467663095 | L11: 3 | M11: =Calculations!R7 -> 1050.296417 | N11: 3573.6 | O11: =N11/$C$14 -> 0.2100536067 | P11: =P10+O11 -> 0.4252562776 | Q11: =P10+(0.5*O11) -> 0.3202294743 | R11: 481.367711 | S11: 0.4583160555 | T11: 0.1467663095
A12: 4 | B12: =Calculations!Q8 -> 2073.63094 | C12: =Calculations!F8 -> 9249 | D12: =C12/$C$14 -> 0.5436494874 | E12: =E11+D12 -> 0.9689057651 | F12: =E11+(0.5*D12) -> 0.6970810213 | G12: 1528.941806 | H12: 0.7373259031 | I12: 0.5139758936 | L12: 4 | M12: =Calculations!R8 -> 2067.884801 | N12: 9249 | O12: =N12/$C$14 -> 0.5436494874 | P12: =P11+O12 -> 0.9689057651 | Q12: =P11+(0.5*O12) -> 0.6970810213 | R12: 1524.705028 | S12: 0.7373259031 | T12: 0.5139758936
A13: 5 | B13: =Calculations!Q9 -> 84.44839701 | C13: =Calculations!F9 -> 529 | D13: =C13/$C$14 -> 0.03109423493 | E13: =E12+D13 -> 1 | F13: =E12+(0.5*D13) -> 0.9844528825 | G13: =SQRT(D13)*B13 -> 14.89125663 | H13: 0.1763355748 | I13: 0.1735940649 | L13: 5 | M13: =Calculations!R9 -> 84.28098085 | N13: 529 | O13: =N13/$C$14 -> 0.03109423493 | P13: =P12+O13 -> 1 | Q13: =P12+(0.5*O13) -> 0.9844528825 | R13: 14.8617352 | S13: 0.1763355748 | T13: 0.1735940649
A14: Total | B14: =AVERAGE(B10:B13) -> 1128.768472 | C14: =SUM(C9:C13) -> 17012.8 | G14: 0 | H14: 0 | I14: 0 | L14: Total | M14: =AVERAGE(M10:M13) -> 1125.783791 | N14: =SUM(N9:N13) -> 17012.8 | R14: 0 | S14: 0 | T14: 0
A16: Regression = | B16: =LINEST(G10:G13,H10:I13,0) -> 1076.329396 | L16: Regression = | M16: =LINEST(R10:R13,S10:T13,0) -> 1073.085249
A18: Slope Index Inequality = | B18: =B16 -> 1076.329396 | C18: Years of life lost difference between the top and bottom positions | L18: Slope Index Inequality = | M18: =M16 -> 1073.085249 | N18: Years of life lost difference between the top and bottom positions
A19: Relative Index Inequality = | B19: =-B18/B14 -> -0.9535431066 | L19: Relative Index Inequality = | M19: =-M18/M14 -> -0.9531894641
A20: According to the regresion equation the YOLL among those at the bottom is | H20: =B19 -> -0.9535431066 | I20: times higher than the average | L20: According to the regresion equation the YOLL among those at the bottom is | S20: =M19 -> -0.9531894641 | T20: times higher than the average
A24: YEARS OF LIFE LOST: Both sexes combined - 10 YEARS, baseline | L24: YEARS OF LIFE LOST: Both sexes combined - 10 YEARS, policy
B25: Y | D25: a | F25: b | M25: Y | O25: a | Q25: b
A26: SIMD_Q | B26: years of life lost | C26: Pop | D26: proportion of total population | E26: Cumulative proportion | F26: Relative rank | G26: Y*√a | H26: √a | I26: b*√a | L26: SIMD_Q | M26: years of life lost | N26: Pop | O26: proportion of total population | P26: Cumulative proportion | Q26: Relative rank | R26: Y*√a | S26: √a | T26: b*√a
E27: 0 | P27: 0
A28: 1 | B28: =Calculations!W5 -> 0 | C28: =C9 -> 0 | D28: =C28/$C$14 -> 0 | E28: =E27+D28 -> 0 | F28: =E27+(0.5*D28) -> 0 | G28: =SQRT(D28)*B28 -> 0 | H28: =SQRT(D28) -> 0 | I28: =F28*SQRT(D28) -> 0 | L28: 1 | M28: =Calculations!X5 -> 0 | N28: =C28 -> 0 | O28: =N28/$C$14 -> 0 | P28: =P27+O28 -> 0 | Q28: =P27+(0.5*O28) -> 0 | R28: =SQRT(O28)*M28 -> 0 | S28: =SQRT(O28) -> 0 | T28: =Q28*SQRT(O28) -> 0
A29: 2 | B29: =Calculations!W6 -> 11367.83013 | C29: =C10 -> 3661.2 | D29: =C29/$C$14 -> 0.2152026709 | E29: =E28+D29 -> 0.2152026709 | F29: =E28+(0.5*D29) -> 0.1076013355 | G29: 5273.529793 | H29: 0.463899419 | I29: 0.049916197 | L29: 2 | M29: =Calculations!X6 -> 11359.0903 | N29: =C29 -> 3661.2 | O29: =N29/$C$14 -> 0.2152026709 | P29: =P28+O29 -> 0.2152026709 | Q29: =P28+(0.5*O29) -> 0.1076013355 | R29: 5269.475391 | S29: 0.463899419 | T29: 0.049916197
A30: 3 | B30: =Calculations!W7 -> 9367.528052 | C30: 3573.6 | D30: =C30/$C$14 -> 0.2100536067 | E30: =E29+D30 -> 0.4252562776 | F30: =E29+(0.5*D30) -> 0.3202294743 | G30: 4293.288506 | H30: 0.4583160555 | I30: 0.1467663095 | L30: 3 | M30: =Calculations!X7 -> 9361.425263 | N30: 3573.6 | O30: =N30/$C$14 -> 0.2100536067 | P30: =P29+O30 -> 0.4252562776 | Q30: =P29+(0.5*O30) -> 0.3202294743 | R30: 4290.4915 | S30: 0.4583160555 | T30: 0.1467663095
A31: 4 | B31: =Calculations!W8 -> 18925.74855 | C31: 9249 | D31: =C31/$C$14 -> 0.5436494874 | E31: =E30+D31 -> 0.9689057651 | F31: =E30+(0.5*D31) -> 0.6970810213 | G31: 13954.44464 | H31: 0.7373259031 | I31: 0.5139758936 | L31: 4 | M31: =Calculations!X8 -> 18910.5678 | N31: 9249 | O31: =N31/$C$14 -> 0.5436494874 | P31: =P30+O31 -> 0.9689057651 | Q31: =P30+(0.5*O31) -> 0.6970810213 | R31: 13943.25148 | S31: 0.7373259031 | T31: 0.5139758936
A32: 5 | B32: =Calculations!W9 -> 783.601246 | C32: 529 | D32: =C32/$C$14 -> 0.03109423493 | E32: =E31+D32 -> 1 | F32: =E31+(0.5*D32) -> 0.9844528825 | G32: 138.1767761 | H32: 0.1763355748 | I32: 0.1735940649 | L32: 5 | M32: =Calculations!X9 -> 783.1197665 | N32: 529 | O32: =N32/$C$14 -> 0.03109423493 | P32: =P31+O32 -> 1 | Q32: =P31+(0.5*O32) -> 0.9844528825 | R32: 138.0918741 | S32: 0.1763355748 | T32: 0.1735940649
A33: Total | B33: =AVERAGE(B29:B32) -> 10111.177 | C33: =SUM(C28:C32) -> 17012.8 | G33: 0 | H33: 0 | I33: 0 | L33: Total | M33: =AVERAGE(M29:M32) -> 10103.55078 | N33: =SUM(N28:N32) -> 17012.8 | R33: 0 | S33: 0 | T33: 0
A35: Regression = | B35: =LINEST(G29:G32,H29:I32,0) -> 10621.81739 | L35: Regression = | M35: =LINEST(R29:R32,S29:T32,0) -> 10612.0823
A37: Slope Index Inequality = | B37: =B35 -> 10621.81739 | C37: Years of life lost difference between the top and bottom positions | L37: Slope Index Inequality = | M37: =M35 -> 10612.0823 | N37: Years of life lost difference between the top and bottom positions
A38: Relative Index Inequality = | B38: =-B37/B33 -> -1.050502567 | L38: Relative Index Inequality = | M38: =-M37/M33 -> -1.050331961
A39: According to the regresion equation the YOLL among those at the bottom is | H39: =B38 -> -1.050502567 | I39: times higher than the average | L39: According to the regresion equation the YOLL among those at the bottom is | S39: =M38 -> -1.050331961 | T39: times higher than the average
A43: YEARS OF LIFE LOST: Both sexes combined - 20 YEARS, baseline | L43: YEARS OF LIFE LOST: Both sexes combined - 20 YEARS, policy
B44: Y | D44: a | F44: b | M44: Y | O44: a | Q44: b
A45: SIMD_Q | B45: years of life lost | C45: Pop | D45: proportion of total population | E45: Cumulative proportion | F45: Relative rank | G45: Y*√a | H45: √a | I45: b*√a | L45: SIMD_Q | M45: years of life lost | N45: Pop | O45: proportion of total population | P45: Cumulative proportion | Q45: Relative rank | R45: Y*√a | S45: √a | T45: b*√a
E46: 0 | P46: 0
A47: 1 | B47: =Calculations!Z5 -> 0 | C47: =C28 -> 0 | D47: =C47/$C$14 -> 0 | E47: =E46+D47 -> 0 | F47: =E46+(0.5*D47) -> 0 | G47: =SQRT(D47)*B47 -> 0 | H47: =SQRT(D47) -> 0 | I47: =F47*SQRT(D47) -> 0 | L47: 1 | M47: =Calculations!AA5 -> 0 | N47: =C47 -> 0 | O47: =N47/$C$14 -> 0 | P47: =P46+O47 -> 0 | Q47: =P46+(0.5*O47) -> 0 | R47: =SQRT(O47)*M47 -> 0 | S47: =SQRT(O47) -> 0 | T47: =Q47*SQRT(O47) -> 0
A48: 2 | B48: =Calculations!Z6 -> 22679.09769 | C48: =C29 -> 3661.2 | D48: =C48/$C$14 -> 0.2152026709 | E48: =E47+D48 -> 0.2152026709 | F48: =E47+(0.5*D48) -> 0.1076013355 | G48: 10520.82024 | H48: 0.463899419 | I48: 0.049916197 | L48: 2 | M48: =Calculations!AA6 -> 22671.68656 | N48: =C48 -> 3661.2 | O48: =N48/$C$14 -> 0.2152026709 | P48: =P47+O48 -> 0.2152026709 | Q48: =P47+(0.5*O48) -> 0.1076013355 | R48: 10517.38222 | S48: 0.463899419 | T48: 0.049916197
A49: 3 | B49: =Calculations!Z7 -> 19043.15892 | C49: 3573.6 | D49: =C49/$C$14 -> 0.2100536067 | E49: =E48+D49 -> 0.4252562776 | F49: =E48+(0.5*D49) -> 0.3202294743 | G49: 8727.785479 | H49: 0.4583160555 | I49: 0.1467663095 | L49: 3 | M49: =Calculations!AA7 -> 19037.91355 | N49: 3573.6 | O49: =N49/$C$14 -> 0.2100536067 | P49: =P48+O49 -> 0.4252562776 | Q49: =P48+(0.5*O49) -> 0.3202294743 | R49: 8725.381442 | S49: 0.4583160555 | T49: 0.1467663095
A50: 4 | B50: =Calculations!Z8 -> 39409.02265 | C50: 9249 | D50: =C50/$C$14 -> 0.5436494874 | E50: =E49+D50 -> 0.9689057651 | F50: =E49+(0.5*D50) -> 0.6970810213 | G50: 29057.29322 | H50: 0.7373259031 | I50: 0.5139758936 | L50: 4 | M50: =Calculations!AA8 -> 39395.3725 | N50: 9249 | O50: =N50/$C$14 -> 0.5436494874 | P50: =P49+O50 -> 0.9689057651 | Q50: =P49+(0.5*O50) -> 0.6970810213 | R50: 29047.2286 | S50: 0.7373259031 | T50: 0.5139758936
A51: 5 | B51: =Calculations!Z9 -> 1666.975344 | C51: 529 | D51: =C51/$C$14 -> 0.03109423493 | E51: =E50+D51 -> 1 | F51: =E50+(0.5*D51) -> 0.9844528825 | G51: 293.9470555 | H51: 0.1763355748 | I51: 0.1735940649 | L51: 5 | M51: =Calculations!AA9 -> 1666.533109 | N51: 529 | O51: =N51/$C$14 -> 0.03109423493 | P51: =P50+O51 -> 1 | Q51: =P50+(0.5*O51) -> 0.9844528825 | R51: 293.8690736 | S51: 0.1763355748 | T51: 0.1735940649
A52: Total | B52: =AVERAGE(B48:B51) -> 20699.56365 | C52: =SUM(C47:C51) -> 17012.8 | G52: 0 | H52: 0 | I52: 0 | L52: Total | M52: =AVERAGE(M48:M51) -> 20692.87643 | N52: =SUM(N47:N51) -> 17012.8 | R52: 0 | S52: 0 | T52: 0
A54: Regression = | B54: =LINEST(G48:G51,H48:I51,0) -> 23607.22033 | L54: Regression = | M54: =LINEST(R48:R51,S48:T51,0) -> 23597.77797
A56: Slope Index Inequality = | B56: =B54 -> 23607.22033 | C56: Years of life lost difference between the top and bottom positions | L56: Slope Index Inequality = | M56: =M54 -> 23597.77797 | N56: Years of life lost difference between the top and bottom positions
A57: Relative Index Inequality = | B57: =-B56/B52 -> -1.140469467 | L57: Relative Index Inequality = | M57: =-M56/M52 -> -1.140381718
A58: According to the regresion equation the YOLL among those at the bottom is | H58: =B57 -> -1.140469467 | I58: times higher than the average | L58: According to the regresion equation the YOLL among those at the bottom is | S58: =M57 -> -1.140381718 | T58: times higher than the average
A61: THESE TABLES CALCULATE THE RII FOR HOSPITAL ADMISSIONS, BEFORE AND AFTER THE POLICY
A62: Hospital admissions: Both sexes combined - 2 YEARS, baseline | L62: Hospital admissions: Both sexes combined - 2 YEARS, policy
B63: Y | D63: a | F63: b | M63: Y | O63: a | Q63: b
A64: SIMD_Q | B64: hospital admissions | C64: Pop | D64: proportion of total population | E64: Cumulative proportion | F64: Relative rank | G64: Y*√a | H64: √a | I64: b*√a | L64: SIMD_Q | M64: hospital admissions | N64: Pop | O64: proportion of total population | P64: Cumulative proportion | Q64: Relative rank | R64: Y*√a | S64: √a | T64: b*√a
E65: 0 | P65: 0
A66: 1 | B66: =Calculations!AC5 -> 0 | C66: =C9 -> 0 | D66: =C66/$C$14 -> 0 | E66: =E65+D66 -> 0 | F66: =E65+(0.5*D66) -> 0 | G66: =SQRT(D66)*B66 -> 0 | H66: =SQRT(D66) -> 0 | I66: =F66*SQRT(D66) -> 0 | L66: 1 | M66: =Calculations!AD5 -> 0 | N66: =C66 -> 0 | O66: =N66/$C$14 -> 0 | P66: =P65+O66 -> 0 | Q66: =P65+(0.5*O66) -> 0 | R66: =SQRT(O66)*M66 -> 0 | S66: =SQRT(O66) -> 0 | T66: =Q66*SQRT(O66) -> 0
A67: 2 | B67: =Calculations!AC6 -> 1082.421066 | C67: =C10 -> 3661.2 | D67: =C67/$C$14 -> 0.2152026709 | E67: =E66+D67 -> 0.2152026709 | F67: =E66+(0.5*D67) -> 0.1076013355 | G67: 502.1345037 | H67: 0.463899419 | I67: 0.049916197 | L67: 2 | M67: =Calculations!AD6 -> 1079.840002 | N67: =C67 -> 3661.2 | O67: =N67/$C$14 -> 0.2152026709 | P67: =P66+O67 -> 0.2152026709 | Q67: =P66+(0.5*O67) -> 0.1076013355 | R67: 500.9371494 | S67: 0.463899419 | T67: 0.049916197
A68: 3 | B68: =Calculations!AC7 -> 917.7436584 | C68: 3573.6 | D68: =C68/$C$14 -> 0.2100536067 | E68: =E67+D68 -> 0.4252562776 | F68: =E67+(0.5*D68) -> 0.3202294743 | G68: 420.6166534 | H68: 0.4583160555 | I68: 0.1467663095 | L68: 3 | M68: =Calculations!AD7 -> 916.0301698 | N68: 3573.6 | O68: =N68/$C$14 -> 0.2100536067 | P68: =P67+O68 -> 0.4252562776 | Q68: =P67+(0.5*O68) -> 0.3202294743 | R68: 419.8313341 | S68: 0.4583160555 | T68: 0.1467663095
A69: 4 | B69: =Calculations!AC8 -> 2020.842642 | C69: 9249 | D69: =C69/$C$14 -> 0.5436494874 | E69: =E68+D69 -> 0.9689057651 | F69: =E68+(0.5*D69) -> 0.6970810213 | G69: 1490.019626 | H69: 0.7373259031 | I69: 0.5139758936 | L69: 4 | M69: =Calculations!AD8 -> 2016.203863 | N69: 9249 | O69: =N69/$C$14 -> 0.5436494874 | P69: =P68+O69 -> 0.9689057651 | Q69: =P68+(0.5*O69) -> 0.6970810213 | R69: 1486.599334 | S69: 0.7373259031 | T69: 0.5139758936
A70: 5 | B70: =Calculations!AC9 -> 101.5835347 | C70: 529 | D70: =C70/$C$14 -> 0.03109423493 | E70: =E69+D70 -> 1 | F70: =E69+(0.5*D70) -> 0.9844528825 | G70: 17.91279097 | H70: 0.1763355748 | I70: 0.1735940649 | L70: 5 | M70: =Calculations!AD9 -> 101.4277948 | N70: 529 | O70: =N70/$C$14 -> 0.03109423493 | P70: =P69+O70 -> 1 | Q70: =P69+(0.5*O70) -> 0.9844528825 | R70: 17.88532849 | S70: 0.1763355748 | T70: 0.1735940649
A71: Total | B71: =AVERAGE(B67:B70) -> 1030.647725 | C71: =SUM(C66:C70) -> 17012.8 | G71: 0 | H71: 0 | I71: 0 | L71: Total | M71: =AVERAGE(M67:M70) -> 1028.375457 | N71: =SUM(N66:N70) -> 17012.8 | R71: 0 | S71: 0 | T71: 0
A73: Regression = | B73: =LINEST(G67:G70,H67:I70,0) -> 1346.082629 | L73: Regression = | M73: =LINEST(R67:R70,S67:T70,0) -> 1342.911684
A75: Slope Index Inequality = | B75: =B73 -> 1346.082629 | C75: Years of life lost difference between the top and bottom positions | L75: Slope Index Inequality = | M75: =M73 -> 1342.911684 | N75: Years of life lost difference between the top and bottom positions
A76: Relative Index Inequality = | B76: =-B75/B71 -> -1.306055013 | L76: Relative Index Inequality = | M76: =-M75/M71 -> -1.305857384
A77: According to the regresion equation the YOLL among those at the bottom is | H77: =B76 -> -1.306055013 | I77: times higher than the average | L77: According to the regresion equation the YOLL among those at the bottom is | S77: =M76 -> -1.305857384 | T77: times higher than the average
A81: Hospital admissions: Both sexes combined - 10 YEARS, baseline | L81: Hospital admissions: Both sexes combined - 10 YEARS, policy
B82: Y | D82: a | F82: b | M82: Y | O82: a | Q82: b
A83: SIMD_Q | B83: hospital admissions | C83: Pop | D83: proportion of total population | E83: Cumulative proportion | F83: Relative rank | G83: Y*√a | H83: √a | I83: b*√a | L83: SIMD_Q | M83: hospital admissions | N83: Pop | O83: proportion of total population | P83: Cumulative proportion | Q83: Relative rank | R83: Y*√a | S83: √a | T83: b*√a
E84: 0 | P84: 0
A85: 1 | B85: =Calculations!AI5 -> 0 | C85: =C66 -> 0 | D85: =C85/$C$14 -> 0 | E85: =E84+D85 -> 0 | F85: =E84+(0.5*D85) -> 0 | G85: =SQRT(D85)*B85 -> 0 | H85: =SQRT(D85) -> 0 | I85: =F85*SQRT(D85) -> 0 | L85: 1 | M85: =Calculations!AJ5 -> 0 | N85: =C85 -> 0 | O85: =N85/$C$14 -> 0 | P85: =P84+O85 -> 0 | Q85: =P84+(0.5*O85) -> 0 | R85: =SQRT(O85)*M85 -> 0 | S85: =SQRT(O85) -> 0 | T85: =Q85*SQRT(O85) -> 0
A86: 2 | B86: =Calculations!AI6 -> 9892.180246 | C86: =C67 -> 3661.2 | D86: =C86/$C$14 -> 0.2152026709 | E86: =E85+D86 -> 0.2152026709 | F86: =E85+(0.5*D86) -> 0.1076013355 | G86: 4588.976669 | H86: 0.463899419 | I86: 0.049916197 | L86: 2 | M86: =Calculations!AJ6 -> 9885.993304 | N86: =C86 -> 3661.2 | O86: =N86/$C$14 -> 0.2152026709 | P86: =P85+O86 -> 0.2152026709 | Q86: =P85+(0.5*O86) -> 0.1076013355 | R86: 4586.10655 | S86: 0.463899419 | T86: 0.049916197
A87: 3 | B87: =Calculations!AI7 -> 8551.783797 | C87: 3573.6 | D87: =C87/$C$14 -> 0.2100536067 | E87: =E86+D87 -> 0.4252562776 | F87: =E86+(0.5*D87) -> 0.3202294743 | G87: 3919.419817 | H87: 0.4583160555 | I87: 0.1467663095 | L87: 3 | M87: =Calculations!AJ7 -> 8547.391562 | N87: 3573.6 | O87: =N87/$C$14 -> 0.2100536067 | P87: =P86+O87 -> 0.4252562776 | Q87: =P86+(0.5*O87) -> 0.3202294743 | R87: 3917.406785 | S87: 0.4583160555 | T87: 0.1467663095
A88: 4 | B88: =Calculations!AI8 -> 19262.14567 | C88: 9249 | D88: =C88/$C$14 -> 0.5436494874 | E88: =E87+D88 -> 0.9689057651 | F88: =E87+(0.5*D88) -> 0.6970810213 | G88: 14202.47895 | H88: 0.7373259031 | I88: 0.5139758936 | L88: 4 | M88: =Calculations!AJ8 -> 19249.86306 | N88: 9249 | O88: =N88/$C$14 -> 0.5436494874 | P88: =P87+O88 -> 0.9689057651 | Q88: =P87+(0.5*O88) -> 0.6970810213 | R88: 14193.42267 | S88: 0.7373259031 | T88: 0.5139758936
A89: 5 | B89: =Calculations!AI9 -> 985.515606 | C89: 529 | D89: =C89/$C$14 -> 0.03109423493 | E89: =E88+D89 -> 1 | F89: =E88+(0.5*D89) -> 0.9844528825 | G89: 173.7814608 | H89: 0.1763355748 | I89: 0.1735940649 | L89: 5 | M89: =Calculations!AJ9 -> 985.0629637 | N89: 529 | O89: =N89/$C$14 -> 0.03109423493 | P89: =P88+O89 -> 1 | Q89: =P88+(0.5*O89) -> 0.9844528825 | R89: 173.7016439 | S89: 0.1763355748 | T89: 0.1735940649
A90: Total | B90: =AVERAGE(B86:B89) -> 9672.906329 | C90: =SUM(C85:C89) -> 17012.8 | G90: 0 | H90: 0 | I90: 0 | L90: Total | M90: =AVERAGE(M86:M89) -> 9667.077722 | N90: =SUM(N85:N89) -> 17012.8 | R90: 0 | S90: 0 | T90: 0
A92: Regression = | B92: =LINEST(G86:G89,H86:I89,0) -> 13467.95269 | L92: Regression = | M92: =LINEST(R86:R89,S86:T89,0) -> 13458.66799
A94: Slope Index Inequality = | B94: =B92 -> 13467.95269 | C94: Years of life lost difference between the top and bottom positions | L94: Slope Index Inequality = | M94: =M92 -> 13458.66799 | N94: Years of life lost difference between the top and bottom positions
A95: Relative Index Inequality = | B95: =-B94/B90 -> -1.392337756 | L95: Relative Index Inequality = | M95: =-M94/M90 -> -1.392216797
A96: According to the regresion equation the YOLL among those at the bottom is | H96: =B95 -> -1.392337756 | I96: times higher than the average | L96: According to the regresion equation the YOLL among those at the bottom is | S96: =M95 -> -1.392216797 | T96: times higher than the average
A100: Hospital admissions: Both sexes combined - 20 YEARS, baseline | L100: Hospital admissions: Both sexes combined - 20 YEARS, policy
B101: Y | D101: a | F101: b | M101: Y | O101: a | Q101: b
A102: SIMD_Q | B102: hospital admissions | C102: Pop | D102: proportion of total population | E102: Cumulative proportion | F102: Relative rank | G102: Y*√a | H102: √a | I102: b*√a | L102: SIMD_Q | M102: hospital admissions | N102: Pop | O102: proportion of total population | P102: Cumulative proportion | Q102: Relative rank | R102: Y*√a | S102: √a | T102: b*√a
E103: 0 | P103: 0
A104: 1 | B104: =Calculations!AL5 -> 0 | C104: =C85 -> 0 | D104: =C104/$C$14 -> 0 | E104: =E103+D104 -> 0 | F104: =E103+(0.5*D104) -> 0 | G104: =SQRT(D104)*B104 -> 0 | H104: =SQRT(D104) -> 0 | I104: =F104*SQRT(D104) -> 0 | L104: 1 | M104: =Calculations!AM5 -> 0 | N104: =C104 -> 0 | O104: =N104/$C$14 -> 0 | P104: =P103+O104 -> 0 | Q104: =P103+(0.5*O104) -> 0 | R104: =SQRT(O104)*M104 -> 0 | S104: =SQRT(O104) -> 0 | T104: =Q104*SQRT(O104) -> 0
A105: 2 | B105: =Calculations!AL6 -> 21018.87753 | C105: =C86 -> 3661.2 | D105: =C105/$C$14 -> 0.2152026709 | E105: =E104+D105 -> 0.2152026709 | F105: =E104+(0.5*D105) -> 0.1076013355 | G105: 9750.645074 | H105: 0.463899419 | I105: 0.049916197 | L105: 2 | M105: =Calculations!AM6 -> 21014.03249 | N105: =C105 -> 3661.2 | O105: =N105/$C$14 -> 0.2152026709 | P105: =P104+O105 -> 0.2152026709 | Q105: =P104+(0.5*O105) -> 0.1076013355 | R105: 9748.397461 | S105: 0.463899419 | T105: 0.049916197
A106: 3 | B106: =Calculations!AL7 -> 18569.14239 | C106: 3573.6 | D106: =C106/$C$14 -> 0.2100536067 | E106: =E105+D106 -> 0.4252562776 | F106: =E105+(0.5*D106) -> 0.3202294743 | G106: 8510.536094 | H106: 0.4583160555 | I106: 0.1467663095 | L106: 3 | M106: =Calculations!AM7 -> 18565.62375 | N106: 3573.6 | O106: =N106/$C$14 -> 0.2100536067 | P106: =P105+O106 -> 0.4252562776 | Q106: =P105+(0.5*O106) -> 0.3202294743 | R106: 8508.923443 | S106: 0.4583160555 | T106: 0.1467663095
A107: 4 | B107: =Calculations!AL8 -> 43000.20872 | C107: 9249 | D107: =C107/$C$14 -> 0.5436494874 | E107: =E106+D107 -> 0.9689057651 | F107: =E106+(0.5*D107) -> 0.6970810213 | G107: 31705.16773 | H107: 0.7373259031 | I107: 0.5139758936 | L107: 4 | M107: =Calculations!AM8 -> 42989.935 | N107: 9249 | O107: =N107/$C$14 -> 0.5436494874 | P107: =P106+O107 -> 0.9689057651 | Q107: =P106+(0.5*O107) -> 0.6970810213 | R107: 31697.59265 | S107: 0.7373259031 | T107: 0.5139758936
A108: 5 | B108: =Calculations!AL9 -> 2255.326685 | C108: 529 | D108: =C108/$C$14 -> 0.03109423493 | E108: =E107+D108 -> 1 | F108: =E107+(0.5*D108) -> 0.9844528825 | G108: 397.6943273 | H108: 0.1763355748 | I108: 0.1735940649 | L108: 5 | M108: =Calculations!AM9 -> 2254.917312 | N108: 529 | O108: =N108/$C$14 -> 0.03109423493 | P108: =P107+O108 -> 1 | Q108: =P107+(0.5*O108) -> 0.9844528825 | R108: 397.6221402 | S108: 0.1763355748 | T108: 0.1735940649
A109: Total | B109: =AVERAGE(B105:B108) -> 21210.88883 | C109: =SUM(C104:C108) -> 17012.8 | G109: 0 | H109: 0 | I109: 0 | L109: Total | M109: =AVERAGE(M105:M108) -> 21206.12714 | N109: =SUM(N104:N108) -> 17012.8 | R109: 0 | S109: 0 | T109: 0
A111: Regression = | B111: =LINEST(G105:G108,H105:I108,0) -> 31680.76145 | L111: Regression = | M111: =LINEST(R105:R108,S105:T108,0) -> 31672.495
A113: Slope Index Inequality = | B113: =B111 -> 31680.76145 | C113: Years of life lost difference between the top and bottom positions | L113: Slope Index Inequality = | M113: =M111 -> 31672.495 | N113: Years of life lost difference between the top and bottom positions
A114: Relative Index Inequality = | B114: =-B113/B109 -> -1.493608387 | L114: Relative Index Inequality = | M114: =-M113/M109 -> -1.493553952
A115: According to the regresion equation the YOLL among those at the bottom is | H115: =B114 -> -1.493608387 | I115: times higher than the average | L115: According to the regresion equation the YOLL among those at the bottom is | S115: =M114 -> -1.493553952 | T115: times higher than the average

Sheet Notes
A1: Worksheet name | B1: What it does
A2: III Tool Overview | B2: • Gives the nature of the intervention (e.g. smoking cessation, changes in income distribution) and relevant baseline information (size of the target population, maximum number who might feasibly gain, hospitalisation data). Where appropriate it also provides cost per intervention and historic statistics on service provision. • Allows users to modify inputs (e.g. the geography being targeted, and where appropriate, the number of interventions and targeting strategy). • Reports on key outcomes: years of life gained and hospitalisations prevented due to the intervention; and changes in the relative index of inequality (for years of life lost and hospitalisations).
A3: Calculations | B3: Based on user inputs, the prevalence and population data in this workbook, and macros that run behind the scenes (incorporating assumptions about mortality, hospitalisations and the impact of interventions), this sheet calculates years of life lost and hospitalisations before and after the intervention, and the difference between the two scenarios.
A4: Targeting | B4: Provides the background information for allocating the total number of interventions by age group, sex and deprivation quintile. The current options are for even distribution, targeting to Q1 only, targeting to Q1 & Q2 only, and targeting according to the distribution of ‘need’ (e.g. the population distribution of smokers).
A5: Baseline_Data_2012 | B5: Provides baseline data on the size of the target population, maximum number who might feasibly gain, hospitalisation data and historic statistics on service provision where available. The size of the target population is calculated for Scotland by applying age/sex/SIMD decile prevalence rates (e.g. for smoking) to the age/sex/SIMD distribution of the total population. Local estimates are derived by weighting national age/sex/SIMD decile prevalence rates by the difference between local and national prevalence rates (separately for men and women). The number who might feasibly gain (as a proportion of the target population) varies by intervention – see commentary for more details.
A6: Prevalence | B6: Provides national and local prevalence rates of the at risk population by age/sex/SIMD decile, used in the calculations and baseline data. National estimates come from relevant national surveys (see commentary). Local estimates are derived by weighting national age/sex/SIMD decile prevalence rates by the difference between local and national prevalence rates (separately for men and women). Please note: For nine local authority areas the sample size was not considered large enough to produce robust results for hazardous/harmful drinking and obesity. As a second-best solution, and for completeness, we used prevalence rates for ‘aggregate geographies’ for these local authorities. These aggregate areas combined results from the relevant local authority with a second local authority defined as most similar to it according to the ONS 2001 Census classification. The aggregate geographies were as follows: • Argyll & Bute Local Authority: Argyll & Bute & Perth & Kinross • Clackmannanshire Local Authority: Clackmannanshire & Falkirk • East Dunbartonshire Local Authority: East Renfrewshire & East Dunbartonshire • East Lothian Local Authority: East Lothian & Midlothian • East Renfrewshire Local Authority: East Renfrewshire & East Dunbartonshire • Inverclyde Local Authority: West Dunbartonshire & Inverclyde • Midlothian Local Authority: East Lothian & Midlothian • Stirling Local Authority: Stirling & Perth & Kinross • West Dunbartonshire Local Authority: West Dunbartonshire & Inverclyde Users should note that the prevalence estimates shown are indicative only and included to inform modelling at a local level. As such, they should not be considered as representative of the ‘true’ prevalence of obesity and/or hazardous or harmful drinking for individual local authorities within each aggregate geography. Users should note that the prevalence estimates shown are indicative only and included to inform modelling at a local level. As such, they should not be considered as representative of the ‘true’ prevalence of obesity and/or hazardous or harmful drinking for individual local authorities within each aggregate geography.
A7: LookUpData_Pop | B7: Provides aggregate five-year population data by age/sex/SIMD quintile for 2007-2011, used to calculate the before and after impact of interventions. Five years of data was used to improve robustness of results and avoid disclosure issues.
A8: RII | B8: Calculates the Relative Index of Inequality for the III Tool Overview page. For more information on measuring inequalities in health, please see: http://www.scotpho.org.uk/downloads/scotphoreports/scotpho071009_measuringinequalities_rep.pdf

Sheet Calculations
A1: USING Scotland AS EXAMPLE. NEED TO ADD LOOKUP FOR MORTALITY WHEN UPDATE | B1: YEAR START | C1: 2012 | D1: AGE GROUP | E1: 16+ | I1: Cumulative incidence: years 2, 5, 10 and 20 | Q1: Years of life lost: years 2,5,10 and 20 | AC1: Hospitalisations: years 2,5,10 and 20 | AP1: LE Calculation
A2: Population Group | B2: mid-age | C2: Sex | D2: SIMD | E2: Prevalence exposure (BMI 30+) | F2: Population aged 16+ 2007-11 | G2: Number treated at base | H2: Additional number treated under policy | I2: Baseline-2 | J2: Policy-2 | K2: Baseline-5 | L2: Policy-5 | M2: Baseline-10 | N2: Policy-10 | O2: Baseline-20 | P2: Policy-20 | Q2: Baseline-2 | R2: Policy-2 | S2: Diff YLL-2 | T2: Baseline-5 | U2: Policy-5 | V2: Diff YLL-5 | W2: Baseline-10 | X2: Policy-10 | Y2: Diff YLL-10 | Z2: Baseline-20 | AA2: Policy-20 | AB2: Diff YLL-20 | AC2: Baseline-2 | AD2: Policy-2 | AE2: Diff hosp-2 years | AF2: Baseline-5 | AG2: Policy-5 | AH2: Diff hosp - 5 years | AI2: Baseline-10 | AJ2: Policy-10 | AK2: Diff hosp - 10 years | AL2: Baseline-20 | AM2: Policy-20 | AN2: Diff hosp - 20 years | AP2: Ax | AQ2: Width of interval | AR2: LE
A3: All, by SIMD
A4: Total | F4: =SUM(F5:F9) -> 17012.8 | G4: =SUM(G5:G9) -> 0 | H4: =SUM(H5:H9) -> 1000 | I4: =SUM(I5:I9) -> 173.0223732 | J4: =SUM(J5:J9) -> 172.5649747 | K4: =SUM(K5:K9) -> 713.9093047 | L4: =SUM(L5:L9) -> 712.885106 | M4: =SUM(M5:M9) -> 1682.488963 | N4: =SUM(N5:N9) -> 1681.476392 | O4: =SUM(O5:O9) -> 3829.208222 | P4: =SUM(P5:P9) -> 3828.604821 | Q4: =SUM(Q5:Q9) -> 4515.07389 | R4: =SUM(R5:R9) -> 4503.135166 | S4: =SUM(S5:S9) -> 11.9387241 | T4: =SUM(T5:T9) -> 18065.2023 | U4: =SUM(U5:U9) -> 18037.63535 | V4: =SUM(V5:V9) -> 27.56694572 | W4: =SUM(W5:W9) -> 40444.70798 | X4: =SUM(X5:X9) -> 40414.20313 | Y4: =SUM(Y5:Y9) -> 30.50485384 | Z4: =SUM(Z5:Z9) -> 82798.2546 | AA4: =SUM(AA5:AA9) -> 82771.50571 | AB4: =SUM(AB5:AB9) -> 26.74888919 | AC4: =SUM(AC5:AC9) -> 4122.590901 | AD4: =SUM(AD5:AD9) -> 4113.50183 | AE4: =SUM(AE5:AE9) -> 9.08907185 | AF4: =SUM(AF5:AF9) -> 16771.14018 | AG4: =SUM(AG5:AG9) -> 16749.93889 | AH4: 21.20129072 | AI4: =SUM(AI5:AI9) -> 38691.62532 | AJ4: =SUM(AJ5:AJ9) -> 38668.31089 | AK4: =SUM(AK5:AK9) -> 23.31442674 | AL4: =SUM(AL5:AL9) -> 84843.55532 | AM4: =SUM(AM5:AM9) -> 84824.50854 | AN4: =SUM(AN5:AN9) -> 19.0467808
A5: Q 1 | B5: n/a | C5: both | D5: 1 | E5: =HLOOKUP('III Tool Overview'!$H$7,Prevalence!$B$2:$CH$268,Prevalence!CI3,FALSE) -> 0 | F5: =F12+F19 -> 0 | G5: =G12+G19 -> 0 | H5: =H12+H19 -> 0 | I5: =I12+I19 -> 0 | J5: =J12+J19 -> 0 | K5: 0 | L5: 0 | M5: 0 | N5: 0 | O5: 0 | P5: 0 | Q5: 0 | R5: 0 | S5: =S12+S19 -> 0 | T5: 0 | U5: 0 | V5: 0 | W5: 0 | X5: 0 | Y5: 0 | Z5: 0 | AA5: 0 | AB5: 0 | AC5: 0 | AD5: 0 | AE5: 0 | AF5: 0 | AG5: 0 | AH5: =AH12+AH19 -> 0 | AI5: 0 | AJ5: 0 | AK5: 0 | AL5: 0 | AM5: 0 | AN5: 0
A6: Q 2 | B6: n/a | C6: both | D6: 2 | E6: =HLOOKUP('III Tool Overview'!$H$7,Prevalence!$B$2:$CH$268,Prevalence!CI4,FALSE) -> 0 | F6: =F13+F20 -> 3661.2 | G6: =G13+G20 -> 0 | H6: 232.7292014 | I6: =I13+I20 -> 51.0377856 | J6: 50.88989109 | K6: 206.773681 | L6: 206.4606208 | M6: 472.9979418 | N6: 472.7133151 | O6: 1019.71116 | P6: 1019.560814 | Q6: 1304.292267 | R6: 1300.672967 | S6: 3.619299672 | T6: 5161.116698 | U6: 5152.978361 | V6: 8.13833711 | W6: 11367.83013 | X6: 11359.0903 | Y6: 8.739829795 | Z6: 22679.09769 | AA6: 22671.68656 | AB6: 7.411128219 | AC6: 1082.421066 | AD6: 1079.840002 | AE6: 2.581064403 | AF6: 4359.321418 | AG6: 4353.473475 | AH6: =AH13+AH20 -> 5.847942978 | AI6: 9892.180246 | AJ6: 9885.993304 | AK6: 6.186942178 | AL6: 21018.87753 | AM6: 21014.03249 | AN6: 4.845043919
A7: Q 3 | B7: n/a | C7: both | D7: 3 | E7: =HLOOKUP('III Tool Overview'!$H$7,Prevalence!$B$2:$CH$268,Prevalence!CI5,FALSE) -> 0 | F7: =F14+F21 -> 3573.6 | G7: 0 | H7: 177.6587923 | I7: =I14+I21 -> 41.01459285 | J7: 40.9272048 | K7: 168.6697241 | L7: 168.470502 | M7: 394.91376 | N7: 394.7132892 | O7: 885.5408346 | P7: 885.4222421 | Q7: 1052.702286 | R7: 1050.296417 | S7: 2.405868521 | T7: 4201.317964 | U7: 4195.759909 | V7: 5.558054538 | W7: 9367.528052 | X7: 9361.425263 | Y7: 6.102788518 | Z7: 19043.15892 | AA7: 19037.91355 | AB7: 5.245370274 | AC7: 917.7436584 | AD7: 916.0301698 | AE7: 1.713488582 | AF7: 3723.883609 | AG7: 3719.877976 | AH7: =AH14+AH21 -> 4.005633382 | AI7: 8551.783797 | AJ7: 8547.391562 | AK7: 4.39223529 | AL7: 18569.14239 | AM7: 18565.62375 | AN7: 3.518642683
A8: Q 4 | B8: n/a | C8: both | D8: 4 | E8: =HLOOKUP('III Tool Overview'!$H$7,Prevalence!$B$2:$CH$268,Prevalence!CI6,FALSE) -> 0 | F8: =F15+F22 -> 9249 | G8: 0 | H8: 565.9776245 | I8: =I15+I22 -> 77.7527705 | J8: 77.53549903 | K8: 324.8798948 | L8: 324.3801044 | M8: 781.2976977 | N8: 780.7845685 | O8: 1842.362815 | P8: 1842.039954 | Q8: 2073.63094 | R8: 2067.884801 | S8: 5.74613975 | T8: 8360.182151 | U8: 8346.720278 | V8: 13.46187286 | W8: 18925.74855 | X8: 18910.5678 | Y8: 15.18075599 | Z8: 39409.02265 | AA8: 39395.3725 | AB8: 13.65015524 | AC8: 2020.842642 | AD8: 2016.203863 | AE8: 4.63877901 | AF8: 8269.586037 | AG8: 8258.620224 | AH8: =AH15+AH22 -> 10.96581255 | AI8: 19262.14567 | AJ8: 19249.86306 | AK8: 12.28260701 | AL8: 43000.20872 | AM8: 42989.935 | AN8: 10.2737206
A9: Q 5 | B9: n/a | C9: both | D9: 5 | E9: =HLOOKUP('III Tool Overview'!$H$7,Prevalence!$B$2:$CH$268,Prevalence!CI7,FALSE) -> 0 | F9: =F16+F23 -> 529 | G9: 0 | H9: 23.63438187 | I9: =I16+I23 -> 3.217224283 | J9: 3.21237983 | K9: 13.58600489 | L9: 13.57387887 | M9: 33.27956354 | N9: 33.2652188 | O9: 81.59341302 | P9: 81.58181073 | Q9: 84.44839701 | R9: 84.28098085 | S9: 0.1674161591 | T9: 342.5854857 | U9: 342.1768045 | V9: 0.4086812131 | W9: 783.601246 | X9: 783.1197665 | Y9: 0.4814795379 | Z9: 1666.975344 | AA9: 1666.533109 | AB9: 0.4422354611 | AC9: 101.5835347 | AD9: 101.4277948 | AE9: 0.1557398551 | AF9: 418.3491199 | AG9: 417.9672181 | AH9: =AH16+AH23 -> 0.3819018129 | AI9: 985.515606 | AJ9: 985.0629637 | AK9: 0.4526422625 | AL9: 2255.326685 | AM9: 2254.917312 | AN9: 0.4093735958
A10: Males, by SIMD
A11: Males | F11: =SUM(F12:F16) -> 8323.6 | G11: =SUM(G12:G16) -> 0 | H11: =SUM(H12:H16) -> 495.7691888 | I11: =SUM(I12:I16) -> 89.63098491 | J11: =SUM(J12:J16) -> 89.38373106 | K11: =SUM(K12:K16) -> 369.7266749 | L11: =SUM(L12:L16) -> 369.1684611 | M11: =SUM(M12:M16) -> 871.4546849 | N11: =SUM(N12:N16) -> 870.8941322 | O11: =SUM(O12:O16) -> 1981.423244 | P11: =SUM(P12:P16) -> 1981.082193 | Q11: =SUM(Q12:Q16) -> 2620.023128 | R11: =SUM(R12:R16) -> 2612.936008 | S11: =SUM(S12:S16) -> 7.087120003 | T11: =SUM(T12:T16) -> 10488.71386 | U11: =SUM(U12:U16) -> 10472.38131 | V11: =SUM(V12:V16) -> 16.33254496 | W11: =SUM(W12:W16) -> 23485.43063 | X11: =SUM(X12:X16) -> 23467.49591 | Y11: =SUM(Y12:Y16) -> 17.93471935 | Z11: =SUM(Z12:Z16) -> 47938.70876 | AA11: =SUM(AA12:AA16) -> 47923.28612 | AB11: =SUM(AB12:AB16) -> 15.42263504 | AC11: =SUM(AC12:AC16) -> 2012.787969 | AD11: =SUM(AD12:AD16) -> 2008.168052 | AE11: =SUM(AE12:AE16) -> 4.619916505 | AF11: =SUM(AF12:AF16) -> 8230.105626 | AG11: =SUM(AG12:AG16) -> 8219.363193 | AH11: =SUM(AH12:AH16) -> 10.74243229 | AI11: =SUM(AI12:AI16) -> 19141.89599 | AJ11: =SUM(AJ12:AJ16) -> 19130.25577 | AK11: =SUM(AK12:AK16) -> 11.64021798 | AL11: =SUM(AL12:AL16) -> 42574.1087 | AM11: =SUM(AM12:AM16) -> 42565.10978 | AN11: =SUM(AN12:AN16) -> 8.998920065 | AR11: =LE(#REF!,AQ25:AQ43,AP25:AP43,19) -> 
A12: Q 1 | B12: n/a | C12: male | D12: 1 | E12: =HLOOKUP('III Tool Overview'!$H$7,Prevalence!$B$2:$CH$268,Prevalence!CI10,FALSE) -> 0 | F12: =F86 -> 0 | G12: =G86 -> 0 | H12: =H86 -> 0 | I12: =I86 -> 0 | J12: =J86 -> 0 | K12: 0 | L12: 0 | M12: 0 | N12: 0 | O12: 0 | P12: 0 | Q12: 0 | R12: 0 | S12: 0 | T12: 0 | U12: 0 | V12: 0 | W12: 0 | X12: 0 | Y12: 0 | Z12: 0 | AA12: 0 | AB12: 0 | AC12: 0 | AD12: 0 | AE12: 0 | AF12: 0 | AG12: 0 | AH12: 0 | AI12: 0 | AJ12: 0 | AK12: 0 | AL12: 0 | AM12: 0 | AN12: 0 | AR12: =LE(#REF!,AQ66:AQ84,AP66:AP84,19) -> 
A13: Q 2 | B13: n/a | C13: male | D13: 2 | E13: =HLOOKUP('III Tool Overview'!$H$7,Prevalence!$B$2:$CH$268,Prevalence!CI11,FALSE) -> 0 | F13: =F129 -> 1777.6 | G13: =G129 -> 0 | H13: =H129 -> 108.9029957 | I13: =I129 -> 26.25230867 | J13: 26.1781845 | K13: 106.4009846 | L13: 106.241713 | M13: 243.5463894 | N13: 243.3976246 | O13: 523.7307702 | P13: 523.6500842 | Q13: 750.1227199 | R13: 748.0749699 | S13: 2.047749945 | T13: 2968.316127 | U13: 2963.716163 | V13: 4.599964554 | W13: 6529.934433 | X13: 6525.046771 | Y13: 4.88766246 | Z13: 12956.68605 | AA13: 12952.65589 | AB13: 4.030168167 | AC13: 525.6432359 | AD13: 524.4053693 | AE13: 1.237866602 | AF13: 2125.142721 | AG13: 2122.353151 | AH13: 2.789569761 | AI13: 4850.59197 | AJ13: 4847.70134 | AK13: 2.890629401 | AL13: 10403.24811 | AM13: 10401.14594 | AN13: 2.102167387 | AR13: =LE(#REF!,AQ109:AQ127,AP109:AP127,19) -> 
A14: Q 3 | B14: n/a | C14: male | D14: 3 | E14: =HLOOKUP('III Tool Overview'!$H$7,Prevalence!$B$2:$CH$268,Prevalence!CI12,FALSE) -> 0 | F14: =F172 -> 1742.8 | G14: =G172 -> 0 | H14: =H172 -> 90.05189937 | I14: 20.3344678 | J14: 20.28529897 | K14: 83.77192806 | L14: 83.65872304 | M14: 196.9591341 | N14: 196.8434689 | O14: 445.1538414 | P14: 445.0843433 | Q14: 599.2742814 | R14: 597.7947948 | S14: 1.479486655 | T14: 2398.549673 | U14: 2395.141305 | V14: 3.408368008 | W14: 5368.412779 | X14: 5364.703139 | Y14: 3.709639599 | Z14: 10945.36951 | AA14: 10942.2452 | AB14: 3.124305577 | AC14: 441.8276911 | AD14: 440.9223233 | AE14: 0.9053677752 | AF14: 1804.202419 | AG14: 1802.090167 | AH14: 2.112252391 | AI14: 4185.824045 | AJ14: 4183.541154 | AK14: 2.282891772 | AL14: 9253.760404 | AM14: 9252.037431 | AN14: 1.722973368 | AR14: =LE(#REF!,AQ152:AQ170,AP152:AP170,19) -> 
A15: Q 4 | B15: n/a | C15: male | D15: 4 | E15: =HLOOKUP('III Tool Overview'!$H$7,Prevalence!$B$2:$CH$268,Prevalence!CI13,FALSE) -> 0 | F15: =F215 -> 4548.6 | G15: =G215 -> 0 | H15: =H215 -> 283.9404061 | I15: 41.27501054 | J15: 41.15385458 | K15: 172.0949263 | L15: 171.8162058 | M15: 412.7216059 | N15: 412.433829 | O15: 968.1436162 | P15: 967.9597162 | Q15: 1219.57787 | R15: 1216.123341 | S15: 3.454528858 | T15: 4915.044378 | U15: 4906.977511 | V15: 8.066867226 | W15: 11115.65847 | X15: 11106.62492 | Y15: 9.033544456 | Z15: 23045.92846 | AA15: 23037.93926 | AB15: 7.989195561 | AC15: 994.9132304 | AD15: 992.5213453 | AE15: 2.391885097 | AF15: 4092.109123 | AG15: 4086.477325 | AH15: 5.631797979 | AI15: 9609.949899 | AJ15: 9603.731091 | AK15: 6.218808526 | AL15: 21767.48082 | AM15: 21762.52848 | AN15: 4.952339886 | AR15: =LE(#REF!,AQ195:AQ213,AP195:AP213,19) -> 
A16: Q 5 | B16: n/a | C16: male | D16: 5 | E16: =HLOOKUP('III Tool Overview'!$H$7,Prevalence!$B$2:$CH$268,Prevalence!CI14,FALSE) -> 0 | F16: =F258 -> 254.6 | G16: =G258 -> 0 | H16: =H258 -> 12.87388762 | I16: 1.769197906 | J16: 1.766393016 | K16: 7.458835913 | L16: 7.451819219 | M16: 18.22755557 | N16: 18.21920967 | O16: 44.39501618 | P16: 44.38804921 | Q16: 51.04825636 | R16: 50.94290182 | S16: 0.1053545447 | T16: 206.8036786 | U16: 206.5463334 | V16: 0.2573451742 | W16: 471.4249499 | X16: 471.121077 | Y16: 0.3038728324 | Z16: 990.7247399 | AA16: 990.4457741 | AB16: 0.2789657377 | AC16: 50.40381164 | AD16: 50.31901461 | AE16: 0.08479703059 | AF16: 208.6513628 | AG16: 208.4425507 | AH16: 0.2088121597 | AI16: 495.530075 | AJ16: 495.2821867 | AK16: 0.2478882767 | AL16: 1149.619375 | AM16: 1149.397936 | AN16: 0.2214394237 | AR16: =LE(#REF!,AQ195:AQ213,AP195:AP213,19) -> 
A17: Females, by SIMD
A18: Females | F18: =SUM(F19:F23) -> 8689.2 | G18: =SUM(G19:G23) -> 0 | H18: 504.2308112 | I18: 83.39138831 | J18: 83.18124369 | K18: 344.1826298 | L18: 343.7166449 | M18: 811.0342782 | N18: 810.5822594 | O18: 1847.784978 | P18: 1847.522628 | Q18: 1895.050762 | R18: 1890.199158 | S18: 4.851604099 | T18: 7576.488441 | U18: 7565.254041 | V18: 11.23440076 | W18: 16959.27735 | X18: 16946.70722 | Y18: 12.57013449 | Z18: 34859.54584 | AA18: 34848.21959 | AB18: 11.32625415 | AC18: 2109.802933 | AD18: 2105.333777 | AE18: 4.469155345 | AF18: 8541.034559 | AG18: 8530.5757 | AH18: 10.45885843 | AI18: 19549.72933 | AJ18: 19538.05512 | AK18: 11.67420877 | AL18: 42269.44662 | AM18: 42259.39876 | AN18: 10.04786074 | AR18: =LE(#REF!,AQ45:AQ63,AP45:AP63,19) -> 
A19: Q 1 | B19: n/a | C19: female | D19: 1 | E19: =HLOOKUP('III Tool Overview'!$H$7,Prevalence!$B$2:$CH$268,Prevalence!CI17,FALSE) -> 0 | F19: =F107 -> 0 | G19: =G107 -> 0 | H19: =H107 -> 0 | I19: 0 | J19: 0 | K19: 0 | L19: =L107 -> 0 | M19: 0 | N19: 0 | O19: 0 | P19: 0 | Q19: 0 | R19: 0 | S19: 0 | T19: 0 | U19: 0 | V19: 0 | W19: 0 | X19: 0 | Y19: 0 | Z19: 0 | AA19: 0 | AB19: 0 | AC19: 0 | AD19: 0 | AE19: 0 | AF19: 0 | AG19: 0 | AH19: 0 | AI19: 0 | AJ19: 0 | AK19: 0 | AL19: 0 | AM19: 0 | AN19: 0 | AR19: =LE(#REF!,AQ87:AQ105,AP87:AP105,19) -> 
A20: Q 2 | B20: n/a | C20: female | D20: 2 | E20: =HLOOKUP('III Tool Overview'!$H$7,Prevalence!$B$2:$CH$268,Prevalence!CI18,FALSE) -> 0 | F20: =F150 -> 1883.6 | G20: =G150 -> 0 | H20: =H150 -> 123.8262057 | I20: 24.78547693 | J20: 24.71170659 | K20: 100.3726964 | L20: 100.2189078 | M20: 229.4515524 | N20: 229.3156905 | O20: 495.9803895 | P20: 495.9107299 | Q20: 554.1695468 | R20: 552.597997 | S20: 1.571549727 | T20: 2192.800571 | U20: 2189.262198 | V20: 3.538372556 | W20: 4837.895698 | X20: 4834.043531 | Y20: 3.852167334 | Z20: 9722.411634 | AA20: 9719.030673 | AB20: 3.380960053 | AC20: 556.7778303 | AD20: 555.4346325 | AE20: 1.343197801 | AF20: 2234.178698 | AG20: 2231.120324 | AH20: 3.058373217 | AI20: 5041.588276 | AJ20: 5038.291964 | AK20: 3.296312777 | AL20: 10615.62942 | AM20: 10612.88655 | AN20: 2.742876531 | AR20: =LE(#REF!,AQ130:AQ148,AP130:AP148,19) -> 
A21: Q 3 | B21: n/a | C21: female | D21: 3 | E21: =HLOOKUP('III Tool Overview'!$H$7,Prevalence!$B$2:$CH$268,Prevalence!CI19,FALSE) -> 0 | F21: =F193 -> 1830.8 | G21: =G193 -> 0 | H21: =H193 -> 87.6068929 | I21: 20.68012505 | J21: 20.64190583 | K21: 84.89779599 | L21: 84.81177895 | M21: 197.954626 | N21: 197.8698203 | O21: 440.3869933 | P21: 440.3378988 | Q21: 453.4280042 | R21: 452.5016223 | S21: 0.9263818659 | T21: 1802.76829 | U21: 1800.618604 | V21: 2.14968653 | W21: 3999.115273 | X21: 3996.722124 | Y21: 2.393148919 | Z21: 8097.789413 | AA21: 8095.668348 | AB21: 2.121064698 | AC21: 475.9159673 | AD21: 475.1078465 | AE21: 0.808120807 | AF21: 1919.68119 | AG21: 1917.787809 | AH21: 1.893380991 | AI21: 4365.959752 | AJ21: 4363.850408 | AK21: 2.109343518 | AL21: 9315.381986 | AM21: 9313.586317 | AN21: 1.795669315 | AR21: =LE(#REF!,AQ173:AQ191,AP173:AP191,19) -> 
A22: Q 4 | B22: n/a | C22: female | D22: 4 | E22: =HLOOKUP('III Tool Overview'!$H$7,Prevalence!$B$2:$CH$268,Prevalence!CI20,FALSE) -> 0 | F22: =F236 -> 4700.4 | G22: =G236 -> 0 | H22: =H236 -> 282.0372184 | I22: 36.47775996 | J22: 36.38164445 | K22: 152.7849685 | L22: 152.5638985 | M22: 368.5760918 | N22: 368.3507395 | O22: 874.2191984 | P22: 874.0802382 | Q22: 854.0530701 | R22: 851.7614592 | S22: 2.291610892 | T22: 3445.137773 | U22: 3439.742767 | V22: 5.395005637 | W22: 7810.090084 | X22: 7803.942873 | Y22: 6.14721153 | Z22: 16363.09419 | AA22: 16357.43323 | AB22: 5.660959676 | AC22: 1025.929412 | AD22: 1023.682518 | AE22: 2.246893913 | AF22: 4177.476914 | AG22: 4172.142899 | AH22: 5.334014567 | AI22: 9652.195768 | AJ22: 9646.131969 | AK22: 6.063798484 | AL22: 21232.7279 | AM22: 21227.40652 | AN22: 5.321380718 | AR22: =LE(#REF!,AQ216:AQ234,AP216:AP234,19) -> 
A23: Q 5 | B23: n/a | C23: female | D23: 5 | E23: =HLOOKUP('III Tool Overview'!$H$7,Prevalence!$B$2:$CH$268,Prevalence!CI21,FALSE) -> 0 | F23: =F279 -> 274.4 | G23: =G279 -> 0 | H23: =H279 -> 10.76049424 | I23: 1.448026377 | J23: 1.445986815 | K23: 6.127168974 | L23: 6.122059649 | M23: 15.05200797 | N23: 15.04600913 | O23: 37.19839684 | P23: 37.19376151 | Q23: 33.40014065 | R23: 33.33807903 | S23: 0.06206161435 | T23: 135.7818072 | U23: 135.6304711 | V23: 0.1513360389 | W23: 312.1762961 | X23: 311.9986894 | Y23: 0.1776067054 | Z23: 676.2506044 | AA23: 676.0873347 | AB23: 0.1632697234 | AC23: 51.17972301 | AD23: 51.10878018 | AE23: 0.07094282453 | AF23: 209.697757 | AG23: 209.5246674 | AH23: 0.1730896531 | AI23: 489.985531 | AJ23: 489.780777 | AK23: 0.2047539858 | AL23: 1105.70731 | AM23: 1105.519376 | AN23: 0.1879341721 | AR23: =LE(#REF!,AQ259:AQ277,AP259:AP277,19) -> 
A24: age/sex breakdown: All
A25: Male <1 | B25: 0.5 | C25: male | D25: all | F25: =F66+F109+F152+F195+F238 -> 107.8 | AP25: 0.1 | AQ25: 1
A26: Male 1-4 | B26: 2.5 | C26: male | D26: all | F26: =F67+F110+F153+F196+F239 -> 415.4 | AP26: 0.5 | AQ26: 4
A27: Male 5-9 | B27: 7.5 | C27: male | D27: all | F27: 488.2 | AP27: 0.5 | AQ27: 5
A28: Male 10-14 | B28: 12.5 | C28: male | D28: all | F28: 648 | AP28: 0.5 | AQ28: 5
A29: Male 15-19 | B29: 17.5 | C29: male | D29: all | F29: 633.8 | G29: =G70+G113+G156+G199+G242 -> 0 | H29: 10.94747037 | I29: 0.3233047883 | J29: =J70+J113+J156+J199+J242 -> 0.3230647827 | K29: 1.413366584 | L29: 1.412745414 | M29: 3.707035007 | N29: 3.706241862 | O29: 10.83549496 | P29: 10.83467694 | Q29: 26.18768785 | R29: 26.1682474 | S29: 0.01944045769 | T29: 112.2605854 | U29: 112.2109482 | V29: 0.04963722964 | W29: 284.0216664 | X29: 283.9590155 | Y29: 0.06265089976 | Z29: 761.8469017 | AA29: 761.7824773 | AB29: 0.06442437677 | AC29: 42.40729363 | AD29: 42.38151103 | AE29: 0.02578259928 | AF29: 179.1818142 | AG29: 179.1165565 | AH29: 0.06525776578 | AI29: 442.5418686 | AJ29: 442.4600413 | AK29: 0.08182727269 | AL29: 1133.093789 | AM29: 1133.009831 | AN29: 0.08395796648 | AP29: 0.5 | AQ29: 5
A30: Male 20-24 | B30: 22.5 | C30: male | D30: all | F30: 517.6 | G30: =G71+G114+G157+G200+G243 -> 0 | H30: 12.339221 | I30: 0.3567510713 | J30: 0.3564055213 | K30: 1.55908837 | L30: 1.558194701 | M30: 4.086517861 | N30: 4.085378574 | O30: 11.91990832 | P30: 11.9187391 | Q30: 27.46983249 | R30: 27.44322514 | S30: 0.02660735414 | T30: 117.59899 | U30: 117.5311515 | V30: 0.06783850417 | W30: 296.7568663 | X30: 296.6714223 | Y30: 0.08544391239 | Z30: 790.5271531 | AA30: 790.4396706 | AB30: 0.08748258295 | AC30: 40.06638243 | AD30: 40.03426852 | AE30: 0.03211391004 | AF30: 169.2407995 | AG30: 169.1595761 | AH30: 0.081223453 | AI30: 417.7360759 | AJ30: 417.6343802 | AK30: 0.1016956643 | AL30: 1067.645205 | AM30: 1067.541279 | AN30: 0.1039261667 | AP30: 0.5 | AQ30: 5
A31: Male 25-29 | B31: 27.5 | C31: male | D31: all | F31: 481 | G31: =G72+G115+G158+G201+G244 -> 0 | H31: 20.77099389 | I31: 0.5176679924 | J31: 0.5167596161 | K31: 2.260743755 | L31: 2.258398721 | M31: 5.916854469 | N31: 5.913876324 | O31: 17.17938363 | P31: 17.17636363 | Q31: 36.75442746 | R31: 36.68993274 | S31: 0.06449471529 | T31: 156.9603087 | U31: 156.7963622 | V31: 0.1639464945 | W31: 394.1928791 | X31: 393.9873409 | Y31: 0.2055381899 | Z31: 1036.625731 | AA31: 1036.417408 | AB31: 0.208322937 | AC31: 46.22894032 | AD31: 46.16166356 | AE31: 0.0672767677 | AF31: 195.144697 | AG31: 194.9748381 | AH31: 0.1698588736 | AI31: 481.0334208 | AJ31: 480.8215094 | AK31: 0.2119113586 | AL31: 1224.553026 | AM31: 1224.338547 | AN31: 0.2144789118 | AP31: 0.5 | AQ31: 5
A32: Male 30-34 | B32: 32.5 | C32: male | D32: all | F32: 471 | G32: =G73+G116+G159+G202+G245 -> 0 | H32: 19.61163243 | I32: 0.6805176079 | J32: 0.6793317895 | K32: 2.969976062 | L32: 2.966919338 | M32: 7.762289477 | N32: 7.758419717 | O32: 22.44058213 | P32: 22.43669653 | Q32: 45.59467973 | R32: 45.51522989 | S32: 0.07944983633 | T32: 194.3230069 | U32: 194.1215263 | V32: 0.2014806229 | W32: 486.1159667 | X32: 485.8643155 | Y32: 0.2516511275 | Z32: 1264.780501 | AA32: 1264.527494 | AB32: 0.2530067493 | AC32: 52.20775211 | AD32: 52.13149442 | AE32: 0.07625768531 | AF32: 220.2476857 | AG32: 220.0554321 | AH32: 0.1922535425 | AI32: 542.2305753 | AJ32: 541.9914335 | AK32: 0.2391417854 | AL32: 1375.196329 | AM32: 1374.956209 | AN32: 0.2401201062 | AP32: 0.5 | AQ32: 5
A33: Male 35-39 | B33: 37.5 | C33: male | D33: all | F33: 591.2 | G33: =G74+G117+G160+G203+G246 -> 0 | H33: 34.23866832 | I33: 1.289831125 | J33: 1.286928089 | K33: 5.621659089 | L33: 5.614197003 | M33: 14.65138739 | N33: 14.64199709 | O33: 41.98936296 | P33: 41.98010979 | Q33: 78.67969862 | R33: 78.50261341 | S33: =S74+S117+S160+S203+S246 -> 0.1770852153 | T33: 334.0965165 | U33: 333.6494094 | V33: 0.447107078 | W33: 829.7379326 | X33: 829.1833581 | Y33: 0.5545745083 | Z33: 2116.348199 | AA33: 2115.798832 | AB33: 0.5493674777 | AC33: 79.74443259 | AD33: 79.59001075 | AE33: 0.1544218435 | AF33: 336.0004103 | AG33: 335.6121698 | AH33: 0.3882405818 | AI33: 825.1142318 | AJ33: 824.6340032 | AK33: 0.480228594 | AL33: 2077.04053 | AM33: 2076.565533 | AN33: 0.474996718 | AP33: 0.5 | AQ33: 5
A34: Male 40-44 | B34: 42.5 | C34: male | D34: all | F34: 810.4 | G34: =G75+G118+G161+G204+G247 -> 0 | H34: 45.18685312 | I34: 2.340362657 | J34: 2.335352492 | K34: 10.18746684 | L34: 10.17462426 | M34: 26.48071692 | N34: 26.46465082 | O34: 75.27412388 | P34: 75.25858144 | Q34: 133.4006715 | R34: 133.115092 | S34: 0.2855794258 | T34: 564.7041008 | U34: 563.9859391 | V34: 0.7181616179 | W34: 1393.901578 | X34: 1393.016561 | Y34: 0.8850177669 | Z34: 3495.759563 | AA34: 3494.89498 | AB34: 0.8645831151 | AC34: 124.9826223 | AD34: 124.7509709 | AE34: 0.2316514049 | AF34: 525.9919431 | AG34: 525.4111202 | AH34: 0.5808228719 | AI34: 1288.58119 | AJ34: 1287.866712 | AK34: 0.7144772208 | AL34: 3220.887702 | AM34: 3220.191387 | AN34: 0.696315058 | AP34: 0.5 | AQ34: 5
A35: Male 45-49 | B35: 47.5 | C35: male | D35: all | F35: 819.4 | G35: =G76+G119+G162+G205+G248 -> 0 | H35: 55.76213011 | I35: 3.646872875 | J35: 3.637243436 | K35: 15.83023282 | L35: 15.80571764 | M35: 40.90780255 | N35: 40.87757477 | O35: 114.2198854 | P35: 114.1919361 | Q35: 185.9905166 | R35: 185.4994152 | S35: 0.4911013916 | T35: 782.544286 | U35: 781.3202856 | V35: 1.224000367 | W35: 1908.446969 | X35: 1906.961128 | Y35: 1.48584102 | Z35: 4628.817494 | AA35: 4627.412262 | AB35: 1.405231866 | AC35: 155.6723715 | AD35: 155.3187825 | AE35: 0.3535889929 | AF35: 653.448498 | AG35: 652.5678609 | AH35: 0.8806370927 | AI35: 1592.366183 | AJ35: 1591.297532 | AK35: 1.068651632 | AL35: 3919.071726 | AM35: 3918.067246 | AN35: 1.004479709 | AP35: 0.5 | AQ35: 5
A36: Male 50-54 | B36: 52.5 | C36: male | D36: all | F36: 754.4 | G36: =G77+G120+G163+G206+G249 -> 0 | H36: 51.66095991 | I36: 4.52387572 | J36: 4.511444692 | K36: 19.58216014 | L36: 19.55071448 | M36: 50.30877932 | N36: 50.27052839 | O36: 138.0101037 | P36: 137.9762009 | Q36: 212.6221588 | R36: 212.0379005 | S36: 0.5842583137 | T36: 889.7312254 | U36: 888.286747 | V36: 1.444478432 | W36: 2146.496654 | X36: 2144.766941 | Y36: 1.72971223 | Z36: 5052.625165 | AA36: 5051.034628 | AB36: 1.590536693 | AC36: 165.8116839 | AD36: 165.4189624 | AE36: 0.3927214989 | AF36: 694.2076493 | AG36: 693.2356625 | AH36: 0.9719868545 | AI36: 1682.817287 | AJ36: 1681.652675 | AK36: 1.164612216 | AL36: 4079.237705 | AM36: 4078.179122 | AN36: 1.058582459 | AP36: 0.5 | AQ36: 5
A37: Male 55-59 | B37: 57.5 | C37: male | D37: all | F37: 740.4 | G37: =G78+G121+G164+G207+G250 -> 0 | H37: 57.73199555 | I37: 6.841784716 | J37: 6.821303416 | K37: 29.44243173 | L37: 29.39129307 | M37: 74.72781589 | N37: 74.66730117 | O37: 197.7232826 | P37: 197.674041 | Q37: 280.5131733 | R37: 279.6734401 | S37: 0.839733263 | T37: 1161.226541 | U37: 1159.183503 | V37: 2.043038447 | W37: 2742.202468 | X37: 2739.820878 | Y37: 2.381590858 | Z37: 6087.560191 | AA37: 6085.477786 | AB37: 2.082405601 | AC37: 200.6732291 | AD37: 200.1493867 | AE37: 0.5238424111 | AF37: 835.6132238 | AG37: 834.3330276 | AH37: 1.280196226 | AI37: 2003.52357 | AJ37: 2002.02844 | AK37: 1.495129798 | AL37: 4707.839387 | AM37: 4706.567854 | AN37: 1.271532547 | AP37: 0.5 | AQ37: 5
A38: Male 60-64 | B38: 62.5 | C38: male | D38: all | F38: 744 | G38: =G79+G122+G165+G208+G251 -> 0 | H38: 54.3426415 | I38: 9.267432188 | J38: 9.241803799 | K38: 39.65204359 | L38: 39.58884164 | M38: 99.45736925 | N38: 99.38451109 | O38: 254.2475616 | P38: 254.192881 | Q38: 342.8949909 | R38: 341.9467406 | S38: 0.9482503701 | T38: 1405.477655 | U38: 1403.20456 | V38: 2.273094985 | W38: 3254.723792 | X38: 3252.138237 | Y38: 2.585555048 | Z38: 6855.139742 | AA38: 6852.968462 | AB38: 2.171279477 | AC38: 233.2445621 | AD38: 232.6762845 | AE38: 0.5682775854 | AF38: 966.0523181 | AG38: 964.6801662 | AH38: 1.372151896 | AI38: 2291.553297 | AJ38: 2289.989261 | AK38: 1.564036813 | AL38: 5226.530353 | AM38: 5225.280271 | AN38: 1.250082242 | AP38: 0.5 | AQ38: 5
A39: Male 65-69 | B39: 67.5 | C39: male | D39: all | F39: 624.2 | G39: =G80+G123+G166+G209+G252 -> 0 | H39: 48.31285182 | I39: 12.00651745 | J39: 11.97123764 | K39: 50.7520438 | L39: 50.66758878 | M39: 124.1990625 | N39: 124.1076168 | O39: 296.2362233 | P39: 296.1796218 | Q39: 372.2020409 | R39: 371.1083669 | S39: 1.093673967 | T39: 1494.913324 | U39: 1492.379573 | V39: 2.533750633 | W39: 3326.797474 | X39: 3324.07079 | Y39: 2.72668381 | Z39: 6318.056234 | AA39: 6315.926767 | AB39: 2.129466899 | AC39: 241.7398205 | AD39: 241.117861 | AE39: 0.6219594426 | AF39: 989.9952134 | AG39: 988.5362405 | AH39: 1.45897292 | AI39: 2296.452517 | AJ39: 2294.883386 | AK39: 1.569131232 | AL39: 4933.262884 | AM39: 4932.176616 | AN39: 1.086267986 | AP39: 0.5 | AQ39: 5
A40: Male 70-74 | B40: 72.5 | C40: male | D40: all | F40: 469 | G40: 0 | H40: 39.1056436 | I40: =I81+I124+I167+I210+I253 -> 12.06965686 | J40: 12.03069768 | K40: 50.42394415 | L40: 50.33315356 | M40: 120.5385737 | N40: 120.4456639 | O40: 270.0414034 | P40: 269.9929932 | Q40: 325.8807353 | R40: 324.8288373 | S40: 1.05189803 | T40: 1284.041717 | U40: 1281.678074 | V40: =V81+V124+V167+V210+V253 -> 2.363642614 | W40: 2753.739954 | X40: 2751.31197 | Y40: 2.427983833 | Z40: 4773.233618 | AA40: 4771.40005 | AB40: 1.833568008 | AC40: 209.5753754 | AD40: 208.9794412 | AE40: 0.5959342248 | AF40: 848.9754795 | AG40: 847.6133808 | AH40: 1.3620987 | AI40: 1928.041304 | AJ40: 1926.650356 | AK40: 1.390948436 | AL40: 3924.238518 | AM40: 3923.385931 | AN40: 0.8525867752 | AP40: 0.5 | AQ40: 5
A41: Male 75-79 | B41: 77.5 | C41: male | D41: all | F41: 317 | G41: 0 | H41: 20.72808139 | I41: 12.13950531 | J41: 12.10766089 | K41: 49.59547254 | L41: 49.52576547 | M41: 113.5028311 | N41: 113.4402425 | O41: 228.0532003 | P41: 228.0311885 | Q41: 254.9296115 | R41: 254.2608786 | S41: 0.6687329123 | T41: 966.2948825 | U41: 964.8928704 | V41: =V82+V125+V168+V211+V254 -> 1.402012081 | W41: 1924.848484 | X41: 1923.538223 | Y41: 1.31026104 | Z41: 2810.7523 | AA41: 2809.756983 | AB41: 0.995316953 | AC41: 171.4310184 | AD41: 171.0402531 | AE41: 0.3907652494 | AF41: 680.140876 | AG41: 679.2997619 | AH41: 0.8411141821 | AI41: 1484.626191 | AJ41: 1483.863096 | AK41: 0.7630950585 | AL41: 2750.088288 | AM41: 2749.723939 | AN41: 0.364349396 | AP41: 0.5 | AQ41: 5
A42: Male 80-84 | B42: 82.5 | C42: male | D42: all | F42: 212.2 | G42: 0 | H42: 14.33637732 | I42: 10.97434189 | J42: 10.94661258 | K42: 43.76241128 | L42: 43.70495594 | M42: 95.68876638 | N42: 95.64275041 | O42: 173.5235547 | P42: 173.5120474 | Q42: 186.5638122 | R42: 186.0924138 | S42: 0.4713983779 | T42: 678.4902481 | U42: 677.5603292 | V42: =V83+V126+V169+V212+V255 -> 0.9299188623 | W42: 1251.754012 | X42: 1250.938293 | Y42: 0.815719055 | Z42: 1560.508997 | AA42: 1559.833558 | AB42: 0.6754385992 | AC42: 133.4953739 | AD42: 133.1970732 | AE42: 0.2983007619 | AF42: 517.8370282 | AG42: 517.2275943 | AH42: 0.6094338896 | AI42: 1084.5537 | AJ42: 1084.05393 | AK42: 0.4997692955 | AL42: 1839.054797 | AM42: 1838.854942 | AN42: 0.1998543094 | AP42: 0.5 | AQ42: 5
A43: Male 85-89 | B43: 87.5 | C43: male | D43: all | F43: 105.6 | G43: 0 | H43: 7.258835763 | I43: 8.532691431 | J43: 8.511733673 | K43: 32.29271932 | L43: 32.2545286 | M43: 64.34580443 | N43: 64.32227616 | O43: 97.84980842 | P43: 97.84702126 | Q43: 93.85960574 | R43: 93.6290704 | S43: 0.2305353364 | T43: 308.3601618 | U43: 307.9643127 | V43: =V84+V127+V170+V213+V256 -> 0.3958491425 | W43: 472.728201 | X43: 472.4002276 | Y43: 0.3279734177 | Z43: 420.2175097 | AA43: 419.8619154 | AB43: 0.3555943298 | AC43: 83.41752262 | AD43: 83.23150916 | AE43: 0.1860134681 | AF43: 308.1940788 | AG43: 307.8566843 | AH43: 0.337394516 | AI43: 593.2035161 | AJ43: 592.9810479 | AK43: 0.2224681987 | AL43: 864.0186602 | AM43: 863.9472869 | AN43: 0.07137330888 | AP43: 0.5 | AQ43: =2/#REF! -> 
A44: Male 90+ | B44: 95 | C44: female | D44: all | F44: 32.4 | G44: 0 | H44: 3.434832669 | I44: 4.119871226 | J44: 4.106150967 | K44: 14.38091479 | L44: 14.36082249 | M44: 25.17307868 | N44: 25.16510267 | O44: 31.87936461 | P44: 31.87909429 | Q44: 16.4794849 | R44: 16.42460387 | S44: 0.05488103647 | T44: 37.69030852 | U44: 37.61572067 | V44: 0.07458785084 | W44: 18.96573106 | X44: 18.86720842 | Y44: 0.09852263204 | Z44: -34.09054248 | AA44: -34.24715185 | AB44: 0.1566093768 | AC44: 32.08958806 | AD44: 31.98857941 | AE44: 0.1010086587 | AF44: 109.8339106 | AG44: 109.6831217 | AH44: 0.1507889246 | AI44: 187.5210615 | AJ44: 187.4479681 | AK44: 0.0730934 | AL44: 232.3498047 | AM44: 232.3237883 | AN44: 0.02601640509
A45: Female <1 | B45: 0.5 | C45: female | D45: all | F45: =F87+F130+F173+F216+F259 -> 100.2 | AP45: 0.1 | AQ45: 1
A46: Female 1-4 | B46: 2.5 | C46: female | D46: all | F46: =F88+F131+F174+F217+F260 -> 402.2 | AP46: 0.5 | AQ46: 4
A47: Female 5-9 | B47: 7.5 | C47: female | D47: all | F47: 491.8 | AP47: 0.5 | AQ47: 5
A48: Female 10-14 | B48: 12.5 | C48: female | D48: all | F48: 581.6 | AP48: 0.5 | AQ48: 5
A49: Female 15-19 | B49: 17.5 | C49: female | D49: all | F49: 628.2 | G49: =G91+G134+G177+G220+G263 -> 0 | H49: 16.31694645 | I49: 0.1321821445 | J49: 0.1320403521 | K49: 0.5869154543 | L49: 0.5865441062 | M49: 1.583301033 | N49: 1.582821193 | O49: 4.93587243 | P49: 4.935371423 | Q49: 10.7067537 | R49: 10.69526852 | S49: 0.01148518677 | T49: 46.61018275 | U49: 46.58051321 | V49: 0.02966954475 | W49: 121.2046555 | X49: 121.1667792 | Y49: 0.03787626535 | Z49: 345.6540861 | AA49: 345.6147219 | AB49: 0.03936416311 | AC49: 60.7990939 | AD49: 60.74507774 | AE49: 0.05401615976 | AF49: 252.9978263 | AG49: 252.8624053 | AH49: 0.1354209724 | AI49: 608.6045838 | AJ49: 608.4357934 | AK49: 0.1687903266 | AL49: 1473.804433 | AM49: 1473.63045 | AN49: 0.1739834515 | AP49: 0.5 | AQ49: 5
A50: Female 20-24 | B50: 22.5 | C50: female | D50: all | F50: 450.4 | G50: =G92+G135+G178+G221+G264 -> 0 | H50: 17.17960598 | I50: 0.132912133 | J50: 0.132696788 | K50: 0.5900663135 | L50: 0.5895025684 | M50: 1.591266221 | N50: 1.590538441 | O50: 4.955087777 | P50: 4.954330241 | Q50: 10.23423424 | R50: 10.21765267 | S50: 0.01658156789 | T50: 44.50021729 | U50: 44.45743054 | V50: 0.04278674979 | W50: 115.4505836 | X50: 115.3960442 | Y50: 0.05453941736 | Z50: 327.20411 | AA50: 327.1475901 | AB50: 0.05651987762 | AC50: 48.3747299 | AD50: 48.31022149 | AE50: 0.06450840603 | AF50: 201.2692398 | AG50: 201.1075785 | AH50: 0.1616613266 | AI50: 484.026517 | AJ50: 483.82518 | AK50: 0.2013369408 | AL50: 1171.068963 | AM50: 1170.861846 | AN50: 0.2071172703 | AP50: 0.5 | AQ50: 5
A51: Female 25-29 | B51: 27.5 | C51: female | D51: all | F51: 468 | G51: =G93+G136+G179+G222+G265 -> 0 | H51: 25.41371758 | I51: 0.2264047971 | J51: 0.2258996822 | K51: 1.004778539 | L51: 1.003457202 | M51: 2.707574392 | N51: 2.705871388 | O51: 8.409516494 | P51: 8.407753709 | Q51: 16.07474059 | R51: 16.03887744 | S51: 0.0358631558 | T51: 69.74760789 | U51: 69.6552488 | V51: 0.09235908724 | W51: 180.2010682 | X51: 180.0836513 | Y51: 0.1174168994 | Z51: 504.9522113 | AA51: 504.8311385 | AB51: 0.1210727946 | AC51: 58.4139904 | AD51: 58.30355651 | AE51: 0.1104338968 | AF51: 242.9621516 | AG51: 242.6855947 | AH51: 0.2765569383 | AI51: 583.908713 | AJ51: 583.5647692 | AK51: 0.3439438676 | AL51: 1409.865409 | AM51: 1409.512848 | AN51: 0.3525615158 | AP51: 0.5 | AQ51: 5
A52: Female 30-34 | B52: 32.5 | C52: female | D52: all | F52: 518.6 | G52: =G94+G137+G180+G223+G266 -> 0 | H52: 24.47746222 | I52: 0.3448806061 | J52: 0.3442330262 | K52: 1.530062458 | L52: 1.528369822 | M52: 4.120054874 | N52: 4.117877235 | O52: 12.76527926 | P52: 12.76303881 | Q52: 23.10700061 | R52: 23.06361276 | S52: 0.04338785389 | T52: 100.0908239 | U52: 99.97928065 | V52: 0.1115432173 | W52: 257.7346614 | X52: 257.5932125 | Y52: 0.1414488936 | Z52: 715.572558 | AA52: 715.4274621 | AB52: 0.14509593 | AC52: 71.03242032 | AD52: 70.92005267 | AE52: 0.1123676493 | AF52: 295.3570208 | AG52: 295.0758412 | AH52: 0.2811796113 | AI52: 709.3832189 | AJ52: 709.0340715 | AK52: 0.3491473944 | AL52: 1709.517114 | AM52: 1709.160619 | AN52: 0.3564947781 | AP52: 0.5 | AQ52: 5
A53: Female 35-39 | B53: 37.5 | C53: female | D53: all | F53: 658 | G53: =G95+G138+G181+G224+G267 -> 0 | H53: 32.64295744 | I53: 0.7134633504 | J53: 0.7120359085 | K53: 3.162840627 | L53: 3.15911626 | M53: 8.502338038 | N53: 8.497565355 | O53: 26.19431902 | P53: 26.18947365 | Q53: 43.52126438 | R53: 43.43419042 | S53: 0.08707395754 | T53: 187.9258344 | U53: 187.7027405 | V53: 0.2230938995 | W53: 480.8926937 | X53: 480.6112329 | Y53: 0.2814607785 | Z53: 1311.844984 | AA53: 1311.559407 | AB53: 0.2855769095 | AC53: 104.3054361 | AD53: 104.1275241 | AE53: 0.1779119712 | AF53: 433.404968 | AG53: 432.9605331 | AH53: 0.4444348895 | AI53: 1039.431685 | AJ53: 1038.881692 | AK53: 0.5499932549 | AL53: 2493.720585 | AM53: 2493.163774 | AN53: 0.5568108143 | AP53: 0.5 | AQ53: 5
A54: Female 40-44 | B54: 42.5 | C54: female | D54: all | F54: 795.6 | G54: =G96+G139+G182+G225+G268 -> 0 | H54: 41.14766135 | I54: 1.178863653 | J54: 1.176427622 | K54: 5.222208036 | L54: 5.215863309 | M54: 14.0160696 | N54: 14.00797049 | O54: 42.95267758 | P54: 42.94456213 | Q54: 67.19522825 | R54: 67.05637445 | S54: 0.1388537994 | T54: 289.4010514 | U54: 289.0463611 | V54: 0.354690318 | W54: 736.7372241 | X54: 736.2918439 | Y54: 0.4453802387 | Z54: 1980.32984 | AA54: 1979.882569 | AB54: 0.4472711544 | AC54: 137.8947168 | AD54: 137.6523232 | AE54: 0.2423935983 | AF54: 572.5960113 | AG54: 571.991515 | AH54: 0.6044963029 | AI54: 1371.37368 | AJ54: 1370.628114 | AK54: 0.7455657722 | AL54: 3276.322058 | AM54: 3275.573535 | AN54: 0.7485224882 | AP54: 0.5 | AQ54: 5
A55: Female 45-49 | B55: 47.5 | C55: female | D55: all | F55: 790.8 | G55: =G97+G140+G183+G226+G269 -> 0 | H55: 51.22843872 | I55: 1.931105675 | J55: 1.926081348 | K55: 8.539452845 | L55: 8.526422403 | M55: 22.83118842 | N55: 22.81471033 | O55: 69.07529481 | P55: 69.05929829 | Q55: 98.48638941 | R55: 98.23014874 | S55: 0.2562406698 | T55: 422.0094724 | U55: 421.3591484 | V55: 0.6503240129 | W55: 1063.311449 | X55: 1062.503448 | Y55: 0.8080006872 | Z55: 2774.233264 | AA55: 2773.440678 | AB55: 0.7925868719 | AC55: 159.7447668 | AD55: 159.3914506 | AE55: 0.3533162049 | AF55: 662.2647707 | AG55: 661.3872315 | AH55: 0.8775392107 | AI55: 1580.87188 | AJ55: 1579.798305 | AK55: 1.073575071 | AL55: 3738.820809 | AM55: 3737.764418 | AN55: 1.056391076 | AP55: 0.5 | AQ55: 5
A56: Female 50-54 | B56: 52.5 | C56: female | D56: all | F56: 765.6 | G56: =G98+G141+G184+G227+G270 -> 0 | H56: 43.98390626 | I56: 2.603541293 | J56: 2.597564548 | K56: 11.49273572 | L56: 11.47729856 | M56: 30.60945933 | N56: 30.59011315 | O56: 91.44184577 | P56: 91.42362739 | Q56: 122.3664408 | R56: 122.0855337 | S56: 0.2809070139 | T56: 522.0025387 | U56: 521.2937758 | V56: 0.7087628874 | W56: 1303.404444 | X56: 1302.532372 | Y56: 0.8720712457 | Z56: 3312.01135 | AA56: 3311.173719 | AB56: 0.8376306568 | AC56: 171.1004391 | AD56: 170.7650821 | AE56: 0.3353570351 | AF56: 708.2093825 | AG56: 707.3796954 | AH56: 0.8296871147 | AI56: 1684.96269 | AJ56: 1683.955515 | AK56: 1.007174917 | AL56: 3945.381827 | AM56: 3944.409449 | AN56: 0.9723777186 | AP56: 0.5 | AQ56: 5
A57: Female 55-59 | B57: 57.5 | C57: female | D57: all | F57: 724.8 | G57: =G99+G142+G185+G228+G271 -> 0 | H57: 49.91994929 | I57: 4.032153331 | J57: 4.021198868 | K57: 17.72875434 | L57: 17.70071801 | M57: 46.81482214 | N57: 46.78038722 | O57: 135.9877003 | P57: 135.9573967 | Q57: 165.3182866 | R57: 164.8691536 | S57: 0.4491329763 | T57: 698.9279625 | U57: 697.808658 | V57: 1.119304524 | W57: 1713.514658 | X57: 1712.16574 | Y57: 1.348918089 | Z57: 4127.064639 | AA57: 4125.822678 | AB57: 1.241961008 | AC57: 187.9348056 | AD57: 187.4952445 | AE57: 0.4395611242 | AF57: 775.0959506 | AG57: 774.0179058 | AH57: 1.078044799 | AI57: 1830.480906 | AJ57: 1829.194728 | AK57: 1.286178286 | AL57: 4192.410784 | AM57: 4191.219757 | AN57: 1.191026249 | AP57: 0.5 | AQ57: 5
A58: Female 60-64 | B58: 62.5 | C58: female | D58: all | F58: 724.4 | G58: =G100+G143+G186+G229+G272 -> 0 | H58: 49.16753667 | I58: 5.639282496 | J58: 5.624454081 | K58: 24.69364588 | L58: 24.65604192 | M58: 64.63240426 | N58: 64.58714305 | O58: 182.4896753 | P58: 182.4524574 | Q58: 208.6534523 | R58: 208.104801 | S58: 0.5486513524 | T58: 874.8150682 | U58: 873.4638058 | V58: 1.351262371 | W58: 2108.499015 | X58: 2106.902605 | Y58: 1.596409819 | Z58: 4832.732519 | AA58: 4831.315839 | AB58: 1.416680087 | AC58: 208.5826717 | AD58: 208.1080055 | AE58: 0.4746662368 | AF58: 857.0631879 | AG58: 855.909201 | AH58: 1.1539869 | AI58: 2008.709509 | AJ58: 2007.356413 | AK58: 1.353096094 | AL58: 4499.280483 | AM58: 4498.077525 | AN58: 1.20295795 | AP58: 0.5 | AQ58: 5
A59: Female 65-69 | B59: 67.5 | C59: female | D59: all | F59: 655.4 | G59: =G101+G144+G187+G230+G273 -> 0 | H59: 48.84742299 | I59: 8.365574222 | J59: 8.341619206 | K59: 36.30029707 | L59: 36.2408097 | M59: 93.18248778 | N59: 93.11410898 | O59: 247.5983962 | P59: 247.550154 | Q59: 259.3328009 | R59: 258.5901954 | S59: 0.7426054714 | T59: 1068.466919 | U59: 1066.684753 | V59: 1.782166066 | W59: 2485.135231 | X59: 2483.117954 | Y59: 2.017276489 | Z59: 5144.501009 | AA59: 5142.822136 | AB59: 1.678873516 | AC59: 219.3967216 | AD59: 218.8482215 | AE59: 0.5485000739 | AF59: 894.0655642 | AG59: 892.7582475 | AH59: 1.307316662 | AI59: 2060.510025 | AJ59: 2059.035801 | AK59: 1.474224476 | AL59: 4400.161819 | AM59: 4398.960881 | AN59: 1.200938103 | AP59: 0.5 | AQ59: 5
A60: Female 70-74 | B60: 72.5 | C60: female | D60: all | F60: 505.2 | G60: 0 | H60: 41.28229035 | I60: 8.931254672 | J60: 8.903173006 | K60: 38.40687768 | L60: 38.33853666 | M60: 96.72997689 | N60: 96.65482229 | O60: 242.7380792 | P60: 242.6922909 | Q60: 241.1438761 | R60: 240.3856711 | S60: 0.7582049959 | T60: 977.1274979 | U60: 975.3518048 | V60: =V102+V145+V188+V231+V274 -> 1.775693066 | W60: 2197.311226 | X60: 2195.377279 | Y60: 1.933947089 | Z60: 4143.215331 | AA60: 4141.664709 | AB60: 1.550622412 | AC60: 186.7592135 | AD60: 186.243296 | AE60: 0.5159174606 | AF60: 754.849394 | AG60: 753.6430043 | AH60: 1.206389686 | AI60: 1711.319256 | AJ60: 1710.008732 | AK60: 1.310524552 | AL60: 3494.79967 | AM60: 3493.812791 | AN60: 0.986878968 | AP60: 0.5 | AQ60: 5
A61: Female 75-79 | B61: 77.5 | C61: female | D61: all | F61: 394.8 | G61: 0 | H61: 24.49555512 | I61: 11.38551809 | J61: 11.35813625 | K61: 47.97233607 | L61: 47.90890933 | M61: 115.831846 | N61: 115.7692156 | O61: 258.1606346 | P61: 258.1337752 | Q61: 239.0958798 | R61: 238.5208613 | S61: 0.5750185062 | T61: 933.4575792 | U61: 932.1863033 | V61: =V103+V146+V189+V232+V275 -> 1.27127598 | W61: 1948.422305 | X61: 1947.148441 | Y61: 1.273864143 | Z61: 3024.477191 | AA61: 3023.470621 | AB61: 1.006569637 | AC61: 169.6128712 | AD61: 169.253621 | AE61: 0.3592501685 | AF61: 672.9279845 | AG61: 672.1259013 | AH61: 0.8020832339 | AI61: 1471.002051 | AJ61: 1470.204956 | AK61: 0.7970950486 | AL61: 2738.903724 | AM61: 2738.394261 | AN61: 0.5094620882 | AP61: 0.5 | AQ61: 5
A62: Female 80-84 | B62: 82.5 | C62: female | D62: all | F62: 292.2 | G62: 0 | H62: 18.68503548 | I62: 11.64833843 | J62: 11.62069149 | K62: 48.10609502 | L62: 48.04526646 | M62: 111.571402 | N62: 111.5176999 | O62: 224.2461362 | P62: 224.2301247 | Q62: 198.0217534 | R62: 197.5517554 | S62: 0.46999798 | T62: 744.4371541 | U62: 743.4573015 | V62: =V104+V147+V190+V233+V276 -> 0.9798525852 | W62: 1442.050675 | X62: 1441.135467 | Y62: 0.9152072821 | Z62: 1868.272454 | AA62: 1867.501181 | AB62: 0.7712734515 | AC62: 138.6740612 | AD62: 138.3844174 | AE62: 0.2896437286 | AF62: 540.2027467 | AG62: 539.5865077 | AH62: 0.616239024 | AI62: 1140.409438 | AJ62: 1139.850309 | AK62: 0.5591291818 | AL62: 1959.822473 | AM62: 1959.51009 | AN62: 0.3123828523 | AP62: 0.5 | AQ62: 5
A63: Female 85-89 | B63: 87.5 | C63: female | D63: all | F63: 194.2 | G63: 0 | H63: 11.31077642 | I63: 12.46985814 | J63: 12.44215643 | K63: 49.28173629 | L63: 49.2277493 | M63: 105.0552126 | N63: 105.0185251 | O63: 175.2701667 | P63: 175.2653761 | Q63: 137.1684395 | R63: 136.8637207 | S63: 0.304718804 | T63: 468.7728244 | U63: 468.218277 | V63: =V105+V148+V191+V234+V277 -> 0.5545473282 | W63: 751.5151886 | X63: 751.0371788 | Y63: 0.4780097861 | Z63: 628.2497625 | AA63: 627.7240085 | AB63: 0.5257539945 | AC63: 106.704268 | AD63: 106.4939519 | AE63: 0.2103160725 | AF63: 399.241122 | AG63: 398.840711 | AH63: 0.4004110205 | AI63: 783.3503915 | AJ63: 783.0526742 | AK63: 0.2977173459 | AL63: 1166.059326 | AM63: 1165.918126 | AN63: 0.1412000828 | AP63: 0.5 | AQ63: =2/#REF! -> 
A64: Female 90+ | B64: 95 | C64: female | D64: all | F64: 123 | G64: 0 | H64: 8.13154892 | I64: 13.65605528 | J64: 13.62283508 | K64: 49.56382748 | L64: 49.51203929 | M64: 91.25487458 | N64: 91.23288965 | O64: 120.5642964 | P64: 120.5635979 | Q64: 54.62422113 | R64: 54.49134032 | S64: 0.1328808078 | T64: 128.1957076 | U64: 128.0086384 | V64: 0.1870691244 | W64: 53.89227346 | X64: 53.64396609 | Y64: 0.2483073664 | Z64: -180.7694651 | AA64: -181.1788668 | AB64: 0.4094016854 | AC64: 80.47272641 | AD64: 80.29173085 | AE64: 0.1809955586 | AF64: 278.5272377 | AG64: 278.243827 | AH64: 0.2834107371 | AI64: 481.3847817 | AJ64: 481.2280655 | AK64: 0.1567162364 | AL64: 599.507145 | AM64: 599.4283897 | AN64: 0.07875533109
A65: age/sex breakdown: Q1
A66: Male <1 | B66: 0.5 | C66: male | D66: 1 | F66: =HLOOKUP('III Tool Overview'!$H$7,LookUpData_Pop!$B$1:$AV$269,LookUpData_Pop!BB67,FALSE)/5 -> 0 | AP66: 0.1 | AQ66: 1
A67: Male 1-4 | B67: 2.5 | C67: male | D67: 1 | F67: =HLOOKUP('III Tool Overview'!$H$7,LookUpData_Pop!$B$1:$AV$269,LookUpData_Pop!BB68,FALSE)/5 -> 0 | AP67: 0.5 | AQ67: 4
A68: Male 5-9 | B68: 7.5 | C68: male | D68: 1 | F68: =HLOOKUP('III Tool Overview'!$H$7,LookUpData_Pop!$B$1:$AV$269,LookUpData_Pop!BB69,FALSE)/5 -> 0 | AP68: 0.5 | AQ68: 5
A69: Male 10-14 | B69: 12.5 | C69: male | D69: 1 | F69: =HLOOKUP('III Tool Overview'!$H$7,LookUpData_Pop!$B$1:$AV$269,LookUpData_Pop!BB70,FALSE)/5 -> 0 | AP69: 0.5 | AQ69: 5
A70: Male 15-19 | B70: 17.5 | C70: male | D70: 1 | E70: =HLOOKUP('III Tool Overview'!$H$7,Prevalence!$B$2:$CH$268,Prevalence!CI66,FALSE) -> 0.1966576889 | F70: =HLOOKUP('III Tool Overview'!$H$7,LookUpData_Pop!$B$1:$AV$269,LookUpData_Pop!BB71,FALSE)/5 -> 0 | G70: ='III Tool Overview'!$H$10/110 -> 0 | H70: =IF('III Tool Overview'!$H$11="Even distribution",Targeting!C68,IF('III Tool Overview'!$H$11="Targeting to Q1",Targeting!D68,IF('III Tool Overview'!$H$11="Targeting to Q1 & Q2",Targeting!E68,IF('III Tool Overview'!$H$11="Proportionate to need",Targeting!F68)))) -> 0 | I70: =IF('III Tool Overview'!$H$7="Orkney Health Board",0,IF('III Tool Overview'!$H$7="Shetland Health Board",0,IF('III Tool Overview'!$H$7="Western Isles Health Board",0,IF('III Tool Overview'!$H$7="Orkney Islands Local Authority",0,IF('III Tool Overview'!$H$7="Shetland Islands Local Authority",0,IF('III Tool Overview'!$H$7="Eilean Siar Local Authority",0,new_ci(2,B70,C70,D70,$C$1,G70,1,F70,E70*F70))))))) -> 0 | J70: =IF('III Tool Overview'!$H$7="Orkney Health Board",0,IF('III Tool Overview'!$H$7="Shetland Health Board",0,IF('III Tool Overview'!$H$7="Western Isles Health Board",0,IF('III Tool Overview'!$H$7="Orkney Islands Local Authority",0,IF('III Tool Overview'!$H$7="Shetland Islands Local Authority",0,IF('III Tool Overview'!$H$7="Eilean Siar Local Authority",0,new_ci(2,B70,C70,D70,$C$1,G70+H70,1,F70,E70*F70))))))) -> 0 | K70: =IF('III Tool Overview'!$H$7="Orkney Health Board",0,IF('III Tool Overview'!$H$7="Shetland Health Board",0,IF('III Tool Overview'!$H$7="Western Isles Health Board",0,IF('III Tool Overview'!$H$7="Orkney Islands Local Authority",0,IF('III Tool Overview'!$H$7="Shetland Islands Local Authority",0,IF('III Tool Overview'!$H$7="Eilean Siar Local Authority",0,new_ci(5,B70,C70,D70,$C$1,G70,1,F70,E70*F70))))))) -> 0 | L70: =IF('III Tool Overview'!$H$7="Orkney Health Board",0,IF('III Tool Overview'!$H$7="Shetland Health Board",0,IF('III Tool Overview'!$H$7="Western Isles Health Board",0,IF('III Tool Overview'!$H$7="Orkney Islands Local Authority",0,IF('III Tool Overview'!$H$7="Shetland Islands Local Authority",0,IF('III Tool Overview'!$H$7="Eilean Siar Local Authority",0,new_ci(5,B70,C70,D70,$C$1,G70+H70,1,F70,E70*F70))))))) -> 0 | M70: =IF('III Tool Overview'!$H$7="Orkney Health Board",0,IF('III Tool Overview'!$H$7="Shetland Health Board",0,IF('III Tool Overview'!$H$7="Western Isles Health Board",0,IF('III Tool Overview'!$H$7="Orkney Islands Local Authority",0,IF('III Tool Overview'!$H$7="Shetland Islands Local Authority",0,IF('III Tool Overview'!$H$7="Eilean Siar Local Authority",0,new_ci(10,B70,C70,D70,$C$1,G70,1,F70,E70*F70))))))) -> 0 | N70: =IF('III Tool Overview'!$H$7="Orkney Health Board",0,IF('III Tool Overview'!$H$7="Shetland Health Board",0,IF('III Tool Overview'!$H$7="Western Isles Health Board",0,IF('III Tool Overview'!$H$7="Orkney Islands Local Authority",0,IF('III Tool Overview'!$H$7="Shetland Islands Local Authority",0,IF('III Tool Overview'!$H$7="Eilean Siar Local Authority",0,new_ci(10,B70,C70,D70,$C$1,G70+H70,1,F70,E70*F70))))))) -> 0 | O70: =IF('III Tool Overview'!$H$7="Orkney Health Board",0,IF('III Tool Overview'!$H$7="Shetland Health Board",0,IF('III Tool Overview'!$H$7="Western Isles Health Board",0,IF('III Tool Overview'!$H$7="Orkney Islands Local Authority",0,IF('III Tool Overview'!$H$7="Shetland Islands Local Authority",0,IF('III Tool Overview'!$H$7="Eilean Siar Local Authority",0,new_ci(20,B70,C70,D70,$C$1,G70,1,F70,E70*F70))))))) -> 0 | P70: =IF('III Tool Overview'!$H$7="Orkney Health Board",0,IF('III Tool Overview'!$H$7="Shetland Health Board",0,IF('III Tool Overview'!$H$7="Western Isles Health Board",0,IF('III Tool Overview'!$H$7="Orkney Islands Local Authority",0,IF('III Tool Overview'!$H$7="Shetland Islands Local Authority",0,IF('III Tool Overview'!$H$7="Eilean Siar Local Authority",0,new_ci(20,B70,C70,D70,$C$1,G70+H70,1,F70,E70*F70))))))) -> 0 | Q70: =IF('III Tool Overview'!$H$7="Orkney Health Board",0,IF('III Tool Overview'!$H$7="Shetland Health Board",0,IF('III Tool Overview'!$H$7="Western Isles Health Board",0,IF('III Tool Overview'!$H$7="Orkney Islands Local Authority",0,IF('III Tool Overview'!$H$7="Shetland Islands Local Authority",0,IF('III Tool Overview'!$H$7="Eilean Siar Local Authority",0,new_yll(2,B70,C70,D70,$C$1,G70,1,F70,E70*F70))))))) -> 0 | R70: =IF('III Tool Overview'!$H$7="Orkney Health Board",0,IF('III Tool Overview'!$H$7="Shetland Health Board",0,IF('III Tool Overview'!$H$7="Western Isles Health Board",0,IF('III Tool Overview'!$H$7="Orkney Islands Local Authority",0,IF('III Tool Overview'!$H$7="Shetland Islands Local Authority",0,IF('III Tool Overview'!$H$7="Eilean Siar Local Authority",0,new_yll(2,B70,C70,D70,$C$1,G70+H70,1,F70,E70*F70))))))) -> 0 | S70: =Q70-R70 -> 0 | T70: =IF('III Tool Overview'!$H$7="Orkney Health Board",0,IF('III Tool Overview'!$H$7="Shetland Health Board",0,IF('III Tool Overview'!$H$7="Western Isles Health Board",0,IF('III Tool Overview'!$H$7="Orkney Islands Local Authority",0,IF('III Tool Overview'!$H$7="Shetland Islands Local Authority",0,IF('III Tool Overview'!$H$7="Eilean Siar Local Authority",0,new_yll(5,B70,C70,D70,$C$1,G70,1,F70,E70*F70))))))) -> 0 | U70: =IF('III Tool Overview'!$H$7="Orkney Health Board",0,IF('III Tool Overview'!$H$7="Shetland Health Board",0,IF('III Tool Overview'!$H$7="Western Isles Health Board",0,IF('III Tool Overview'!$H$7="Orkney Islands Local Authority",0,IF('III Tool Overview'!$H$7="Shetland Islands Local Authority",0,IF('III Tool Overview'!$H$7="Eilean Siar Local Authority",0,new_yll(5,B70,C70,D70,$C$1,G70+H70,1,F70,E70*F70))))))) -> 0 | V70: =T70-U70 -> 0 | W70: =IF('III Tool Overview'!$H$7="Orkney Health Board",0,IF('III Tool Overview'!$H$7="Shetland Health Board",0,IF('III Tool Overview'!$H$7="Western Isles Health Board",0,IF('III Tool Overview'!$H$7="Orkney Islands Local Authority",0,IF('III Tool Overview'!$H$7="Shetland Islands Local Authority",0,IF('III Tool Overview'!$H$7="Eilean Siar Local Authority",0,new_yll(10,B70,C70,D70,$C$1,G70,1,F70,E70*F70))))))) -> 0 | X70: =IF('III Tool Overview'!$H$7="Orkney Health Board",0,IF('III Tool Overview'!$H$7="Shetland Health Board",0,IF('III Tool Overview'!$H$7="Western Isles Health Board",0,IF('III Tool Overview'!$H$7="Orkney Islands Local Authority",0,IF('III Tool Overview'!$H$7="Shetland Islands Local Authority",0,IF('III Tool Overview'!$H$7="Eilean Siar Local Authority",0,new_yll(10,B70,C70,D70,$C$1,G70+H70,1,F70,E70*F70))))))) -> 0 | Y70: =W70-X70 -> 0 | Z70: =IF('III Tool Overview'!$H$7="Orkney Health Board",0,IF('III Tool Overview'!$H$7="Shetland Health Board",0,IF('III Tool Overview'!$H$7="Western Isles Health Board",0,IF('III Tool Overview'!$H$7="Orkney Islands Local Authority",0,IF('III Tool Overview'!$H$7="Shetland Islands Local Authority",0,IF('III Tool Overview'!$H$7="Eilean Siar Local Authority",0,new_yll(20,B70,C70,D70,$C$1,G70,1,F70,E70*F70))))))) -> 0 | AA70: =IF('III Tool Overview'!$H$7="Orkney Health Board",0,IF('III Tool Overview'!$H$7="Shetland Health Board",0,IF('III Tool Overview'!$H$7="Western Isles Health Board",0,IF('III Tool Overview'!$H$7="Orkney Islands Local Authority",0,IF('III Tool Overview'!$H$7="Shetland Islands Local Authority",0,IF('III Tool Overview'!$H$7="Eilean Siar Local Authority",0,new_yll(20,B70,C70,D70,$C$1,G70+H70,1,F70,E70*F70))))))) -> 0 | AB70: =Z70-AA70 -> 0 | AC70: =IF('III Tool Overview'!$H$7="Orkney Health Board",0,IF('III Tool Overview'!$H$7="Shetland Health Board",0,IF('III Tool Overview'!$H$7="Western Isles Health Board",0,IF('III Tool Overview'!$H$7="Orkney Islands Local Authority",0,IF('III Tool Overview'!$H$7="Shetland Islands Local Authority",0,IF('III Tool Overview'!$H$7="Eilean Siar Local Authority",0,hosp_count(2,B70,C70,D70,$C$1,G70,1,F70,E70*F70))))))) -> 0 | AD70: =IF('III Tool Overview'!$H$7="Orkney Health Board",0,IF('III Tool Overview'!$H$7="Shetland Health Board",0,IF('III Tool Overview'!$H$7="Western Isles Health Board",0,IF('III Tool Overview'!$H$7="Orkney Islands Local Authority",0,IF('III Tool Overview'!$H$7="Shetland Islands Local Authority",0,IF('III Tool Overview'!$H$7="Eilean Siar Local Authority",0,hosp_count(2,B70,C70,D70,$C$1,G70+H70,1,F70,E70*F70))))))) -> 0 | AE70: =AC70-AD70 -> 0 | AF70: =IF('III Tool Overview'!$H$7="Orkney Health Board",0,IF('III Tool Overview'!$H$7="Shetland Health Board",0,IF('III Tool Overview'!$H$7="Western Isles Health Board",0,IF('III Tool Overview'!$H$7="Orkney Islands Local Authority",0,IF('III Tool Overview'!$H$7="Shetland Islands Local Authority",0,IF('III Tool Overview'!$H$7="Eilean Siar Local Authority",0,hosp_count(5,B70,C70,D70,$C$1,G70,1,F70,E70*F70))))))) -> 0 | AG70: =IF('III Tool Overview'!$H$7="Orkney Health Board",0,IF('III Tool Overview'!$H$7="Shetland Health Board",0,IF('III Tool Overview'!$H$7="Western Isles Health Board",0,IF('III Tool Overview'!$H$7="Orkney Islands Local Authority",0,IF('III Tool Overview'!$H$7="Shetland Islands Local Authority",0,IF('III Tool Overview'!$H$7="Eilean Siar Local Authority",0,hosp_count(5,B70,C70,D70,$C$1,G70+H70,1,F70,E70*F70))))))) -> 0 | AH70: =AF70-AG70 -> 0 | AI70: =IF('III Tool Overview'!$H$7="Orkney Health Board",0,IF('III Tool Overview'!$H$7="Shetland Health Board",0,IF('III Tool Overview'!$H$7="Western Isles Health Board",0,IF('III Tool Overview'!$H$7="Orkney Islands Local Authority",0,IF('III Tool Overview'!$H$7="Shetland Islands Local Authority",0,IF('III Tool Overview'!$H$7="Eilean Siar Local Authority",0,hosp_count(10,B70,C70,D70,$C$1,G70,1,F70,E70*F70))))))) -> 0 | AJ70: =IF('III Tool Overview'!$H$7="Orkney Health Board",0,IF('III Tool Overview'!$H$7="Shetland Health Board",0,IF('III Tool Overview'!$H$7="Western Isles Health Board",0,IF('III Tool Overview'!$H$7="Orkney Islands Local Authority",0,IF('III Tool Overview'!$H$7="Shetland Islands Local Authority",0,IF('III Tool Overview'!$H$7="Eilean Siar Local Authority",0,hosp_count(10,B70,C70,D70,$C$1,G70+H70,1,F70,E70*F70))))))) -> 0 | AK70: =AI70-AJ70 -> 0 | AL70: =IF('III Tool Overview'!$H$7="Orkney Health Board",0,IF('III Tool Overview'!$H$7="Shetland Health Board",0,IF('III Tool Overview'!$H$7="Western Isles Health Board",0,IF('III Tool Overview'!$H$7="Orkney Islands Local Authority",0,IF('III Tool Overview'!$H$7="Shetland Islands Local Authority",0,IF('III Tool Overview'!$H$7="Eilean Siar Local Authority",0,hosp_count(20,B70,C70,D70,$C$1,G70,1,F70,E70*F70))))))) -> 0 | AM70: =IF('III Tool Overview'!$H$7="Orkney Health Board",0,IF('III Tool Overview'!$H$7="Shetland Health Board",0,IF('III Tool Overview'!$H$7="Western Isles Health Board",0,IF('III Tool Overview'!$H$7="Orkney Islands Local Authority",0,IF('III Tool Overview'!$H$7="Shetland Islands Local Authority",0,IF('III Tool Overview'!$H$7="Eilean Siar Local Authority",0,hosp_count(20,B70,C70,D70,$C$1,G70+H70,1,F70,E70*F70))))))) -> 0 | AN70: =AL70-AM70 -> 0 | AP70: 0.5 | AQ70: 5
A71: Male 20-24 | B71: 22.5 | C71: male | D71: 1 | E71: =HLOOKUP('III Tool Overview'!$H$7,Prevalence!$B$2:$CH$268,Prevalence!CI67,FALSE) -> 0.1966576889 | F71: =HLOOKUP('III Tool Overview'!$H$7,LookUpData_Pop!$B$1:$AV$269,LookUpData_Pop!BB72,FALSE)/5 -> 0 | G71: ='III Tool Overview'!$H$10/110 -> 0 | H71: =IF('III Tool Overview'!$H$11="Even distribution",Targeting!C69,IF('III Tool Overview'!$H$11="Targeting to Q1",Targeting!D69,IF('III Tool Overview'!$H$11="Targeting to Q1 & Q2",Targeting!E69,IF('III Tool Overview'!$H$11="Proportionate to need",Targeting!F69)))) -> 0 | I71: =IF('III Tool Overview'!$H$7="Orkney Health Board",0,IF('III Tool Overview'!$H$7="Shetland Health Board",0,IF('III Tool Overview'!$H$7="Western Isles Health Board",0,IF('III Tool Overview'!$H$7="Orkney Islands Local Authority",0,IF('III Tool Overview'!$H$7="Shetland Islands Local Authority",0,IF('III Tool Overview'!$H$7="Eilean Siar Local Authority",0,new_ci(2,B71,C71,D71,$C$1,G71,1,F71,E71*F71))))))) -> 0 | J71: =IF('III Tool Overview'!$H$7="Orkney Health Board",0,IF('III Tool Overview'!$H$7="Shetland Health Board",0,IF('III Tool Overview'!$H$7="Western Isles Health Board",0,IF('III Tool Overview'!$H$7="Orkney Islands Local Authority",0,IF('III Tool Overview'!$H$7="Shetland Islands Local Authority",0,IF('III Tool Overview'!$H$7="Eilean Siar Local Authority",0,new_ci(2,B71,C71,D71,$C$1,G71+H71,1,F71,E71*F71))))))) -> 0 | K71: =IF('III Tool Overview'!$H$7="Orkney Health Board",0,IF('III Tool Overview'!$H$7="Shetland Health Board",0,IF('III Tool Overview'!$H$7="Western Isles Health Board",0,IF('III Tool Overview'!$H$7="Orkney Islands Local Authority",0,IF('III Tool Overview'!$H$7="Shetland Islands Local Authority",0,IF('III Tool Overview'!$H$7="Eilean Siar Local Authority",0,new_ci(5,B71,C71,D71,$C$1,G71,1,F71,E71*F71))))))) -> 0 | L71: =IF('III Tool Overview'!$H$7="Orkney Health Board",0,IF('III Tool Overview'!$H$7="Shetland Health Board",0,IF('III Tool Overview'!$H$7="Western Isles Health Board",0,IF('III Tool Overview'!$H$7="Orkney Islands Local Authority",0,IF('III Tool Overview'!$H$7="Shetland Islands Local Authority",0,IF('III Tool Overview'!$H$7="Eilean Siar Local Authority",0,new_ci(5,B71,C71,D71,$C$1,G71+H71,1,F71,E71*F71))))))) -> 0 | M71: =IF('III Tool Overview'!$H$7="Orkney Health Board",0,IF('III Tool Overview'!$H$7="Shetland Health Board",0,IF('III Tool Overview'!$H$7="Western Isles Health Board",0,IF('III Tool Overview'!$H$7="Orkney Islands Local Authority",0,IF('III Tool Overview'!$H$7="Shetland Islands Local Authority",0,IF('III Tool Overview'!$H$7="Eilean Siar Local Authority",0,new_ci(10,B71,C71,D71,$C$1,G71,1,F71,E71*F71))))))) -> 0 | N71: =IF('III Tool Overview'!$H$7="Orkney Health Board",0,IF('III Tool Overview'!$H$7="Shetland Health Board",0,IF('III Tool Overview'!$H$7="Western Isles Health Board",0,IF('III Tool Overview'!$H$7="Orkney Islands Local Authority",0,IF('III Tool Overview'!$H$7="Shetland Islands Local Authority",0,IF('III Tool Overview'!$H$7="Eilean Siar Local Authority",0,new_ci(10,B71,C71,D71,$C$1,G71+H71,1,F71,E71*F71))))))) -> 0 | O71: =IF('III Tool Overview'!$H$7="Orkney Health Board",0,IF('III Tool Overview'!$H$7="Shetland Health Board",0,IF('III Tool Overview'!$H$7="Western Isles Health Board",0,IF('III Tool Overview'!$H$7="Orkney Islands Local Authority",0,IF('III Tool Overview'!$H$7="Shetland Islands Local Authority",0,IF('III Tool Overview'!$H$7="Eilean Siar Local Authority",0,new_ci(20,B71,C71,D71,$C$1,G71,1,F71,E71*F71))))))) -> 0 | P71: =IF('III Tool Overview'!$H$7="Orkney Health Board",0,IF('III Tool Overview'!$H$7="Shetland Health Board",0,IF('III Tool Overview'!$H$7="Western Isles Health Board",0,IF('III Tool Overview'!$H$7="Orkney Islands Local Authority",0,IF('III Tool Overview'!$H$7="Shetland Islands Local Authority",0,IF('III Tool Overview'!$H$7="Eilean Siar Local Authority",0,new_ci(20,B71,C71,D71,$C$1,G71+H71,1,F71,E71*F71))))))) -> 0 | Q71: =IF('III Tool Overview'!$H$7="Orkney Health Board",0,IF('III Tool Overview'!$H$7="Shetland Health Board",0,IF('III Tool Overview'!$H$7="Western Isles Health Board",0,IF('III Tool Overview'!$H$7="Orkney Islands Local Authority",0,IF('III Tool Overview'!$H$7="Shetland Islands Local Authority",0,IF('III Tool Overview'!$H$7="Eilean Siar Local Authority",0,new_yll(2,B71,C71,D71,$C$1,G71,1,F71,E71*F71))))))) -> 0 | R71: =IF('III Tool Overview'!$H$7="Orkney Health Board",0,IF('III Tool Overview'!$H$7="Shetland Health Board",0,IF('III Tool Overview'!$H$7="Western Isles Health Board",0,IF('III Tool Overview'!$H$7="Orkney Islands Local Authority",0,IF('III Tool Overview'!$H$7="Shetland Islands Local Authority",0,IF('III Tool Overview'!$H$7="Eilean Siar Local Authority",0,new_yll(2,B71,C71,D71,$C$1,G71+H71,1,F71,E71*F71))))))) -> 0 | S71: =Q71-R71 -> 0 | T71: =IF('III Tool Overview'!$H$7="Orkney Health Board",0,IF('III Tool Overview'!$H$7="Shetland Health Board",0,IF('III Tool Overview'!$H$7="Western Isles Health Board",0,IF('III Tool Overview'!$H$7="Orkney Islands Local Authority",0,IF('III Tool Overview'!$H$7="Shetland Islands Local Authority",0,IF('III Tool Overview'!$H$7="Eilean Siar Local Authority",0,new_yll(5,B71,C71,D71,$C$1,G71,1,F71,E71*F71))))))) -> 0 | U71: =IF('III Tool Overview'!$H$7="Orkney Health Board",0,IF('III Tool Overview'!$H$7="Shetland Health Board",0,IF('III Tool Overview'!$H$7="Western Isles Health Board",0,IF('III Tool Overview'!$H$7="Orkney Islands Local Authority",0,IF('III Tool Overview'!$H$7="Shetland Islands Local Authority",0,IF('III Tool Overview'!$H$7="Eilean Siar Local Authority",0,new_yll(5,B71,C71,D71,$C$1,G71+H71,1,F71,E71*F71))))))) -> 0 | V71: =T71-U71 -> 0 | W71: =IF('III Tool Overview'!$H$7="Orkney Health Board",0,IF('III Tool Overview'!$H$7="Shetland Health Board",0,IF('III Tool Overview'!$H$7="Western Isles Health Board",0,IF('III Tool Overview'!$H$7="Orkney Islands Local Authority",0,IF('III Tool Overview'!$H$7="Shetland Islands Local Authority",0,IF('III Tool Overview'!$H$7="Eilean Siar Local Authority",0,new_yll(10,B71,C71,D71,$C$1,G71,1,F71,E71*F71))))))) -> 0 | X71: =IF('III Tool Overview'!$H$7="Orkney Health Board",0,IF('III Tool Overview'!$H$7="Shetland Health Board",0,IF('III Tool Overview'!$H$7="Western Isles Health Board",0,IF('III Tool Overview'!$H$7="Orkney Islands Local Authority",0,IF('III Tool Overview'!$H$7="Shetland Islands Local Authority",0,IF('III Tool Overview'!$H$7="Eilean Siar Local Authority",0,new_yll(10,B71,C71,D71,$C$1,G71+H71,1,F71,E71*F71))))))) -> 0 | Y71: =W71-X71 -> 0 | Z71: =IF('III Tool Overview'!$H$7="Orkney Health Board",0,IF('III Tool Overview'!$H$7="Shetland Health Board",0,IF('III Tool Overview'!$H$7="Western Isles Health Board",0,IF('III Tool Overview'!$H$7="Orkney Islands Local Authority",0,IF('III Tool Overview'!$H$7="Shetland Islands Local Authority",0,IF('III Tool Overview'!$H$7="Eilean Siar Local Authority",0,new_yll(20,B71,C71,D71,$C$1,G71,1,F71,E71*F71))))))) -> 0 | AA71: =IF('III Tool Overview'!$H$7="Orkney Health Board",0,IF('III Tool Overview'!$H$7="Shetland Health Board",0,IF('III Tool Overview'!$H$7="Western Isles Health Board",0,IF('III Tool Overview'!$H$7="Orkney Islands Local Authority",0,IF('III Tool Overview'!$H$7="Shetland Islands Local Authority",0,IF('III Tool Overview'!$H$7="Eilean Siar Local Authority",0,new_yll(20,B71,C71,D71,$C$1,G71+H71,1,F71,E71*F71))))))) -> 0 | AB71: =Z71-AA71 -> 0 | AC71: =IF('III Tool Overview'!$H$7="Orkney Health Board",0,IF('III Tool Overview'!$H$7="Shetland Health Board",0,IF('III Tool Overview'!$H$7="Western Isles Health Board",0,IF('III Tool Overview'!$H$7="Orkney Islands Local Authority",0,IF('III Tool Overview'!$H$7="Shetland Islands Local Authority",0,IF('III Tool Overview'!$H$7="Eilean Siar Local Authority",0,hosp_count(2,B71,C71,D71,$C$1,G71,1,F71,E71*F71))))))) -> 0 | AD71: =IF('III Tool Overview'!$H$7="Orkney Health Board",0,IF('III Tool Overview'!$H$7="Shetland Health Board",0,IF('III Tool Overview'!$H$7="Western Isles Health Board",0,IF('III Tool Overview'!$H$7="Orkney Islands Local Authority",0,IF('III Tool Overview'!$H$7="Shetland Islands Local Authority",0,IF('III Tool Overview'!$H$7="Eilean Siar Local Authority",0,hosp_count(2,B71,C71,D71,$C$1,G71+H71,1,F71,E71*F71))))))) -> 0 | AE71: =AC71-AD71 -> 0 | AF71: =IF('III Tool Overview'!$H$7="Orkney Health Board",0,IF('III Tool Overview'!$H$7="Shetland Health Board",0,IF('III Tool Overview'!$H$7="Western Isles Health Board",0,IF('III Tool Overview'!$H$7="Orkney Islands Local Authority",0,IF('III Tool Overview'!$H$7="Shetland Islands Local Authority",0,IF('III Tool Overview'!$H$7="Eilean Siar Local Authority",0,hosp_count(5,B71,C71,D71,$C$1,G71,1,F71,E71*F71))))))) -> 0 | AG71: =IF('III Tool Overview'!$H$7="Orkney Health Board",0,IF('III Tool Overview'!$H$7="Shetland Health Board",0,IF('III Tool Overview'!$H$7="Western Isles Health Board",0,IF('III Tool Overview'!$H$7="Orkney Islands Local Authority",0,IF('III Tool Overview'!$H$7="Shetland Islands Local Authority",0,IF('III Tool Overview'!$H$7="Eilean Siar Local Authority",0,hosp_count(5,B71,C71,D71,$C$1,G71+H71,1,F71,E71*F71))))))) -> 0 | AH71: =AF71-AG71 -> 0 | AI71: =IF('III Tool Overview'!$H$7="Orkney Health Board",0,IF('III Tool Overview'!$H$7="Shetland Health Board",0,IF('III Tool Overview'!$H$7="Western Isles Health Board",0,IF('III Tool Overview'!$H$7="Orkney Islands Local Authority",0,IF('III Tool Overview'!$H$7="Shetland Islands Local Authority",0,IF('III Tool Overview'!$H$7="Eilean Siar Local Authority",0,hosp_count(10,B71,C71,D71,$C$1,G71,1,F71,E71*F71))))))) -> 0 | AJ71: =IF('III Tool Overview'!$H$7="Orkney Health Board",0,IF('III Tool Overview'!$H$7="Shetland Health Board",0,IF('III Tool Overview'!$H$7="Western Isles Health Board",0,IF('III Tool Overview'!$H$7="Orkney Islands Local Authority",0,IF('III Tool Overview'!$H$7="Shetland Islands Local Authority",0,IF('III Tool Overview'!$H$7="Eilean Siar Local Authority",0,hosp_count(10,B71,C71,D71,$C$1,G71+H71,1,F71,E71*F71))))))) -> 0 | AK71: =AI71-AJ71 -> 0 | AL71: =IF('III Tool Overview'!$H$7="Orkney Health Board",0,IF('III Tool Overview'!$H$7="Shetland Health Board",0,IF('III Tool Overview'!$H$7="Western Isles Health Board",0,IF('III Tool Overview'!$H$7="Orkney Islands Local Authority",0,IF('III Tool Overview'!$H$7="Shetland Islands Local Authority",0,IF('III Tool Overview'!$H$7="Eilean Siar Local Authority",0,hosp_count(20,B71,C71,D71,$C$1,G71,1,F71,E71*F71))))))) -> 0 | AM71: =IF('III Tool Overview'!$H$7="Orkney Health Board",0,IF('III Tool Overview'!$H$7="Shetland Health Board",0,IF('III Tool Overview'!$H$7="Western Isles Health Board",0,IF('III Tool Overview'!$H$7="Orkney Islands Local Authority",0,IF('III Tool Overview'!$H$7="Shetland Islands Local Authority",0,IF('III Tool Overview'!$H$7="Eilean Siar Local Authority",0,hosp_count(20,B71,C71,D71,$C$1,G71+H71,1,F71,E71*F71))))))) -> 0 | AN71: =AL71-AM71 -> 0 | AP71: 0.5 | AQ71: 5
A72: Male 25-29 | B72: 27.5 | C72: male | D72: 1 | E72: =HLOOKUP('III Tool Overview'!$H$7,Prevalence!$B$2:$CH$268,Prevalence!CI68,FALSE) -> 0.2481318815 | F72: =HLOOKUP('III Tool Overview'!$H$7,LookUpData_Pop!$B$1:$AV$269,LookUpData_Pop!BB73,FALSE)/5 -> 0 | G72: ='III Tool Overview'!$H$10/110 -> 0 | H72: =IF('III Tool Overview'!$H$11="Even distribution",Targeting!C70,IF('III Tool Overview'!$H$11="Targeting to Q1",Targeting!D70,IF('III Tool Overview'!$H$11="Targeting to Q1 & Q2",Targeting!E70,IF('III Tool Overview'!$H$11="Proportionate to need",Targeting!F70)))) -> 0 | I72: =IF('III Tool Overview'!$H$7="Orkney Health Board",0,IF('III Tool Overview'!$H$7="Shetland Health Board",0,IF('III Tool Overview'!$H$7="Western Isles Health Board",0,IF('III Tool Overview'!$H$7="Orkney Islands Local Authority",0,IF('III Tool Overview'!$H$7="Shetland Islands Local Authority",0,IF('III Tool Overview'!$H$7="Eilean Siar Local Authority",0,new_ci(2,B72,C72,D72,$C$1,G72,1,F72,E72*F72))))))) -> 0 | J72: =IF('III Tool Overview'!$H$7="Orkney Health Board",0,IF('III Tool Overview'!$H$7="Shetland Health Board",0,IF('III Tool Overview'!$H$7="Western Isles Health Board",0,IF('III Tool Overview'!$H$7="Orkney Islands Local Authority",0,IF('III Tool Overview'!$H$7="Shetland Islands Local Authority",0,IF('III Tool Overview'!$H$7="Eilean Siar Local Authority",0,new_ci(2,B72,C72,D72,$C$1,G72+H72,1,F72,E72*F72))))))) -> 0 | K72: =IF('III Tool Overview'!$H$7="Orkney Health Board",0,IF('III Tool Overview'!$H$7="Shetland Health Board",0,IF('III Tool Overview'!$H$7="Western Isles Health Board",0,IF('III Tool Overview'!$H$7="Orkney Islands Local Authority",0,IF('III Tool Overview'!$H$7="Shetland Islands Local Authority",0,IF('III Tool Overview'!$H$7="Eilean Siar Local Authority",0,new_ci(5,B72,C72,D72,$C$1,G72,1,F72,E72*F72))))))) -> 0 | L72: =IF('III Tool Overview'!$H$7="Orkney Health Board",0,IF('III Tool Overview'!$H$7="Shetland Health Board",0,IF('III Tool Overview'!$H$7="Western Isles Health Board",0,IF('III Tool Overview'!$H$7="Orkney Islands Local Authority",0,IF('III Tool Overview'!$H$7="Shetland Islands Local Authority",0,IF('III Tool Overview'!$H$7="Eilean Siar Local Authority",0,new_ci(5,B72,C72,D72,$C$1,G72+H72,1,F72,E72*F72))))))) -> 0 | M72: =IF('III Tool Overview'!$H$7="Orkney Health Board",0,IF('III Tool Overview'!$H$7="Shetland Health Board",0,IF('III Tool Overview'!$H$7="Western Isles Health Board",0,IF('III Tool Overview'!$H$7="Orkney Islands Local Authority",0,IF('III Tool Overview'!$H$7="Shetland Islands Local Authority",0,IF('III Tool Overview'!$H$7="Eilean Siar Local Authority",0,new_ci(10,B72,C72,D72,$C$1,G72,1,F72,E72*F72))))))) -> 0 | N72: =IF('III Tool Overview'!$H$7="Orkney Health Board",0,IF('III Tool Overview'!$H$7="Shetland Health Board",0,IF('III Tool Overview'!$H$7="Western Isles Health Board",0,IF('III Tool Overview'!$H$7="Orkney Islands Local Authority",0,IF('III Tool Overview'!$H$7="Shetland Islands Local Authority",0,IF('III Tool Overview'!$H$7="Eilean Siar Local Authority",0,new_ci(10,B72,C72,D72,$C$1,G72+H72,1,F72,E72*F72))))))) -> 0 | O72: =IF('III Tool Overview'!$H$7="Orkney Health Board",0,IF('III Tool Overview'!$H$7="Shetland Health Board",0,IF('III Tool Overview'!$H$7="Western Isles Health Board",0,IF('III Tool Overview'!$H$7="Orkney Islands Local Authority",0,IF('III Tool Overview'!$H$7="Shetland Islands Local Authority",0,IF('III Tool Overview'!$H$7="Eilean Siar Local Authority",0,new_ci(20,B72,C72,D72,$C$1,G72,1,F72,E72*F72))))))) -> 0 | P72: =IF('III Tool Overview'!$H$7="Orkney Health Board",0,IF('III Tool Overview'!$H$7="Shetland Health Board",0,IF('III Tool Overview'!$H$7="Western Isles Health Board",0,IF('III Tool Overview'!$H$7="Orkney Islands Local Authority",0,IF('III Tool Overview'!$H$7="Shetland Islands Local Authority",0,IF('III Tool Overview'!$H$7="Eilean Siar Local Authority",0,new_ci(20,B72,C72,D72,$C$1,G72+H72,1,F72,E72*F72))))))) -> 0 | Q72: =IF('III Tool Overview'!$H$7="Orkney Health Board",0,IF('III Tool Overview'!$H$7="Shetland Health Board",0,IF('III Tool Overview'!$H$7="Western Isles Health Board",0,IF('III Tool Overview'!$H$7="Orkney Islands Local Authority",0,IF('III Tool Overview'!$H$7="Shetland Islands Local Authority",0,IF('III Tool Overview'!$H$7="Eilean Siar Local Authority",0,new_yll(2,B72,C72,D72,$C$1,G72,1,F72,E72*F72))))))) -> 0 | R72: =IF('III Tool Overview'!$H$7="Orkney Health Board",0,IF('III Tool Overview'!$H$7="Shetland Health Board",0,IF('III Tool Overview'!$H$7="Western Isles Health Board",0,IF('III Tool Overview'!$H$7="Orkney Islands Local Authority",0,IF('III Tool Overview'!$H$7="Shetland Islands Local Authority",0,IF('III Tool Overview'!$H$7="Eilean Siar Local Authority",0,new_yll(2,B72,C72,D72,$C$1,G72+H72,1,F72,E72*F72))))))) -> 0 | S72: 0 | T72: =IF('III Tool Overview'!$H$7="Orkney Health Board",0,IF('III Tool Overview'!$H$7="Shetland Health Board",0,IF('III Tool Overview'!$H$7="Western Isles Health Board",0,IF('III Tool Overview'!$H$7="Orkney Islands Local Authority",0,IF('III Tool Overview'!$H$7="Shetland Islands Local Authority",0,IF('III Tool Overview'!$H$7="Eilean Siar Local Authority",0,new_yll(5,B72,C72,D72,$C$1,G72,1,F72,E72*F72))))))) -> 0 | U72: =IF('III Tool Overview'!$H$7="Orkney Health Board",0,IF('III Tool Overview'!$H$7="Shetland Health Board",0,IF('III Tool Overview'!$H$7="Western Isles Health Board",0,IF('III Tool Overview'!$H$7="Orkney Islands Local Authority",0,IF('III Tool Overview'!$H$7="Shetland Islands Local Authority",0,IF('III Tool Overview'!$H$7="Eilean Siar Local Authority",0,new_yll(5,B72,C72,D72,$C$1,G72+H72,1,F72,E72*F72))))))) -> 0 | V72: 0 | W72: =IF('III Tool Overview'!$H$7="Orkney Health Board",0,IF('III Tool Overview'!$H$7="Shetland Health Board",0,IF('III Tool Overview'!$H$7="Western Isles Health Board",0,IF('III Tool Overview'!$H$7="Orkney Islands Local Authority",0,IF('III Tool Overview'!$H$7="Shetland Islands Local Authority",0,IF('III Tool Overview'!$H$7="Eilean Siar Local Authority",0,new_yll(10,B72,C72,D72,$C$1,G72,1,F72,E72*F72))))))) -> 0 | X72: =IF('III Tool Overview'!$H$7="Orkney Health Board",0,IF('III Tool Overview'!$H$7="Shetland Health Board",0,IF('III Tool Overview'!$H$7="Western Isles Health Board",0,IF('III Tool Overview'!$H$7="Orkney Islands Local Authority",0,IF('III Tool Overview'!$H$7="Shetland Islands Local Authority",0,IF('III Tool Overview'!$H$7="Eilean Siar Local Authority",0,new_yll(10,B72,C72,D72,$C$1,G72+H72,1,F72,E72*F72))))))) -> 0 | Y72: 0 | Z72: =IF('III Tool Overview'!$H$7="Orkney Health Board",0,IF('III Tool Overview'!$H$7="Shetland Health Board",0,IF('III Tool Overview'!$H$7="Western Isles Health Board",0,IF('III Tool Overview'!$H$7="Orkney Islands Local Authority",0,IF('III Tool Overview'!$H$7="Shetland Islands Local Authority",0,IF('III Tool Overview'!$H$7="Eilean Siar Local Authority",0,new_yll(20,B72,C72,D72,$C$1,G72,1,F72,E72*F72))))))) -> 0 | AA72: =IF('III Tool Overview'!$H$7="Orkney Health Board",0,IF('III Tool Overview'!$H$7="Shetland Health Board",0,IF('III Tool Overview'!$H$7="Western Isles Health Board",0,IF('III Tool Overview'!$H$7="Orkney Islands Local Authority",0,IF('III Tool Overview'!$H$7="Shetland Islands Local Authority",0,IF('III Tool Overview'!$H$7="Eilean Siar Local Authority",0,new_yll(20,B72,C72,D72,$C$1,G72+H72,1,F72,E72*F72))))))) -> 0 | AB72: 0 | AC72: =IF('III Tool Overview'!$H$7="Orkney Health Board",0,IF('III Tool Overview'!$H$7="Shetland Health Board",0,IF('III Tool Overview'!$H$7="Western Isles Health Board",0,IF('III Tool Overview'!$H$7="Orkney Islands Local Authority",0,IF('III Tool Overview'!$H$7="Shetland Islands Local Authority",0,IF('III Tool Overview'!$H$7="Eilean Siar Local Authority",0,hosp_count(2,B72,C72,D72,$C$1,G72,1,F72,E72*F72))))))) -> 0 | AD72: =IF('III Tool Overview'!$H$7="Orkney Health Board",0,IF('III Tool Overview'!$H$7="Shetland Health Board",0,IF('III Tool Overview'!$H$7="Western Isles Health Board",0,IF('III Tool Overview'!$H$7="Orkney Islands Local Authority",0,IF('III Tool Overview'!$H$7="Shetland Islands Local Authority",0,IF('III Tool Overview'!$H$7="Eilean Siar Local Authority",0,hosp_count(2,B72,C72,D72,$C$1,G72+H72,1,F72,E72*F72))))))) -> 0 | AE72: 0 | AF72: =IF('III Tool Overview'!$H$7="Orkney Health Board",0,IF('III Tool Overview'!$H$7="Shetland Health Board",0,IF('III Tool Overview'!$H$7="Western Isles Health Board",0,IF('III Tool Overview'!$H$7="Orkney Islands Local Authority",0,IF('III Tool Overview'!$H$7="Shetland Islands Local Authority",0,IF('III Tool Overview'!$H$7="Eilean Siar Local Authority",0,hosp_count(5,B72,C72,D72,$C$1,G72,1,F72,E72*F72))))))) -> 0 | AG72: =IF('III Tool Overview'!$H$7="Orkney Health Board",0,IF('III Tool Overview'!$H$7="Shetland Health Board",0,IF('III Tool Overview'!$H$7="Western Isles Health Board",0,IF('III Tool Overview'!$H$7="Orkney Islands Local Authority",0,IF('III Tool Overview'!$H$7="Shetland Islands Local Authority",0,IF('III Tool Overview'!$H$7="Eilean Siar Local Authority",0,hosp_count(5,B72,C72,D72,$C$1,G72+H72,1,F72,E72*F72))))))) -> 0 | AH72: 0 | AI72: =IF('III Tool Overview'!$H$7="Orkney Health Board",0,IF('III Tool Overview'!$H$7="Shetland Health Board",0,IF('III Tool Overview'!$H$7="Western Isles Health Board",0,IF('III Tool Overview'!$H$7="Orkney Islands Local Authority",0,IF('III Tool Overview'!$H$7="Shetland Islands Local Authority",0,IF('III Tool Overview'!$H$7="Eilean Siar Local Authority",0,hosp_count(10,B72,C72,D72,$C$1,G72,1,F72,E72*F72))))))) -> 0 | AJ72: =IF('III Tool Overview'!$H$7="Orkney Health Board",0,IF('III Tool Overview'!$H$7="Shetland Health Board",0,IF('III Tool Overview'!$H$7="Western Isles Health Board",0,IF('III Tool Overview'!$H$7="Orkney Islands Local Authority",0,IF('III Tool Overview'!$H$7="Shetland Islands Local Authority",0,IF('III Tool Overview'!$H$7="Eilean Siar Local Authority",0,hosp_count(10,B72,C72,D72,$C$1,G72+H72,1,F72,E72*F72))))))) -> 0 | AK72: 0 | AL72: =IF('III Tool Overview'!$H$7="Orkney Health Board",0,IF('III Tool Overview'!$H$7="Shetland Health Board",0,IF('III Tool Overview'!$H$7="Western Isles Health Board",0,IF('III Tool Overview'!$H$7="Orkney Islands Local Authority",0,IF('III Tool Overview'!$H$7="Shetland Islands Local Authority",0,IF('III Tool Overview'!$H$7="Eilean Siar Local Authority",0,hosp_count(20,B72,C72,D72,$C$1,G72,1,F72,E72*F72))))))) -> 0 | AM72: =IF('III Tool Overview'!$H$7="Orkney Health Board",0,IF('III Tool Overview'!$H$7="Shetland Health Board",0,IF('III Tool Overview'!$H$7="Western Isles Health Board",0,IF('III Tool Overview'!$H$7="Orkney Islands Local Authority",0,IF('III Tool Overview'!$H$7="Shetland Islands Local Authority",0,IF('III Tool Overview'!$H$7="Eilean Siar Local Authority",0,hosp_count(20,B72,C72,D72,$C$1,G72+H72,1,F72,E72*F72))))))) -> 0 | AN72: 0 | AP72: 0.5 | AQ72: 5
A73: Male 30-34 | B73: 32.5 | C73: male | D73: 1 | E73: =HLOOKUP('III Tool Overview'!$H$7,Prevalence!$B$2:$CH$268,Prevalence!CI69,FALSE) -> 0.2481318815 | F73: =HLOOKUP('III Tool Overview'!$H$7,LookUpData_Pop!$B$1:$AV$269,LookUpData_Pop!BB74,FALSE)/5 -> 0 | G73: ='III Tool Overview'!$H$10/110 -> 0 | H73: =IF('III Tool Overview'!$H$11="Even distribution",Targeting!C71,IF('III Tool Overview'!$H$11="Targeting to Q1",Targeting!D71,IF('III Tool Overview'!$H$11="Targeting to Q1 & Q2",Targeting!E71,IF('III Tool Overview'!$H$11="Proportionate to need",Targeting!F71)))) -> 0 | I73: =IF('III Tool Overview'!$H$7="Orkney Health Board",0,IF('III Tool Overview'!$H$7="Shetland Health Board",0,IF('III Tool Overview'!$H$7="Western Isles Health Board",0,IF('III Tool Overview'!$H$7="Orkney Islands Local Authority",0,IF('III Tool Overview'!$H$7="Shetland Islands Local Authority",0,IF('III Tool Overview'!$H$7="Eilean Siar Local Authority",0,new_ci(2,B73,C73,D73,$C$1,G73,1,F73,E73*F73))))))) -> 0 | J73: =IF('III Tool Overview'!$H$7="Orkney Health Board",0,IF('III Tool Overview'!$H$7="Shetland Health Board",0,IF('III Tool Overview'!$H$7="Western Isles Health Board",0,IF('III Tool Overview'!$H$7="Orkney Islands Local Authority",0,IF('III Tool Overview'!$H$7="Shetland Islands Local Authority",0,IF('III Tool Overview'!$H$7="Eilean Siar Local Authority",0,new_ci(2,B73,C73,D73,$C$1,G73+H73,1,F73,E73*F73))))))) -> 0 | K73: =IF('III Tool Overview'!$H$7="Orkney Health Board",0,IF('III Tool Overview'!$H$7="Shetland Health Board",0,IF('III Tool Overview'!$H$7="Western Isles Health Board",0,IF('III Tool Overview'!$H$7="Orkney Islands Local Authority",0,IF('III Tool Overview'!$H$7="Shetland Islands Local Authority",0,IF('III Tool Overview'!$H$7="Eilean Siar Local Authority",0,new_ci(5,B73,C73,D73,$C$1,G73,1,F73,E73*F73))))))) -> 0 | L73: =IF('III Tool Overview'!$H$7="Orkney Health Board",0,IF('III Tool Overview'!$H$7="Shetland Health Board",0,IF('III Tool Overview'!$H$7="Western Isles Health Board",0,IF('III Tool Overview'!$H$7="Orkney Islands Local Authority",0,IF('III Tool Overview'!$H$7="Shetland Islands Local Authority",0,IF('III Tool Overview'!$H$7="Eilean Siar Local Authority",0,new_ci(5,B73,C73,D73,$C$1,G73+H73,1,F73,E73*F73))))))) -> 0 | M73: =IF('III Tool Overview'!$H$7="Orkney Health Board",0,IF('III Tool Overview'!$H$7="Shetland Health Board",0,IF('III Tool Overview'!$H$7="Western Isles Health Board",0,IF('III Tool Overview'!$H$7="Orkney Islands Local Authority",0,IF('III Tool Overview'!$H$7="Shetland Islands Local Authority",0,IF('III Tool Overview'!$H$7="Eilean Siar Local Authority",0,new_ci(10,B73,C73,D73,$C$1,G73,1,F73,E73*F73))))))) -> 0 | N73: =IF('III Tool Overview'!$H$7="Orkney Health Board",0,IF('III Tool Overview'!$H$7="Shetland Health Board",0,IF('III Tool Overview'!$H$7="Western Isles Health Board",0,IF('III Tool Overview'!$H$7="Orkney Islands Local Authority",0,IF('III Tool Overview'!$H$7="Shetland Islands Local Authority",0,IF('III Tool Overview'!$H$7="Eilean Siar Local Authority",0,new_ci(10,B73,C73,D73,$C$1,G73+H73,1,F73,E73*F73))))))) -> 0 | O73: =IF('III Tool Overview'!$H$7="Orkney Health Board",0,IF('III Tool Overview'!$H$7="Shetland Health Board",0,IF('III Tool Overview'!$H$7="Western Isles Health Board",0,IF('III Tool Overview'!$H$7="Orkney Islands Local Authority",0,IF('III Tool Overview'!$H$7="Shetland Islands Local Authority",0,IF('III Tool Overview'!$H$7="Eilean Siar Local Authority",0,new_ci(20,B73,C73,D73,$C$1,G73,1,F73,E73*F73))))))) -> 0 | P73: =IF('III Tool Overview'!$H$7="Orkney Health Board",0,IF('III Tool Overview'!$H$7="Shetland Health Board",0,IF('III Tool Overview'!$H$7="Western Isles Health Board",0,IF('III Tool Overview'!$H$7="Orkney Islands Local Authority",0,IF('III Tool Overview'!$H$7="Shetland Islands Local Authority",0,IF('III Tool Overview'!$H$7="Eilean Siar Local Authority",0,new_ci(20,B73,C73,D73,$C$1,G73+H73,1,F73,E73*F73))))))) -> 0 | Q73: =IF('III Tool Overview'!$H$7="Orkney Health Board",0,IF('III Tool Overview'!$H$7="Shetland Health Board",0,IF('III Tool Overview'!$H$7="Western Isles Health Board",0,IF('III Tool Overview'!$H$7="Orkney Islands Local Authority",0,IF('III Tool Overview'!$H$7="Shetland Islands Local Authority",0,IF('III Tool Overview'!$H$7="Eilean Siar Local Authority",0,new_yll(2,B73,C73,D73,$C$1,G73,1,F73,E73*F73))))))) -> 0 | R73: =IF('III Tool Overview'!$H$7="Orkney Health Board",0,IF('III Tool Overview'!$H$7="Shetland Health Board",0,IF('III Tool Overview'!$H$7="Western Isles Health Board",0,IF('III Tool Overview'!$H$7="Orkney Islands Local Authority",0,IF('III Tool Overview'!$H$7="Shetland Islands Local Authority",0,IF('III Tool Overview'!$H$7="Eilean Siar Local Authority",0,new_yll(2,B73,C73,D73,$C$1,G73+H73,1,F73,E73*F73))))))) -> 0 | S73: 0 | T73: =IF('III Tool Overview'!$H$7="Orkney Health Board",0,IF('III Tool Overview'!$H$7="Shetland Health Board",0,IF('III Tool Overview'!$H$7="Western Isles Health Board",0,IF('III Tool Overview'!$H$7="Orkney Islands Local Authority",0,IF('III Tool Overview'!$H$7="Shetland Islands Local Authority",0,IF('III Tool Overview'!$H$7="Eilean Siar Local Authority",0,new_yll(5,B73,C73,D73,$C$1,G73,1,F73,E73*F73))))))) -> 0 | U73: =IF('III Tool Overview'!$H$7="Orkney Health Board",0,IF('III Tool Overview'!$H$7="Shetland Health Board",0,IF('III Tool Overview'!$H$7="Western Isles Health Board",0,IF('III Tool Overview'!$H$7="Orkney Islands Local Authority",0,IF('III Tool Overview'!$H$7="Shetland Islands Local Authority",0,IF('III Tool Overview'!$H$7="Eilean Siar Local Authority",0,new_yll(5,B73,C73,D73,$C$1,G73+H73,1,F73,E73*F73))))))) -> 0 | V73: 0 | W73: =IF('III Tool Overview'!$H$7="Orkney Health Board",0,IF('III Tool Overview'!$H$7="Shetland Health Board",0,IF('III Tool Overview'!$H$7="Western Isles Health Board",0,IF('III Tool Overview'!$H$7="Orkney Islands Local Authority",0,IF('III Tool Overview'!$H$7="Shetland Islands Local Authority",0,IF('III Tool Overview'!$H$7="Eilean Siar Local Authority",0,new_yll(10,B73,C73,D73,$C$1,G73,1,F73,E73*F73))))))) -> 0 | X73: =IF('III Tool Overview'!$H$7="Orkney Health Board",0,IF('III Tool Overview'!$H$7="Shetland Health Board",0,IF('III Tool Overview'!$H$7="Western Isles Health Board",0,IF('III Tool Overview'!$H$7="Orkney Islands Local Authority",0,IF('III Tool Overview'!$H$7="Shetland Islands Local Authority",0,IF('III Tool Overview'!$H$7="Eilean Siar Local Authority",0,new_yll(10,B73,C73,D73,$C$1,G73+H73,1,F73,E73*F73))))))) -> 0 | Y73: 0 | Z73: =IF('III Tool Overview'!$H$7="Orkney Health Board",0,IF('III Tool Overview'!$H$7="Shetland Health Board",0,IF('III Tool Overview'!$H$7="Western Isles Health Board",0,IF('III Tool Overview'!$H$7="Orkney Islands Local Authority",0,IF('III Tool Overview'!$H$7="Shetland Islands Local Authority",0,IF('III Tool Overview'!$H$7="Eilean Siar Local Authority",0,new_yll(20,B73,C73,D73,$C$1,G73,1,F73,E73*F73))))))) -> 0 | AA73: =IF('III Tool Overview'!$H$7="Orkney Health Board",0,IF('III Tool Overview'!$H$7="Shetland Health Board",0,IF('III Tool Overview'!$H$7="Western Isles Health Board",0,IF('III Tool Overview'!$H$7="Orkney Islands Local Authority",0,IF('III Tool Overview'!$H$7="Shetland Islands Local Authority",0,IF('III Tool Overview'!$H$7="Eilean Siar Local Authority",0,new_yll(20,B73,C73,D73,$C$1,G73+H73,1,F73,E73*F73))))))) -> 0 | AB73: 0 | AC73: =IF('III Tool Overview'!$H$7="Orkney Health Board",0,IF('III Tool Overview'!$H$7="Shetland Health Board",0,IF('III Tool Overview'!$H$7="Western Isles Health Board",0,IF('III Tool Overview'!$H$7="Orkney Islands Local Authority",0,IF('III Tool Overview'!$H$7="Shetland Islands Local Authority",0,IF('III Tool Overview'!$H$7="Eilean Siar Local Authority",0,hosp_count(2,B73,C73,D73,$C$1,G73,1,F73,E73*F73))))))) -> 0 | AD73: =IF('III Tool Overview'!$H$7="Orkney Health Board",0,IF('III Tool Overview'!$H$7="Shetland Health Board",0,IF('III Tool Overview'!$H$7="Western Isles Health Board",0,IF('III Tool Overview'!$H$7="Orkney Islands Local Authority",0,IF('III Tool Overview'!$H$7="Shetland Islands Local Authority",0,IF('III Tool Overview'!$H$7="Eilean Siar Local Authority",0,hosp_count(2,B73,C73,D73,$C$1,G73+H73,1,F73,E73*F73))))))) -> 0 | AE73: 0 | AF73: =IF('III Tool Overview'!$H$7="Orkney Health Board",0,IF('III Tool Overview'!$H$7="Shetland Health Board",0,IF('III Tool Overview'!$H$7="Western Isles Health Board",0,IF('III Tool Overview'!$H$7="Orkney Islands Local Authority",0,IF('III Tool Overview'!$H$7="Shetland Islands Local Authority",0,IF('III Tool Overview'!$H$7="Eilean Siar Local Authority",0,hosp_count(5,B73,C73,D73,$C$1,G73,1,F73,E73*F73))))))) -> 0 | AG73: =IF('III Tool Overview'!$H$7="Orkney Health Board",0,IF('III Tool Overview'!$H$7="Shetland Health Board",0,IF('III Tool Overview'!$H$7="Western Isles Health Board",0,IF('III Tool Overview'!$H$7="Orkney Islands Local Authority",0,IF('III Tool Overview'!$H$7="Shetland Islands Local Authority",0,IF('III Tool Overview'!$H$7="Eilean Siar Local Authority",0,hosp_count(5,B73,C73,D73,$C$1,G73+H73,1,F73,E73*F73))))))) -> 0 | AH73: 0 | AI73: =IF('III Tool Overview'!$H$7="Orkney Health Board",0,IF('III Tool Overview'!$H$7="Shetland Health Board",0,IF('III Tool Overview'!$H$7="Western Isles Health Board",0,IF('III Tool Overview'!$H$7="Orkney Islands Local Authority",0,IF('III Tool Overview'!$H$7="Shetland Islands Local Authority",0,IF('III Tool Overview'!$H$7="Eilean Siar Local Authority",0,hosp_count(10,B73,C73,D73,$C$1,G73,1,F73,E73*F73))))))) -> 0 | AJ73: =IF('III Tool Overview'!$H$7="Orkney Health Board",0,IF('III Tool Overview'!$H$7="Shetland Health Board",0,IF('III Tool Overview'!$H$7="Western Isles Health Board",0,IF('III Tool Overview'!$H$7="Orkney Islands Local Authority",0,IF('III Tool Overview'!$H$7="Shetland Islands Local Authority",0,IF('III Tool Overview'!$H$7="Eilean Siar Local Authority",0,hosp_count(10,B73,C73,D73,$C$1,G73+H73,1,F73,E73*F73))))))) -> 0 | AK73: 0 | AL73: =IF('III Tool Overview'!$H$7="Orkney Health Board",0,IF('III Tool Overview'!$H$7="Shetland Health Board",0,IF('III Tool Overview'!$H$7="Western Isles Health Board",0,IF('III Tool Overview'!$H$7="Orkney Islands Local Authority",0,IF('III Tool Overview'!$H$7="Shetland Islands Local Authority",0,IF('III Tool Overview'!$H$7="Eilean Siar Local Authority",0,hosp_count(20,B73,C73,D73,$C$1,G73,1,F73,E73*F73))))))) -> 0 | AM73: =IF('III Tool Overview'!$H$7="Orkney Health Board",0,IF('III Tool Overview'!$H$7="Shetland Health Board",0,IF('III Tool Overview'!$H$7="Western Isles Health Board",0,IF('III Tool Overview'!$H$7="Orkney Islands Local Authority",0,IF('III Tool Overview'!$H$7="Shetland Islands Local Authority",0,IF('III Tool Overview'!$H$7="Eilean Siar Local Authority",0,hosp_count(20,B73,C73,D73,$C$1,G73+H73,1,F73,E73*F73))))))) -> 0 | AN73: 0 | AP73: 0.5 | AQ73: 5
A74: Male 35-39 | B74: 37.5 | C74: male | D74: 1 | E74: =HLOOKUP('III Tool Overview'!$H$7,Prevalence!$B$2:$CH$268,Prevalence!CI70,FALSE) -> 0.354518963 | F74: =HLOOKUP('III Tool Overview'!$H$7,LookUpData_Pop!$B$1:$AV$269,LookUpData_Pop!BB75,FALSE)/5 -> 0 | G74: ='III Tool Overview'!$H$10/110 -> 0 | H74: =IF('III Tool Overview'!$H$11="Even distribution",Targeting!C72,IF('III Tool Overview'!$H$11="Targeting to Q1",Targeting!D72,IF('III Tool Overview'!$H$11="Targeting to Q1 & Q2",Targeting!E72,IF('III Tool Overview'!$H$11="Proportionate to need",Targeting!F72)))) -> 0 | I74: =IF('III Tool Overview'!$H$7="Orkney Health Board",0,IF('III Tool Overview'!$H$7="Shetland Health Board",0,IF('III Tool Overview'!$H$7="Western Isles Health Board",0,IF('III Tool Overview'!$H$7="Orkney Islands Local Authority",0,IF('III Tool Overview'!$H$7="Shetland Islands Local Authority",0,IF('III Tool Overview'!$H$7="Eilean Siar Local Authority",0,new_ci(2,B74,C74,D74,$C$1,G74,1,F74,E74*F74))))))) -> 0 | J74: =IF('III Tool Overview'!$H$7="Orkney Health Board",0,IF('III Tool Overview'!$H$7="Shetland Health Board",0,IF('III Tool Overview'!$H$7="Western Isles Health Board",0,IF('III Tool Overview'!$H$7="Orkney Islands Local Authority",0,IF('III Tool Overview'!$H$7="Shetland Islands Local Authority",0,IF('III Tool Overview'!$H$7="Eilean Siar Local Authority",0,new_ci(2,B74,C74,D74,$C$1,G74+H74,1,F74,E74*F74))))))) -> 0 | K74: =IF('III Tool Overview'!$H$7="Orkney Health Board",0,IF('III Tool Overview'!$H$7="Shetland Health Board",0,IF('III Tool Overview'!$H$7="Western Isles Health Board",0,IF('III Tool Overview'!$H$7="Orkney Islands Local Authority",0,IF('III Tool Overview'!$H$7="Shetland Islands Local Authority",0,IF('III Tool Overview'!$H$7="Eilean Siar Local Authority",0,new_ci(5,B74,C74,D74,$C$1,G74,1,F74,E74*F74))))))) -> 0 | L74: =IF('III Tool Overview'!$H$7="Orkney Health Board",0,IF('III Tool Overview'!$H$7="Shetland Health Board",0,IF('III Tool Overview'!$H$7="Western Isles Health Board",0,IF('III Tool Overview'!$H$7="Orkney Islands Local Authority",0,IF('III Tool Overview'!$H$7="Shetland Islands Local Authority",0,IF('III Tool Overview'!$H$7="Eilean Siar Local Authority",0,new_ci(5,B74,C74,D74,$C$1,G74+H74,1,F74,E74*F74))))))) -> 0 | M74: =IF('III Tool Overview'!$H$7="Orkney Health Board",0,IF('III Tool Overview'!$H$7="Shetland Health Board",0,IF('III Tool Overview'!$H$7="Western Isles Health Board",0,IF('III Tool Overview'!$H$7="Orkney Islands Local Authority",0,IF('III Tool Overview'!$H$7="Shetland Islands Local Authority",0,IF('III Tool Overview'!$H$7="Eilean Siar Local Authority",0,new_ci(10,B74,C74,D74,$C$1,G74,1,F74,E74*F74))))))) -> 0 | N74: =IF('III Tool Overview'!$H$7="Orkney Health Board",0,IF('III Tool Overview'!$H$7="Shetland Health Board",0,IF('III Tool Overview'!$H$7="Western Isles Health Board",0,IF('III Tool Overview'!$H$7="Orkney Islands Local Authority",0,IF('III Tool Overview'!$H$7="Shetland Islands Local Authority",0,IF('III Tool Overview'!$H$7="Eilean Siar Local Authority",0,new_ci(10,B74,C74,D74,$C$1,G74+H74,1,F74,E74*F74))))))) -> 0 | O74: =IF('III Tool Overview'!$H$7="Orkney Health Board",0,IF('III Tool Overview'!$H$7="Shetland Health Board",0,IF('III Tool Overview'!$H$7="Western Isles Health Board",0,IF('III Tool Overview'!$H$7="Orkney Islands Local Authority",0,IF('III Tool Overview'!$H$7="Shetland Islands Local Authority",0,IF('III Tool Overview'!$H$7="Eilean Siar Local Authority",0,new_ci(20,B74,C74,D74,$C$1,G74,1,F74,E74*F74))))))) -> 0 | P74: =IF('III Tool Overview'!$H$7="Orkney Health Board",0,IF('III Tool Overview'!$H$7="Shetland Health Board",0,IF('III Tool Overview'!$H$7="Western Isles Health Board",0,IF('III Tool Overview'!$H$7="Orkney Islands Local Authority",0,IF('III Tool Overview'!$H$7="Shetland Islands Local Authority",0,IF('III Tool Overview'!$H$7="Eilean Siar Local Authority",0,new_ci(20,B74,C74,D74,$C$1,G74+H74,1,F74,E74*F74))))))) -> 0 | Q74: =IF('III Tool Overview'!$H$7="Orkney Health Board",0,IF('III Tool Overview'!$H$7="Shetland Health Board",0,IF('III Tool Overview'!$H$7="Western Isles Health Board",0,IF('III Tool Overview'!$H$7="Orkney Islands Local Authority",0,IF('III Tool Overview'!$H$7="Shetland Islands Local Authority",0,IF('III Tool Overview'!$H$7="Eilean Siar Local Authority",0,new_yll(2,B74,C74,D74,$C$1,G74,1,F74,E74*F74))))))) -> 0 | R74: =IF('III Tool Overview'!$H$7="Orkney Health Board",0,IF('III Tool Overview'!$H$7="Shetland Health Board",0,IF('III Tool Overview'!$H$7="Western Isles Health Board",0,IF('III Tool Overview'!$H$7="Orkney Islands Local Authority",0,IF('III Tool Overview'!$H$7="Shetland Islands Local Authority",0,IF('III Tool Overview'!$H$7="Eilean Siar Local Authority",0,new_yll(2,B74,C74,D74,$C$1,G74+H74,1,F74,E74*F74))))))) -> 0 | S74: 0 | T74: =IF('III Tool Overview'!$H$7="Orkney Health Board",0,IF('III Tool Overview'!$H$7="Shetland Health Board",0,IF('III Tool Overview'!$H$7="Western Isles Health Board",0,IF('III Tool Overview'!$H$7="Orkney Islands Local Authority",0,IF('III Tool Overview'!$H$7="Shetland Islands Local Authority",0,IF('III Tool Overview'!$H$7="Eilean Siar Local Authority",0,new_yll(5,B74,C74,D74,$C$1,G74,1,F74,E74*F74))))))) -> 0 | U74: =IF('III Tool Overview'!$H$7="Orkney Health Board",0,IF('III Tool Overview'!$H$7="Shetland Health Board",0,IF('III Tool Overview'!$H$7="Western Isles Health Board",0,IF('III Tool Overview'!$H$7="Orkney Islands Local Authority",0,IF('III Tool Overview'!$H$7="Shetland Islands Local Authority",0,IF('III Tool Overview'!$H$7="Eilean Siar Local Authority",0,new_yll(5,B74,C74,D74,$C$1,G74+H74,1,F74,E74*F74))))))) -> 0 | V74: 0 | W74: =IF('III Tool Overview'!$H$7="Orkney Health Board",0,IF('III Tool Overview'!$H$7="Shetland Health Board",0,IF('III Tool Overview'!$H$7="Western Isles Health Board",0,IF('III Tool Overview'!$H$7="Orkney Islands Local Authority",0,IF('III Tool Overview'!$H$7="Shetland Islands Local Authority",0,IF('III Tool Overview'!$H$7="Eilean Siar Local Authority",0,new_yll(10,B74,C74,D74,$C$1,G74,1,F74,E74*F74))))))) -> 0 | X74: =IF('III Tool Overview'!$H$7="Orkney Health Board",0,IF('III Tool Overview'!$H$7="Shetland Health Board",0,IF('III Tool Overview'!$H$7="Western Isles Health Board",0,IF('III Tool Overview'!$H$7="Orkney Islands Local Authority",0,IF('III Tool Overview'!$H$7="Shetland Islands Local Authority",0,IF('III Tool Overview'!$H$7="Eilean Siar Local Authority",0,new_yll(10,B74,C74,D74,$C$1,G74+H74,1,F74,E74*F74))))))) -> 0 | Y74: 0 | Z74: =IF('III Tool Overview'!$H$7="Orkney Health Board",0,IF('III Tool Overview'!$H$7="Shetland Health Board",0,IF('III Tool Overview'!$H$7="Western Isles Health Board",0,IF('III Tool Overview'!$H$7="Orkney Islands Local Authority",0,IF('III Tool Overview'!$H$7="Shetland Islands Local Authority",0,IF('III Tool Overview'!$H$7="Eilean Siar Local Authority",0,new_yll(20,B74,C74,D74,$C$1,G74,1,F74,E74*F74))))))) -> 0 | AA74: =IF('III Tool Overview'!$H$7="Orkney Health Board",0,IF('III Tool Overview'!$H$7="Shetland Health Board",0,IF('III Tool Overview'!$H$7="Western Isles Health Board",0,IF('III Tool Overview'!$H$7="Orkney Islands Local Authority",0,IF('III Tool Overview'!$H$7="Shetland Islands Local Authority",0,IF('III Tool Overview'!$H$7="Eilean Siar Local Authority",0,new_yll(20,B74,C74,D74,$C$1,G74+H74,1,F74,E74*F74))))))) -> 0 | AB74: 0 | AC74: =IF('III Tool Overview'!$H$7="Orkney Health Board",0,IF('III Tool Overview'!$H$7="Shetland Health Board",0,IF('III Tool Overview'!$H$7="Western Isles Health Board",0,IF('III Tool Overview'!$H$7="Orkney Islands Local Authority",0,IF('III Tool Overview'!$H$7="Shetland Islands Local Authority",0,IF('III Tool Overview'!$H$7="Eilean Siar Local Authority",0,hosp_count(2,B74,C74,D74,$C$1,G74,1,F74,E74*F74))))))) -> 0 | AD74: =IF('III Tool Overview'!$H$7="Orkney Health Board",0,IF('III Tool Overview'!$H$7="Shetland Health Board",0,IF('III Tool Overview'!$H$7="Western Isles Health Board",0,IF('III Tool Overview'!$H$7="Orkney Islands Local Authority",0,IF('III Tool Overview'!$H$7="Shetland Islands Local Authority",0,IF('III Tool Overview'!$H$7="Eilean Siar Local Authority",0,hosp_count(2,B74,C74,D74,$C$1,G74+H74,1,F74,E74*F74))))))) -> 0 | AE74: 0 | AF74: =IF('III Tool Overview'!$H$7="Orkney Health Board",0,IF('III Tool Overview'!$H$7="Shetland Health Board",0,IF('III Tool Overview'!$H$7="Western Isles Health Board",0,IF('III Tool Overview'!$H$7="Orkney Islands Local Authority",0,IF('III Tool Overview'!$H$7="Shetland Islands Local Authority",0,IF('III Tool Overview'!$H$7="Eilean Siar Local Authority",0,hosp_count(5,B74,C74,D74,$C$1,G74,1,F74,E74*F74))))))) -> 0 | AG74: =IF('III Tool Overview'!$H$7="Orkney Health Board",0,IF('III Tool Overview'!$H$7="Shetland Health Board",0,IF('III Tool Overview'!$H$7="Western Isles Health Board",0,IF('III Tool Overview'!$H$7="Orkney Islands Local Authority",0,IF('III Tool Overview'!$H$7="Shetland Islands Local Authority",0,IF('III Tool Overview'!$H$7="Eilean Siar Local Authority",0,hosp_count(5,B74,C74,D74,$C$1,G74+H74,1,F74,E74*F74))))))) -> 0 | AH74: 0 | AI74: =IF('III Tool Overview'!$H$7="Orkney Health Board",0,IF('III Tool Overview'!$H$7="Shetland Health Board",0,IF('III Tool Overview'!$H$7="Western Isles Health Board",0,IF('III Tool Overview'!$H$7="Orkney Islands Local Authority",0,IF('III Tool Overview'!$H$7="Shetland Islands Local Authority",0,IF('III Tool Overview'!$H$7="Eilean Siar Local Authority",0,hosp_count(10,B74,C74,D74,$C$1,G74,1,F74,E74*F74))))))) -> 0 | AJ74: =IF('III Tool Overview'!$H$7="Orkney Health Board",0,IF('III Tool Overview'!$H$7="Shetland Health Board",0,IF('III Tool Overview'!$H$7="Western Isles Health Board",0,IF('III Tool Overview'!$H$7="Orkney Islands Local Authority",0,IF('III Tool Overview'!$H$7="Shetland Islands Local Authority",0,IF('III Tool Overview'!$H$7="Eilean Siar Local Authority",0,hosp_count(10,B74,C74,D74,$C$1,G74+H74,1,F74,E74*F74))))))) -> 0 | AK74: 0 | AL74: =IF('III Tool Overview'!$H$7="Orkney Health Board",0,IF('III Tool Overview'!$H$7="Shetland Health Board",0,IF('III Tool Overview'!$H$7="Western Isles Health Board",0,IF('III Tool Overview'!$H$7="Orkney Islands Local Authority",0,IF('III Tool Overview'!$H$7="Shetland Islands Local Authority",0,IF('III Tool Overview'!$H$7="Eilean Siar Local Authority",0,hosp_count(20,B74,C74,D74,$C$1,G74,1,F74,E74*F74))))))) -> 0 | AM74: =IF('III Tool Overview'!$H$7="Orkney Health Board",0,IF('III Tool Overview'!$H$7="Shetland Health Board",0,IF('III Tool Overview'!$H$7="Western Isles Health Board",0,IF('III Tool Overview'!$H$7="Orkney Islands Local Authority",0,IF('III Tool Overview'!$H$7="Shetland Islands Local Authority",0,IF('III Tool Overview'!$H$7="Eilean Siar Local Authority",0,hosp_count(20,B74,C74,D74,$C$1,G74+H74,1,F74,E74*F74))))))) -> 0 | AN74: 0 | AP74: 0.5 | AQ74: 5
A75: Male 40-44 | B75: 42.5 | C75: male | D75: 1 | E75: =HLOOKUP('III Tool Overview'!$H$7,Prevalence!$B$2:$CH$268,Prevalence!CI71,FALSE) -> 0.354518963 | F75: =HLOOKUP('III Tool Overview'!$H$7,LookUpData_Pop!$B$1:$AV$269,LookUpData_Pop!BB76,FALSE)/5 -> 0 | G75: ='III Tool Overview'!$H$10/110 -> 0 | H75: =IF('III Tool Overview'!$H$11="Even distribution",Targeting!C73,IF('III Tool Overview'!$H$11="Targeting to Q1",Targeting!D73,IF('III Tool Overview'!$H$11="Targeting to Q1 & Q2",Targeting!E73,IF('III Tool Overview'!$H$11="Proportionate to need",Targeting!F73)))) -> 0 | I75: =IF('III Tool Overview'!$H$7="Orkney Health Board",0,IF('III Tool Overview'!$H$7="Shetland Health Board",0,IF('III Tool Overview'!$H$7="Western Isles Health Board",0,IF('III Tool Overview'!$H$7="Orkney Islands Local Authority",0,IF('III Tool Overview'!$H$7="Shetland Islands Local Authority",0,IF('III Tool Overview'!$H$7="Eilean Siar Local Authority",0,new_ci(2,B75,C75,D75,$C$1,G75,1,F75,E75*F75))))))) -> 0 | J75: =IF('III Tool Overview'!$H$7="Orkney Health Board",0,IF('III Tool Overview'!$H$7="Shetland Health Board",0,IF('III Tool Overview'!$H$7="Western Isles Health Board",0,IF('III Tool Overview'!$H$7="Orkney Islands Local Authority",0,IF('III Tool Overview'!$H$7="Shetland Islands Local Authority",0,IF('III Tool Overview'!$H$7="Eilean Siar Local Authority",0,new_ci(2,B75,C75,D75,$C$1,G75+H75,1,F75,E75*F75))))))) -> 0 | K75: =IF('III Tool Overview'!$H$7="Orkney Health Board",0,IF('III Tool Overview'!$H$7="Shetland Health Board",0,IF('III Tool Overview'!$H$7="Western Isles Health Board",0,IF('III Tool Overview'!$H$7="Orkney Islands Local Authority",0,IF('III Tool Overview'!$H$7="Shetland Islands Local Authority",0,IF('III Tool Overview'!$H$7="Eilean Siar Local Authority",0,new_ci(5,B75,C75,D75,$C$1,G75,1,F75,E75*F75))))))) -> 0 | L75: =IF('III Tool Overview'!$H$7="Orkney Health Board",0,IF('III Tool Overview'!$H$7="Shetland Health Board",0,IF('III Tool Overview'!$H$7="Western Isles Health Board",0,IF('III Tool Overview'!$H$7="Orkney Islands Local Authority",0,IF('III Tool Overview'!$H$7="Shetland Islands Local Authority",0,IF('III Tool Overview'!$H$7="Eilean Siar Local Authority",0,new_ci(5,B75,C75,D75,$C$1,G75+H75,1,F75,E75*F75))))))) -> 0 | M75: =IF('III Tool Overview'!$H$7="Orkney Health Board",0,IF('III Tool Overview'!$H$7="Shetland Health Board",0,IF('III Tool Overview'!$H$7="Western Isles Health Board",0,IF('III Tool Overview'!$H$7="Orkney Islands Local Authority",0,IF('III Tool Overview'!$H$7="Shetland Islands Local Authority",0,IF('III Tool Overview'!$H$7="Eilean Siar Local Authority",0,new_ci(10,B75,C75,D75,$C$1,G75,1,F75,E75*F75))))))) -> 0 | N75: =IF('III Tool Overview'!$H$7="Orkney Health Board",0,IF('III Tool Overview'!$H$7="Shetland Health Board",0,IF('III Tool Overview'!$H$7="Western Isles Health Board",0,IF('III Tool Overview'!$H$7="Orkney Islands Local Authority",0,IF('III Tool Overview'!$H$7="Shetland Islands Local Authority",0,IF('III Tool Overview'!$H$7="Eilean Siar Local Authority",0,new_ci(10,B75,C75,D75,$C$1,G75+H75,1,F75,E75*F75))))))) -> 0 | O75: =IF('III Tool Overview'!$H$7="Orkney Health Board",0,IF('III Tool Overview'!$H$7="Shetland Health Board",0,IF('III Tool Overview'!$H$7="Western Isles Health Board",0,IF('III Tool Overview'!$H$7="Orkney Islands Local Authority",0,IF('III Tool Overview'!$H$7="Shetland Islands Local Authority",0,IF('III Tool Overview'!$H$7="Eilean Siar Local Authority",0,new_ci(20,B75,C75,D75,$C$1,G75,1,F75,E75*F75))))))) -> 0 | P75: =IF('III Tool Overview'!$H$7="Orkney Health Board",0,IF('III Tool Overview'!$H$7="Shetland Health Board",0,IF('III Tool Overview'!$H$7="Western Isles Health Board",0,IF('III Tool Overview'!$H$7="Orkney Islands Local Authority",0,IF('III Tool Overview'!$H$7="Shetland Islands Local Authority",0,IF('III Tool Overview'!$H$7="Eilean Siar Local Authority",0,new_ci(20,B75,C75,D75,$C$1,G75+H75,1,F75,E75*F75))))))) -> 0 | Q75: =IF('III Tool Overview'!$H$7="Orkney Health Board",0,IF('III Tool Overview'!$H$7="Shetland Health Board",0,IF('III Tool Overview'!$H$7="Western Isles Health Board",0,IF('III Tool Overview'!$H$7="Orkney Islands Local Authority",0,IF('III Tool Overview'!$H$7="Shetland Islands Local Authority",0,IF('III Tool Overview'!$H$7="Eilean Siar Local Authority",0,new_yll(2,B75,C75,D75,$C$1,G75,1,F75,E75*F75))))))) -> 0 | R75: =IF('III Tool Overview'!$H$7="Orkney Health Board",0,IF('III Tool Overview'!$H$7="Shetland Health Board",0,IF('III Tool Overview'!$H$7="Western Isles Health Board",0,IF('III Tool Overview'!$H$7="Orkney Islands Local Authority",0,IF('III Tool Overview'!$H$7="Shetland Islands Local Authority",0,IF('III Tool Overview'!$H$7="Eilean Siar Local Authority",0,new_yll(2,B75,C75,D75,$C$1,G75+H75,1,F75,E75*F75))))))) -> 0 | S75: 0 | T75: =IF('III Tool Overview'!$H$7="Orkney Health Board",0,IF('III Tool Overview'!$H$7="Shetland Health Board",0,IF('III Tool Overview'!$H$7="Western Isles Health Board",0,IF('III Tool Overview'!$H$7="Orkney Islands Local Authority",0,IF('III Tool Overview'!$H$7="Shetland Islands Local Authority",0,IF('III Tool Overview'!$H$7="Eilean Siar Local Authority",0,new_yll(5,B75,C75,D75,$C$1,G75,1,F75,E75*F75))))))) -> 0 | U75: =IF('III Tool Overview'!$H$7="Orkney Health Board",0,IF('III Tool Overview'!$H$7="Shetland Health Board",0,IF('III Tool Overview'!$H$7="Western Isles Health Board",0,IF('III Tool Overview'!$H$7="Orkney Islands Local Authority",0,IF('III Tool Overview'!$H$7="Shetland Islands Local Authority",0,IF('III Tool Overview'!$H$7="Eilean Siar Local Authority",0,new_yll(5,B75,C75,D75,$C$1,G75+H75,1,F75,E75*F75))))))) -> 0 | V75: 0 | W75: =IF('III Tool Overview'!$H$7="Orkney Health Board",0,IF('III Tool Overview'!$H$7="Shetland Health Board",0,IF('III Tool Overview'!$H$7="Western Isles Health Board",0,IF('III Tool Overview'!$H$7="Orkney Islands Local Authority",0,IF('III Tool Overview'!$H$7="Shetland Islands Local Authority",0,IF('III Tool Overview'!$H$7="Eilean Siar Local Authority",0,new_yll(10,B75,C75,D75,$C$1,G75,1,F75,E75*F75))))))) -> 0 | X75: =IF('III Tool Overview'!$H$7="Orkney Health Board",0,IF('III Tool Overview'!$H$7="Shetland Health Board",0,IF('III Tool Overview'!$H$7="Western Isles Health Board",0,IF('III Tool Overview'!$H$7="Orkney Islands Local Authority",0,IF('III Tool Overview'!$H$7="Shetland Islands Local Authority",0,IF('III Tool Overview'!$H$7="Eilean Siar Local Authority",0,new_yll(10,B75,C75,D75,$C$1,G75+H75,1,F75,E75*F75))))))) -> 0 | Y75: 0 | Z75: =IF('III Tool Overview'!$H$7="Orkney Health Board",0,IF('III Tool Overview'!$H$7="Shetland Health Board",0,IF('III Tool Overview'!$H$7="Western Isles Health Board",0,IF('III Tool Overview'!$H$7="Orkney Islands Local Authority",0,IF('III Tool Overview'!$H$7="Shetland Islands Local Authority",0,IF('III Tool Overview'!$H$7="Eilean Siar Local Authority",0,new_yll(20,B75,C75,D75,$C$1,G75,1,F75,E75*F75))))))) -> 0 | AA75: =IF('III Tool Overview'!$H$7="Orkney Health Board",0,IF('III Tool Overview'!$H$7="Shetland Health Board",0,IF('III Tool Overview'!$H$7="Western Isles Health Board",0,IF('III Tool Overview'!$H$7="Orkney Islands Local Authority",0,IF('III Tool Overview'!$H$7="Shetland Islands Local Authority",0,IF('III Tool Overview'!$H$7="Eilean Siar Local Authority",0,new_yll(20,B75,C75,D75,$C$1,G75+H75,1,F75,E75*F75))))))) -> 0 | AB75: 0 | AC75: =IF('III Tool Overview'!$H$7="Orkney Health Board",0,IF('III Tool Overview'!$H$7="Shetland Health Board",0,IF('III Tool Overview'!$H$7="Western Isles Health Board",0,IF('III Tool Overview'!$H$7="Orkney Islands Local Authority",0,IF('III Tool Overview'!$H$7="Shetland Islands Local Authority",0,IF('III Tool Overview'!$H$7="Eilean Siar Local Authority",0,hosp_count(2,B75,C75,D75,$C$1,G75,1,F75,E75*F75))))))) -> 0 | AD75: =IF('III Tool Overview'!$H$7="Orkney Health Board",0,IF('III Tool Overview'!$H$7="Shetland Health Board",0,IF('III Tool Overview'!$H$7="Western Isles Health Board",0,IF('III Tool Overview'!$H$7="Orkney Islands Local Authority",0,IF('III Tool Overview'!$H$7="Shetland Islands Local Authority",0,IF('III Tool Overview'!$H$7="Eilean Siar Local Authority",0,hosp_count(2,B75,C75,D75,$C$1,G75+H75,1,F75,E75*F75))))))) -> 0 | AE75: 0 | AF75: =IF('III Tool Overview'!$H$7="Orkney Health Board",0,IF('III Tool Overview'!$H$7="Shetland Health Board",0,IF('III Tool Overview'!$H$7="Western Isles Health Board",0,IF('III Tool Overview'!$H$7="Orkney Islands Local Authority",0,IF('III Tool Overview'!$H$7="Shetland Islands Local Authority",0,IF('III Tool Overview'!$H$7="Eilean Siar Local Authority",0,hosp_count(5,B75,C75,D75,$C$1,G75,1,F75,E75*F75))))))) -> 0 | AG75: =IF('III Tool Overview'!$H$7="Orkney Health Board",0,IF('III Tool Overview'!$H$7="Shetland Health Board",0,IF('III Tool Overview'!$H$7="Western Isles Health Board",0,IF('III Tool Overview'!$H$7="Orkney Islands Local Authority",0,IF('III Tool Overview'!$H$7="Shetland Islands Local Authority",0,IF('III Tool Overview'!$H$7="Eilean Siar Local Authority",0,hosp_count(5,B75,C75,D75,$C$1,G75+H75,1,F75,E75*F75))))))) -> 0 | AH75: 0 | AI75: =IF('III Tool Overview'!$H$7="Orkney Health Board",0,IF('III Tool Overview'!$H$7="Shetland Health Board",0,IF('III Tool Overview'!$H$7="Western Isles Health Board",0,IF('III Tool Overview'!$H$7="Orkney Islands Local Authority",0,IF('III Tool Overview'!$H$7="Shetland Islands Local Authority",0,IF('III Tool Overview'!$H$7="Eilean Siar Local Authority",0,hosp_count(10,B75,C75,D75,$C$1,G75,1,F75,E75*F75))))))) -> 0 | AJ75: =IF('III Tool Overview'!$H$7="Orkney Health Board",0,IF('III Tool Overview'!$H$7="Shetland Health Board",0,IF('III Tool Overview'!$H$7="Western Isles Health Board",0,IF('III Tool Overview'!$H$7="Orkney Islands Local Authority",0,IF('III Tool Overview'!$H$7="Shetland Islands Local Authority",0,IF('III Tool Overview'!$H$7="Eilean Siar Local Authority",0,hosp_count(10,B75,C75,D75,$C$1,G75+H75,1,F75,E75*F75))))))) -> 0 | AK75: 0 | AL75: =IF('III Tool Overview'!$H$7="Orkney Health Board",0,IF('III Tool Overview'!$H$7="Shetland Health Board",0,IF('III Tool Overview'!$H$7="Western Isles Health Board",0,IF('III Tool Overview'!$H$7="Orkney Islands Local Authority",0,IF('III Tool Overview'!$H$7="Shetland Islands Local Authority",0,IF('III Tool Overview'!$H$7="Eilean Siar Local Authority",0,hosp_count(20,B75,C75,D75,$C$1,G75,1,F75,E75*F75))))))) -> 0 | AM75: =IF('III Tool Overview'!$H$7="Orkney Health Board",0,IF('III Tool Overview'!$H$7="Shetland Health Board",0,IF('III Tool Overview'!$H$7="Western Isles Health Board",0,IF('III Tool Overview'!$H$7="Orkney Islands Local Authority",0,IF('III Tool Overview'!$H$7="Shetland Islands Local Authority",0,IF('III Tool Overview'!$H$7="Eilean Siar Local Authority",0,hosp_count(20,B75,C75,D75,$C$1,G75+H75,1,F75,E75*F75))))))) -> 0 | AN75: 0 | AP75: 0.5 | AQ75: 5
A76: Male 45-49 | B76: 47.5 | C76: male | D76: 1 | E76: =HLOOKUP('III Tool Overview'!$H$7,Prevalence!$B$2:$CH$268,Prevalence!CI72,FALSE) -> 0.4851193926 | F76: =HLOOKUP('III Tool Overview'!$H$7,LookUpData_Pop!$B$1:$AV$269,LookUpData_Pop!BB77,FALSE)/5 -> 0 | G76: ='III Tool Overview'!$H$10/110 -> 0 | H76: =IF('III Tool Overview'!$H$11="Even distribution",Targeting!C74,IF('III Tool Overview'!$H$11="Targeting to Q1",Targeting!D74,IF('III Tool Overview'!$H$11="Targeting to Q1 & Q2",Targeting!E74,IF('III Tool Overview'!$H$11="Proportionate to need",Targeting!F74)))) -> 0 | I76: =IF('III Tool Overview'!$H$7="Orkney Health Board",0,IF('III Tool Overview'!$H$7="Shetland Health Board",0,IF('III Tool Overview'!$H$7="Western Isles Health Board",0,IF('III Tool Overview'!$H$7="Orkney Islands Local Authority",0,IF('III Tool Overview'!$H$7="Shetland Islands Local Authority",0,IF('III Tool Overview'!$H$7="Eilean Siar Local Authority",0,new_ci(2,B76,C76,D76,$C$1,G76,1,F76,E76*F76))))))) -> 0 | J76: =IF('III Tool Overview'!$H$7="Orkney Health Board",0,IF('III Tool Overview'!$H$7="Shetland Health Board",0,IF('III Tool Overview'!$H$7="Western Isles Health Board",0,IF('III Tool Overview'!$H$7="Orkney Islands Local Authority",0,IF('III Tool Overview'!$H$7="Shetland Islands Local Authority",0,IF('III Tool Overview'!$H$7="Eilean Siar Local Authority",0,new_ci(2,B76,C76,D76,$C$1,G76+H76,1,F76,E76*F76))))))) -> 0 | K76: =IF('III Tool Overview'!$H$7="Orkney Health Board",0,IF('III Tool Overview'!$H$7="Shetland Health Board",0,IF('III Tool Overview'!$H$7="Western Isles Health Board",0,IF('III Tool Overview'!$H$7="Orkney Islands Local Authority",0,IF('III Tool Overview'!$H$7="Shetland Islands Local Authority",0,IF('III Tool Overview'!$H$7="Eilean Siar Local Authority",0,new_ci(5,B76,C76,D76,$C$1,G76,1,F76,E76*F76))))))) -> 0 | L76: =IF('III Tool Overview'!$H$7="Orkney Health Board",0,IF('III Tool Overview'!$H$7="Shetland Health Board",0,IF('III Tool Overview'!$H$7="Western Isles Health Board",0,IF('III Tool Overview'!$H$7="Orkney Islands Local Authority",0,IF('III Tool Overview'!$H$7="Shetland Islands Local Authority",0,IF('III Tool Overview'!$H$7="Eilean Siar Local Authority",0,new_ci(5,B76,C76,D76,$C$1,G76+H76,1,F76,E76*F76))))))) -> 0 | M76: =IF('III Tool Overview'!$H$7="Orkney Health Board",0,IF('III Tool Overview'!$H$7="Shetland Health Board",0,IF('III Tool Overview'!$H$7="Western Isles Health Board",0,IF('III Tool Overview'!$H$7="Orkney Islands Local Authority",0,IF('III Tool Overview'!$H$7="Shetland Islands Local Authority",0,IF('III Tool Overview'!$H$7="Eilean Siar Local Authority",0,new_ci(10,B76,C76,D76,$C$1,G76,1,F76,E76*F76))))))) -> 0 | N76: =IF('III Tool Overview'!$H$7="Orkney Health Board",0,IF('III Tool Overview'!$H$7="Shetland Health Board",0,IF('III Tool Overview'!$H$7="Western Isles Health Board",0,IF('III Tool Overview'!$H$7="Orkney Islands Local Authority",0,IF('III Tool Overview'!$H$7="Shetland Islands Local Authority",0,IF('III Tool Overview'!$H$7="Eilean Siar Local Authority",0,new_ci(10,B76,C76,D76,$C$1,G76+H76,1,F76,E76*F76))))))) -> 0 | O76: =IF('III Tool Overview'!$H$7="Orkney Health Board",0,IF('III Tool Overview'!$H$7="Shetland Health Board",0,IF('III Tool Overview'!$H$7="Western Isles Health Board",0,IF('III Tool Overview'!$H$7="Orkney Islands Local Authority",0,IF('III Tool Overview'!$H$7="Shetland Islands Local Authority",0,IF('III Tool Overview'!$H$7="Eilean Siar Local Authority",0,new_ci(20,B76,C76,D76,$C$1,G76,1,F76,E76*F76))))))) -> 0 | P76: =IF('III Tool Overview'!$H$7="Orkney Health Board",0,IF('III Tool Overview'!$H$7="Shetland Health Board",0,IF('III Tool Overview'!$H$7="Western Isles Health Board",0,IF('III Tool Overview'!$H$7="Orkney Islands Local Authority",0,IF('III Tool Overview'!$H$7="Shetland Islands Local Authority",0,IF('III Tool Overview'!$H$7="Eilean Siar Local Authority",0,new_ci(20,B76,C76,D76,$C$1,G76+H76,1,F76,E76*F76))))))) -> 0 | Q76: =IF('III Tool Overview'!$H$7="Orkney Health Board",0,IF('III Tool Overview'!$H$7="Shetland Health Board",0,IF('III Tool Overview'!$H$7="Western Isles Health Board",0,IF('III Tool Overview'!$H$7="Orkney Islands Local Authority",0,IF('III Tool Overview'!$H$7="Shetland Islands Local Authority",0,IF('III Tool Overview'!$H$7="Eilean Siar Local Authority",0,new_yll(2,B76,C76,D76,$C$1,G76,1,F76,E76*F76))))))) -> 0 | R76: =IF('III Tool Overview'!$H$7="Orkney Health Board",0,IF('III Tool Overview'!$H$7="Shetland Health Board",0,IF('III Tool Overview'!$H$7="Western Isles Health Board",0,IF('III Tool Overview'!$H$7="Orkney Islands Local Authority",0,IF('III Tool Overview'!$H$7="Shetland Islands Local Authority",0,IF('III Tool Overview'!$H$7="Eilean Siar Local Authority",0,new_yll(2,B76,C76,D76,$C$1,G76+H76,1,F76,E76*F76))))))) -> 0 | S76: 0 | T76: =IF('III Tool Overview'!$H$7="Orkney Health Board",0,IF('III Tool Overview'!$H$7="Shetland Health Board",0,IF('III Tool Overview'!$H$7="Western Isles Health Board",0,IF('III Tool Overview'!$H$7="Orkney Islands Local Authority",0,IF('III Tool Overview'!$H$7="Shetland Islands Local Authority",0,IF('III Tool Overview'!$H$7="Eilean Siar Local Authority",0,new_yll(5,B76,C76,D76,$C$1,G76,1,F76,E76*F76))))))) -> 0 | U76: =IF('III Tool Overview'!$H$7="Orkney Health Board",0,IF('III Tool Overview'!$H$7="Shetland Health Board",0,IF('III Tool Overview'!$H$7="Western Isles Health Board",0,IF('III Tool Overview'!$H$7="Orkney Islands Local Authority",0,IF('III Tool Overview'!$H$7="Shetland Islands Local Authority",0,IF('III Tool Overview'!$H$7="Eilean Siar Local Authority",0,new_yll(5,B76,C76,D76,$C$1,G76+H76,1,F76,E76*F76))))))) -> 0 | V76: 0 | W76: =IF('III Tool Overview'!$H$7="Orkney Health Board",0,IF('III Tool Overview'!$H$7="Shetland Health Board",0,IF('III Tool Overview'!$H$7="Western Isles Health Board",0,IF('III Tool Overview'!$H$7="Orkney Islands Local Authority",0,IF('III Tool Overview'!$H$7="Shetland Islands Local Authority",0,IF('III Tool Overview'!$H$7="Eilean Siar Local Authority",0,new_yll(10,B76,C76,D76,$C$1,G76,1,F76,E76*F76))))))) -> 0 | X76: =IF('III Tool Overview'!$H$7="Orkney Health Board",0,IF('III Tool Overview'!$H$7="Shetland Health Board",0,IF('III Tool Overview'!$H$7="Western Isles Health Board",0,IF('III Tool Overview'!$H$7="Orkney Islands Local Authority",0,IF('III Tool Overview'!$H$7="Shetland Islands Local Authority",0,IF('III Tool Overview'!$H$7="Eilean Siar Local Authority",0,new_yll(10,B76,C76,D76,$C$1,G76+H76,1,F76,E76*F76))))))) -> 0 | Y76: 0 | Z76: =IF('III Tool Overview'!$H$7="Orkney Health Board",0,IF('III Tool Overview'!$H$7="Shetland Health Board",0,IF('III Tool Overview'!$H$7="Western Isles Health Board",0,IF('III Tool Overview'!$H$7="Orkney Islands Local Authority",0,IF('III Tool Overview'!$H$7="Shetland Islands Local Authority",0,IF('III Tool Overview'!$H$7="Eilean Siar Local Authority",0,new_yll(20,B76,C76,D76,$C$1,G76,1,F76,E76*F76))))))) -> 0 | AA76: =IF('III Tool Overview'!$H$7="Orkney Health Board",0,IF('III Tool Overview'!$H$7="Shetland Health Board",0,IF('III Tool Overview'!$H$7="Western Isles Health Board",0,IF('III Tool Overview'!$H$7="Orkney Islands Local Authority",0,IF('III Tool Overview'!$H$7="Shetland Islands Local Authority",0,IF('III Tool Overview'!$H$7="Eilean Siar Local Authority",0,new_yll(20,B76,C76,D76,$C$1,G76+H76,1,F76,E76*F76))))))) -> 0 | AB76: 0 | AC76: =IF('III Tool Overview'!$H$7="Orkney Health Board",0,IF('III Tool Overview'!$H$7="Shetland Health Board",0,IF('III Tool Overview'!$H$7="Western Isles Health Board",0,IF('III Tool Overview'!$H$7="Orkney Islands Local Authority",0,IF('III Tool Overview'!$H$7="Shetland Islands Local Authority",0,IF('III Tool Overview'!$H$7="Eilean Siar Local Authority",0,hosp_count(2,B76,C76,D76,$C$1,G76,1,F76,E76*F76))))))) -> 0 | AD76: =IF('III Tool Overview'!$H$7="Orkney Health Board",0,IF('III Tool Overview'!$H$7="Shetland Health Board",0,IF('III Tool Overview'!$H$7="Western Isles Health Board",0,IF('III Tool Overview'!$H$7="Orkney Islands Local Authority",0,IF('III Tool Overview'!$H$7="Shetland Islands Local Authority",0,IF('III Tool Overview'!$H$7="Eilean Siar Local Authority",0,hosp_count(2,B76,C76,D76,$C$1,G76+H76,1,F76,E76*F76))))))) -> 0 | AE76: 0 | AF76: =IF('III Tool Overview'!$H$7="Orkney Health Board",0,IF('III Tool Overview'!$H$7="Shetland Health Board",0,IF('III Tool Overview'!$H$7="Western Isles Health Board",0,IF('III Tool Overview'!$H$7="Orkney Islands Local Authority",0,IF('III Tool Overview'!$H$7="Shetland Islands Local Authority",0,IF('III Tool Overview'!$H$7="Eilean Siar Local Authority",0,hosp_count(5,B76,C76,D76,$C$1,G76,1,F76,E76*F76))))))) -> 0 | AG76: =IF('III Tool Overview'!$H$7="Orkney Health Board",0,IF('III Tool Overview'!$H$7="Shetland Health Board",0,IF('III Tool Overview'!$H$7="Western Isles Health Board",0,IF('III Tool Overview'!$H$7="Orkney Islands Local Authority",0,IF('III Tool Overview'!$H$7="Shetland Islands Local Authority",0,IF('III Tool Overview'!$H$7="Eilean Siar Local Authority",0,hosp_count(5,B76,C76,D76,$C$1,G76+H76,1,F76,E76*F76))))))) -> 0 | AH76: 0 | AI76: =IF('III Tool Overview'!$H$7="Orkney Health Board",0,IF('III Tool Overview'!$H$7="Shetland Health Board",0,IF('III Tool Overview'!$H$7="Western Isles Health Board",0,IF('III Tool Overview'!$H$7="Orkney Islands Local Authority",0,IF('III Tool Overview'!$H$7="Shetland Islands Local Authority",0,IF('III Tool Overview'!$H$7="Eilean Siar Local Authority",0,hosp_count(10,B76,C76,D76,$C$1,G76,1,F76,E76*F76))))))) -> 0 | AJ76: =IF('III Tool Overview'!$H$7="Orkney Health Board",0,IF('III Tool Overview'!$H$7="Shetland Health Board",0,IF('III Tool Overview'!$H$7="Western Isles Health Board",0,IF('III Tool Overview'!$H$7="Orkney Islands Local Authority",0,IF('III Tool Overview'!$H$7="Shetland Islands Local Authority",0,IF('III Tool Overview'!$H$7="Eilean Siar Local Authority",0,hosp_count(10,B76,C76,D76,$C$1,G76+H76,1,F76,E76*F76))))))) -> 0 | AK76: 0 | AL76: =IF('III Tool Overview'!$H$7="Orkney Health Board",0,IF('III Tool Overview'!$H$7="Shetland Health Board",0,IF('III Tool Overview'!$H$7="Western Isles Health Board",0,IF('III Tool Overview'!$H$7="Orkney Islands Local Authority",0,IF('III Tool Overview'!$H$7="Shetland Islands Local Authority",0,IF('III Tool Overview'!$H$7="Eilean Siar Local Authority",0,hosp_count(20,B76,C76,D76,$C$1,G76,1,F76,E76*F76))))))) -> 0 | AM76: =IF('III Tool Overview'!$H$7="Orkney Health Board",0,IF('III Tool Overview'!$H$7="Shetland Health Board",0,IF('III Tool Overview'!$H$7="Western Isles Health Board",0,IF('III Tool Overview'!$H$7="Orkney Islands Local Authority",0,IF('III Tool Overview'!$H$7="Shetland Islands Local Authority",0,IF('III Tool Overview'!$H$7="Eilean Siar Local Authority",0,hosp_count(20,B76,C76,D76,$C$1,G76+H76,1,F76,E76*F76))))))) -> 0 | AN76: 0 | AP76: 0.5 | AQ76: 5
A77: Male 50-54 | B77: 52.5 | C77: male | D77: 1 | E77: =HLOOKUP('III Tool Overview'!$H$7,Prevalence!$B$2:$CH$268,Prevalence!CI73,FALSE) -> 0.4851193926 | F77: =HLOOKUP('III Tool Overview'!$H$7,LookUpData_Pop!$B$1:$AV$269,LookUpData_Pop!BB78,FALSE)/5 -> 0 | G77: ='III Tool Overview'!$H$10/110 -> 0 | H77: =IF('III Tool Overview'!$H$11="Even distribution",Targeting!C75,IF('III Tool Overview'!$H$11="Targeting to Q1",Targeting!D75,IF('III Tool Overview'!$H$11="Targeting to Q1 & Q2",Targeting!E75,IF('III Tool Overview'!$H$11="Proportionate to need",Targeting!F75)))) -> 0 | I77: =IF('III Tool Overview'!$H$7="Orkney Health Board",0,IF('III Tool Overview'!$H$7="Shetland Health Board",0,IF('III Tool Overview'!$H$7="Western Isles Health Board",0,IF('III Tool Overview'!$H$7="Orkney Islands Local Authority",0,IF('III Tool Overview'!$H$7="Shetland Islands Local Authority",0,IF('III Tool Overview'!$H$7="Eilean Siar Local Authority",0,new_ci(2,B77,C77,D77,$C$1,G77,1,F77,E77*F77))))))) -> 0 | J77: =IF('III Tool Overview'!$H$7="Orkney Health Board",0,IF('III Tool Overview'!$H$7="Shetland Health Board",0,IF('III Tool Overview'!$H$7="Western Isles Health Board",0,IF('III Tool Overview'!$H$7="Orkney Islands Local Authority",0,IF('III Tool Overview'!$H$7="Shetland Islands Local Authority",0,IF('III Tool Overview'!$H$7="Eilean Siar Local Authority",0,new_ci(2,B77,C77,D77,$C$1,G77+H77,1,F77,E77*F77))))))) -> 0 | K77: =IF('III Tool Overview'!$H$7="Orkney Health Board",0,IF('III Tool Overview'!$H$7="Shetland Health Board",0,IF('III Tool Overview'!$H$7="Western Isles Health Board",0,IF('III Tool Overview'!$H$7="Orkney Islands Local Authority",0,IF('III Tool Overview'!$H$7="Shetland Islands Local Authority",0,IF('III Tool Overview'!$H$7="Eilean Siar Local Authority",0,new_ci(5,B77,C77,D77,$C$1,G77,1,F77,E77*F77))))))) -> 0 | L77: =IF('III Tool Overview'!$H$7="Orkney Health Board",0,IF('III Tool Overview'!$H$7="Shetland Health Board",0,IF('III Tool Overview'!$H$7="Western Isles Health Board",0,IF('III Tool Overview'!$H$7="Orkney Islands Local Authority",0,IF('III Tool Overview'!$H$7="Shetland Islands Local Authority",0,IF('III Tool Overview'!$H$7="Eilean Siar Local Authority",0,new_ci(5,B77,C77,D77,$C$1,G77+H77,1,F77,E77*F77))))))) -> 0 | M77: =IF('III Tool Overview'!$H$7="Orkney Health Board",0,IF('III Tool Overview'!$H$7="Shetland Health Board",0,IF('III Tool Overview'!$H$7="Western Isles Health Board",0,IF('III Tool Overview'!$H$7="Orkney Islands Local Authority",0,IF('III Tool Overview'!$H$7="Shetland Islands Local Authority",0,IF('III Tool Overview'!$H$7="Eilean Siar Local Authority",0,new_ci(10,B77,C77,D77,$C$1,G77,1,F77,E77*F77))))))) -> 0 | N77: =IF('III Tool Overview'!$H$7="Orkney Health Board",0,IF('III Tool Overview'!$H$7="Shetland Health Board",0,IF('III Tool Overview'!$H$7="Western Isles Health Board",0,IF('III Tool Overview'!$H$7="Orkney Islands Local Authority",0,IF('III Tool Overview'!$H$7="Shetland Islands Local Authority",0,IF('III Tool Overview'!$H$7="Eilean Siar Local Authority",0,new_ci(10,B77,C77,D77,$C$1,G77+H77,1,F77,E77*F77))))))) -> 0 | O77: =IF('III Tool Overview'!$H$7="Orkney Health Board",0,IF('III Tool Overview'!$H$7="Shetland Health Board",0,IF('III Tool Overview'!$H$7="Western Isles Health Board",0,IF('III Tool Overview'!$H$7="Orkney Islands Local Authority",0,IF('III Tool Overview'!$H$7="Shetland Islands Local Authority",0,IF('III Tool Overview'!$H$7="Eilean Siar Local Authority",0,new_ci(20,B77,C77,D77,$C$1,G77,1,F77,E77*F77))))))) -> 0 | P77: =IF('III Tool Overview'!$H$7="Orkney Health Board",0,IF('III Tool Overview'!$H$7="Shetland Health Board",0,IF('III Tool Overview'!$H$7="Western Isles Health Board",0,IF('III Tool Overview'!$H$7="Orkney Islands Local Authority",0,IF('III Tool Overview'!$H$7="Shetland Islands Local Authority",0,IF('III Tool Overview'!$H$7="Eilean Siar Local Authority",0,new_ci(20,B77,C77,D77,$C$1,G77+H77,1,F77,E77*F77))))))) -> 0 | Q77: =IF('III Tool Overview'!$H$7="Orkney Health Board",0,IF('III Tool Overview'!$H$7="Shetland Health Board",0,IF('III Tool Overview'!$H$7="Western Isles Health Board",0,IF('III Tool Overview'!$H$7="Orkney Islands Local Authority",0,IF('III Tool Overview'!$H$7="Shetland Islands Local Authority",0,IF('III Tool Overview'!$H$7="Eilean Siar Local Authority",0,new_yll(2,B77,C77,D77,$C$1,G77,1,F77,E77*F77))))))) -> 0 | R77: =IF('III Tool Overview'!$H$7="Orkney Health Board",0,IF('III Tool Overview'!$H$7="Shetland Health Board",0,IF('III Tool Overview'!$H$7="Western Isles Health Board",0,IF('III Tool Overview'!$H$7="Orkney Islands Local Authority",0,IF('III Tool Overview'!$H$7="Shetland Islands Local Authority",0,IF('III Tool Overview'!$H$7="Eilean Siar Local Authority",0,new_yll(2,B77,C77,D77,$C$1,G77+H77,1,F77,E77*F77))))))) -> 0 | S77: 0 | T77: =IF('III Tool Overview'!$H$7="Orkney Health Board",0,IF('III Tool Overview'!$H$7="Shetland Health Board",0,IF('III Tool Overview'!$H$7="Western Isles Health Board",0,IF('III Tool Overview'!$H$7="Orkney Islands Local Authority",0,IF('III Tool Overview'!$H$7="Shetland Islands Local Authority",0,IF('III Tool Overview'!$H$7="Eilean Siar Local Authority",0,new_yll(5,B77,C77,D77,$C$1,G77,1,F77,E77*F77))))))) -> 0 | U77: =IF('III Tool Overview'!$H$7="Orkney Health Board",0,IF('III Tool Overview'!$H$7="Shetland Health Board",0,IF('III Tool Overview'!$H$7="Western Isles Health Board",0,IF('III Tool Overview'!$H$7="Orkney Islands Local Authority",0,IF('III Tool Overview'!$H$7="Shetland Islands Local Authority",0,IF('III Tool Overview'!$H$7="Eilean Siar Local Authority",0,new_yll(5,B77,C77,D77,$C$1,G77+H77,1,F77,E77*F77))))))) -> 0 | V77: 0 | W77: =IF('III Tool Overview'!$H$7="Orkney Health Board",0,IF('III Tool Overview'!$H$7="Shetland Health Board",0,IF('III Tool Overview'!$H$7="Western Isles Health Board",0,IF('III Tool Overview'!$H$7="Orkney Islands Local Authority",0,IF('III Tool Overview'!$H$7="Shetland Islands Local Authority",0,IF('III Tool Overview'!$H$7="Eilean Siar Local Authority",0,new_yll(10,B77,C77,D77,$C$1,G77,1,F77,E77*F77))))))) -> 0 | X77: =IF('III Tool Overview'!$H$7="Orkney Health Board",0,IF('III Tool Overview'!$H$7="Shetland Health Board",0,IF('III Tool Overview'!$H$7="Western Isles Health Board",0,IF('III Tool Overview'!$H$7="Orkney Islands Local Authority",0,IF('III Tool Overview'!$H$7="Shetland Islands Local Authority",0,IF('III Tool Overview'!$H$7="Eilean Siar Local Authority",0,new_yll(10,B77,C77,D77,$C$1,G77+H77,1,F77,E77*F77))))))) -> 0 | Y77: 0 | Z77: =IF('III Tool Overview'!$H$7="Orkney Health Board",0,IF('III Tool Overview'!$H$7="Shetland Health Board",0,IF('III Tool Overview'!$H$7="Western Isles Health Board",0,IF('III Tool Overview'!$H$7="Orkney Islands Local Authority",0,IF('III Tool Overview'!$H$7="Shetland Islands Local Authority",0,IF('III Tool Overview'!$H$7="Eilean Siar Local Authority",0,new_yll(20,B77,C77,D77,$C$1,G77,1,F77,E77*F77))))))) -> 0 | AA77: =IF('III Tool Overview'!$H$7="Orkney Health Board",0,IF('III Tool Overview'!$H$7="Shetland Health Board",0,IF('III Tool Overview'!$H$7="Western Isles Health Board",0,IF('III Tool Overview'!$H$7="Orkney Islands Local Authority",0,IF('III Tool Overview'!$H$7="Shetland Islands Local Authority",0,IF('III Tool Overview'!$H$7="Eilean Siar Local Authority",0,new_yll(20,B77,C77,D77,$C$1,G77+H77,1,F77,E77*F77))))))) -> 0 | AB77: 0 | AC77: =IF('III Tool Overview'!$H$7="Orkney Health Board",0,IF('III Tool Overview'!$H$7="Shetland Health Board",0,IF('III Tool Overview'!$H$7="Western Isles Health Board",0,IF('III Tool Overview'!$H$7="Orkney Islands Local Authority",0,IF('III Tool Overview'!$H$7="Shetland Islands Local Authority",0,IF('III Tool Overview'!$H$7="Eilean Siar Local Authority",0,hosp_count(2,B77,C77,D77,$C$1,G77,1,F77,E77*F77))))))) -> 0 | AD77: =IF('III Tool Overview'!$H$7="Orkney Health Board",0,IF('III Tool Overview'!$H$7="Shetland Health Board",0,IF('III Tool Overview'!$H$7="Western Isles Health Board",0,IF('III Tool Overview'!$H$7="Orkney Islands Local Authority",0,IF('III Tool Overview'!$H$7="Shetland Islands Local Authority",0,IF('III Tool Overview'!$H$7="Eilean Siar Local Authority",0,hosp_count(2,B77,C77,D77,$C$1,G77+H77,1,F77,E77*F77))))))) -> 0 | AE77: 0 | AF77: =IF('III Tool Overview'!$H$7="Orkney Health Board",0,IF('III Tool Overview'!$H$7="Shetland Health Board",0,IF('III Tool Overview'!$H$7="Western Isles Health Board",0,IF('III Tool Overview'!$H$7="Orkney Islands Local Authority",0,IF('III Tool Overview'!$H$7="Shetland Islands Local Authority",0,IF('III Tool Overview'!$H$7="Eilean Siar Local Authority",0,hosp_count(5,B77,C77,D77,$C$1,G77,1,F77,E77*F77))))))) -> 0 | AG77: =IF('III Tool Overview'!$H$7="Orkney Health Board",0,IF('III Tool Overview'!$H$7="Shetland Health Board",0,IF('III Tool Overview'!$H$7="Western Isles Health Board",0,IF('III Tool Overview'!$H$7="Orkney Islands Local Authority",0,IF('III Tool Overview'!$H$7="Shetland Islands Local Authority",0,IF('III Tool Overview'!$H$7="Eilean Siar Local Authority",0,hosp_count(5,B77,C77,D77,$C$1,G77+H77,1,F77,E77*F77))))))) -> 0 | AH77: 0 | AI77: =IF('III Tool Overview'!$H$7="Orkney Health Board",0,IF('III Tool Overview'!$H$7="Shetland Health Board",0,IF('III Tool Overview'!$H$7="Western Isles Health Board",0,IF('III Tool Overview'!$H$7="Orkney Islands Local Authority",0,IF('III Tool Overview'!$H$7="Shetland Islands Local Authority",0,IF('III Tool Overview'!$H$7="Eilean Siar Local Authority",0,hosp_count(10,B77,C77,D77,$C$1,G77,1,F77,E77*F77))))))) -> 0 | AJ77: =IF('III Tool Overview'!$H$7="Orkney Health Board",0,IF('III Tool Overview'!$H$7="Shetland Health Board",0,IF('III Tool Overview'!$H$7="Western Isles Health Board",0,IF('III Tool Overview'!$H$7="Orkney Islands Local Authority",0,IF('III Tool Overview'!$H$7="Shetland Islands Local Authority",0,IF('III Tool Overview'!$H$7="Eilean Siar Local Authority",0,hosp_count(10,B77,C77,D77,$C$1,G77+H77,1,F77,E77*F77))))))) -> 0 | AK77: 0 | AL77: =IF('III Tool Overview'!$H$7="Orkney Health Board",0,IF('III Tool Overview'!$H$7="Shetland Health Board",0,IF('III Tool Overview'!$H$7="Western Isles Health Board",0,IF('III Tool Overview'!$H$7="Orkney Islands Local Authority",0,IF('III Tool Overview'!$H$7="Shetland Islands Local Authority",0,IF('III Tool Overview'!$H$7="Eilean Siar Local Authority",0,hosp_count(20,B77,C77,D77,$C$1,G77,1,F77,E77*F77))))))) -> 0 | AM77: =IF('III Tool Overview'!$H$7="Orkney Health Board",0,IF('III Tool Overview'!$H$7="Shetland Health Board",0,IF('III Tool Overview'!$H$7="Western Isles Health Board",0,IF('III Tool Overview'!$H$7="Orkney Islands Local Authority",0,IF('III Tool Overview'!$H$7="Shetland Islands Local Authority",0,IF('III Tool Overview'!$H$7="Eilean Siar Local Authority",0,hosp_count(20,B77,C77,D77,$C$1,G77+H77,1,F77,E77*F77))))))) -> 0 | AN77: 0 | AP77: 0.5 | AQ77: 5
A78: Male 55-59 | B78: 57.5 | C78: male | D78: 1 | E78: =HLOOKUP('III Tool Overview'!$H$7,Prevalence!$B$2:$CH$268,Prevalence!CI74,FALSE) -> 0.5117548 | F78: =HLOOKUP('III Tool Overview'!$H$7,LookUpData_Pop!$B$1:$AV$269,LookUpData_Pop!BB79,FALSE)/5 -> 0 | G78: ='III Tool Overview'!$H$10/110 -> 0 | H78: =IF('III Tool Overview'!$H$11="Even distribution",Targeting!C76,IF('III Tool Overview'!$H$11="Targeting to Q1",Targeting!D76,IF('III Tool Overview'!$H$11="Targeting to Q1 & Q2",Targeting!E76,IF('III Tool Overview'!$H$11="Proportionate to need",Targeting!F76)))) -> 0 | I78: =IF('III Tool Overview'!$H$7="Orkney Health Board",0,IF('III Tool Overview'!$H$7="Shetland Health Board",0,IF('III Tool Overview'!$H$7="Western Isles Health Board",0,IF('III Tool Overview'!$H$7="Orkney Islands Local Authority",0,IF('III Tool Overview'!$H$7="Shetland Islands Local Authority",0,IF('III Tool Overview'!$H$7="Eilean Siar Local Authority",0,new_ci(2,B78,C78,D78,$C$1,G78,1,F78,E78*F78))))))) -> 0 | J78: =IF('III Tool Overview'!$H$7="Orkney Health Board",0,IF('III Tool Overview'!$H$7="Shetland Health Board",0,IF('III Tool Overview'!$H$7="Western Isles Health Board",0,IF('III Tool Overview'!$H$7="Orkney Islands Local Authority",0,IF('III Tool Overview'!$H$7="Shetland Islands Local Authority",0,IF('III Tool Overview'!$H$7="Eilean Siar Local Authority",0,new_ci(2,B78,C78,D78,$C$1,G78+H78,1,F78,E78*F78))))))) -> 0 | K78: =IF('III Tool Overview'!$H$7="Orkney Health Board",0,IF('III Tool Overview'!$H$7="Shetland Health Board",0,IF('III Tool Overview'!$H$7="Western Isles Health Board",0,IF('III Tool Overview'!$H$7="Orkney Islands Local Authority",0,IF('III Tool Overview'!$H$7="Shetland Islands Local Authority",0,IF('III Tool Overview'!$H$7="Eilean Siar Local Authority",0,new_ci(5,B78,C78,D78,$C$1,G78,1,F78,E78*F78))))))) -> 0 | L78: =IF('III Tool Overview'!$H$7="Orkney Health Board",0,IF('III Tool Overview'!$H$7="Shetland Health Board",0,IF('III Tool Overview'!$H$7="Western Isles Health Board",0,IF('III Tool Overview'!$H$7="Orkney Islands Local Authority",0,IF('III Tool Overview'!$H$7="Shetland Islands Local Authority",0,IF('III Tool Overview'!$H$7="Eilean Siar Local Authority",0,new_ci(5,B78,C78,D78,$C$1,G78+H78,1,F78,E78*F78))))))) -> 0 | M78: =IF('III Tool Overview'!$H$7="Orkney Health Board",0,IF('III Tool Overview'!$H$7="Shetland Health Board",0,IF('III Tool Overview'!$H$7="Western Isles Health Board",0,IF('III Tool Overview'!$H$7="Orkney Islands Local Authority",0,IF('III Tool Overview'!$H$7="Shetland Islands Local Authority",0,IF('III Tool Overview'!$H$7="Eilean Siar Local Authority",0,new_ci(10,B78,C78,D78,$C$1,G78,1,F78,E78*F78))))))) -> 0 | N78: =IF('III Tool Overview'!$H$7="Orkney Health Board",0,IF('III Tool Overview'!$H$7="Shetland Health Board",0,IF('III Tool Overview'!$H$7="Western Isles Health Board",0,IF('III Tool Overview'!$H$7="Orkney Islands Local Authority",0,IF('III Tool Overview'!$H$7="Shetland Islands Local Authority",0,IF('III Tool Overview'!$H$7="Eilean Siar Local Authority",0,new_ci(10,B78,C78,D78,$C$1,G78+H78,1,F78,E78*F78))))))) -> 0 | O78: =IF('III Tool Overview'!$H$7="Orkney Health Board",0,IF('III Tool Overview'!$H$7="Shetland Health Board",0,IF('III Tool Overview'!$H$7="Western Isles Health Board",0,IF('III Tool Overview'!$H$7="Orkney Islands Local Authority",0,IF('III Tool Overview'!$H$7="Shetland Islands Local Authority",0,IF('III Tool Overview'!$H$7="Eilean Siar Local Authority",0,new_ci(20,B78,C78,D78,$C$1,G78,1,F78,E78*F78))))))) -> 0 | P78: =IF('III Tool Overview'!$H$7="Orkney Health Board",0,IF('III Tool Overview'!$H$7="Shetland Health Board",0,IF('III Tool Overview'!$H$7="Western Isles Health Board",0,IF('III Tool Overview'!$H$7="Orkney Islands Local Authority",0,IF('III Tool Overview'!$H$7="Shetland Islands Local Authority",0,IF('III Tool Overview'!$H$7="Eilean Siar Local Authority",0,new_ci(20,B78,C78,D78,$C$1,G78+H78,1,F78,E78*F78))))))) -> 0 | Q78: =IF('III Tool Overview'!$H$7="Orkney Health Board",0,IF('III Tool Overview'!$H$7="Shetland Health Board",0,IF('III Tool Overview'!$H$7="Western Isles Health Board",0,IF('III Tool Overview'!$H$7="Orkney Islands Local Authority",0,IF('III Tool Overview'!$H$7="Shetland Islands Local Authority",0,IF('III Tool Overview'!$H$7="Eilean Siar Local Authority",0,new_yll(2,B78,C78,D78,$C$1,G78,1,F78,E78*F78))))))) -> 0 | R78: =IF('III Tool Overview'!$H$7="Orkney Health Board",0,IF('III Tool Overview'!$H$7="Shetland Health Board",0,IF('III Tool Overview'!$H$7="Western Isles Health Board",0,IF('III Tool Overview'!$H$7="Orkney Islands Local Authority",0,IF('III Tool Overview'!$H$7="Shetland Islands Local Authority",0,IF('III Tool Overview'!$H$7="Eilean Siar Local Authority",0,new_yll(2,B78,C78,D78,$C$1,G78+H78,1,F78,E78*F78))))))) -> 0 | S78: 0 | T78: =IF('III Tool Overview'!$H$7="Orkney Health Board",0,IF('III Tool Overview'!$H$7="Shetland Health Board",0,IF('III Tool Overview'!$H$7="Western Isles Health Board",0,IF('III Tool Overview'!$H$7="Orkney Islands Local Authority",0,IF('III Tool Overview'!$H$7="Shetland Islands Local Authority",0,IF('III Tool Overview'!$H$7="Eilean Siar Local Authority",0,new_yll(5,B78,C78,D78,$C$1,G78,1,F78,E78*F78))))))) -> 0 | U78: =IF('III Tool Overview'!$H$7="Orkney Health Board",0,IF('III Tool Overview'!$H$7="Shetland Health Board",0,IF('III Tool Overview'!$H$7="Western Isles Health Board",0,IF('III Tool Overview'!$H$7="Orkney Islands Local Authority",0,IF('III Tool Overview'!$H$7="Shetland Islands Local Authority",0,IF('III Tool Overview'!$H$7="Eilean Siar Local Authority",0,new_yll(5,B78,C78,D78,$C$1,G78+H78,1,F78,E78*F78))))))) -> 0 | V78: 0 | W78: =IF('III Tool Overview'!$H$7="Orkney Health Board",0,IF('III Tool Overview'!$H$7="Shetland Health Board",0,IF('III Tool Overview'!$H$7="Western Isles Health Board",0,IF('III Tool Overview'!$H$7="Orkney Islands Local Authority",0,IF('III Tool Overview'!$H$7="Shetland Islands Local Authority",0,IF('III Tool Overview'!$H$7="Eilean Siar Local Authority",0,new_yll(10,B78,C78,D78,$C$1,G78,1,F78,E78*F78))))))) -> 0 | X78: =IF('III Tool Overview'!$H$7="Orkney Health Board",0,IF('III Tool Overview'!$H$7="Shetland Health Board",0,IF('III Tool Overview'!$H$7="Western Isles Health Board",0,IF('III Tool Overview'!$H$7="Orkney Islands Local Authority",0,IF('III Tool Overview'!$H$7="Shetland Islands Local Authority",0,IF('III Tool Overview'!$H$7="Eilean Siar Local Authority",0,new_yll(10,B78,C78,D78,$C$1,G78+H78,1,F78,E78*F78))))))) -> 0 | Y78: 0 | Z78: =IF('III Tool Overview'!$H$7="Orkney Health Board",0,IF('III Tool Overview'!$H$7="Shetland Health Board",0,IF('III Tool Overview'!$H$7="Western Isles Health Board",0,IF('III Tool Overview'!$H$7="Orkney Islands Local Authority",0,IF('III Tool Overview'!$H$7="Shetland Islands Local Authority",0,IF('III Tool Overview'!$H$7="Eilean Siar Local Authority",0,new_yll(20,B78,C78,D78,$C$1,G78,1,F78,E78*F78))))))) -> 0 | AA78: =IF('III Tool Overview'!$H$7="Orkney Health Board",0,IF('III Tool Overview'!$H$7="Shetland Health Board",0,IF('III Tool Overview'!$H$7="Western Isles Health Board",0,IF('III Tool Overview'!$H$7="Orkney Islands Local Authority",0,IF('III Tool Overview'!$H$7="Shetland Islands Local Authority",0,IF('III Tool Overview'!$H$7="Eilean Siar Local Authority",0,new_yll(20,B78,C78,D78,$C$1,G78+H78,1,F78,E78*F78))))))) -> 0 | AB78: 0 | AC78: =IF('III Tool Overview'!$H$7="Orkney Health Board",0,IF('III Tool Overview'!$H$7="Shetland Health Board",0,IF('III Tool Overview'!$H$7="Western Isles Health Board",0,IF('III Tool Overview'!$H$7="Orkney Islands Local Authority",0,IF('III Tool Overview'!$H$7="Shetland Islands Local Authority",0,IF('III Tool Overview'!$H$7="Eilean Siar Local Authority",0,hosp_count(2,B78,C78,D78,$C$1,G78,1,F78,E78*F78))))))) -> 0 | AD78: =IF('III Tool Overview'!$H$7="Orkney Health Board",0,IF('III Tool Overview'!$H$7="Shetland Health Board",0,IF('III Tool Overview'!$H$7="Western Isles Health Board",0,IF('III Tool Overview'!$H$7="Orkney Islands Local Authority",0,IF('III Tool Overview'!$H$7="Shetland Islands Local Authority",0,IF('III Tool Overview'!$H$7="Eilean Siar Local Authority",0,hosp_count(2,B78,C78,D78,$C$1,G78+H78,1,F78,E78*F78))))))) -> 0 | AE78: 0 | AF78: =IF('III Tool Overview'!$H$7="Orkney Health Board",0,IF('III Tool Overview'!$H$7="Shetland Health Board",0,IF('III Tool Overview'!$H$7="Western Isles Health Board",0,IF('III Tool Overview'!$H$7="Orkney Islands Local Authority",0,IF('III Tool Overview'!$H$7="Shetland Islands Local Authority",0,IF('III Tool Overview'!$H$7="Eilean Siar Local Authority",0,hosp_count(5,B78,C78,D78,$C$1,G78,1,F78,E78*F78))))))) -> 0 | AG78: =IF('III Tool Overview'!$H$7="Orkney Health Board",0,IF('III Tool Overview'!$H$7="Shetland Health Board",0,IF('III Tool Overview'!$H$7="Western Isles Health Board",0,IF('III Tool Overview'!$H$7="Orkney Islands Local Authority",0,IF('III Tool Overview'!$H$7="Shetland Islands Local Authority",0,IF('III Tool Overview'!$H$7="Eilean Siar Local Authority",0,hosp_count(5,B78,C78,D78,$C$1,G78+H78,1,F78,E78*F78))))))) -> 0 | AH78: 0 | AI78: =IF('III Tool Overview'!$H$7="Orkney Health Board",0,IF('III Tool Overview'!$H$7="Shetland Health Board",0,IF('III Tool Overview'!$H$7="Western Isles Health Board",0,IF('III Tool Overview'!$H$7="Orkney Islands Local Authority",0,IF('III Tool Overview'!$H$7="Shetland Islands Local Authority",0,IF('III Tool Overview'!$H$7="Eilean Siar Local Authority",0,hosp_count(10,B78,C78,D78,$C$1,G78,1,F78,E78*F78))))))) -> 0 | AJ78: =IF('III Tool Overview'!$H$7="Orkney Health Board",0,IF('III Tool Overview'!$H$7="Shetland Health Board",0,IF('III Tool Overview'!$H$7="Western Isles Health Board",0,IF('III Tool Overview'!$H$7="Orkney Islands Local Authority",0,IF('III Tool Overview'!$H$7="Shetland Islands Local Authority",0,IF('III Tool Overview'!$H$7="Eilean Siar Local Authority",0,hosp_count(10,B78,C78,D78,$C$1,G78+H78,1,F78,E78*F78))))))) -> 0 | AK78: 0 | AL78: =IF('III Tool Overview'!$H$7="Orkney Health Board",0,IF('III Tool Overview'!$H$7="Shetland Health Board",0,IF('III Tool Overview'!$H$7="Western Isles Health Board",0,IF('III Tool Overview'!$H$7="Orkney Islands Local Authority",0,IF('III Tool Overview'!$H$7="Shetland Islands Local Authority",0,IF('III Tool Overview'!$H$7="Eilean Siar Local Authority",0,hosp_count(20,B78,C78,D78,$C$1,G78,1,F78,E78*F78))))))) -> 0 | AM78: =IF('III Tool Overview'!$H$7="Orkney Health Board",0,IF('III Tool Overview'!$H$7="Shetland Health Board",0,IF('III Tool Overview'!$H$7="Western Isles Health Board",0,IF('III Tool Overview'!$H$7="Orkney Islands Local Authority",0,IF('III Tool Overview'!$H$7="Shetland Islands Local Authority",0,IF('III Tool Overview'!$H$7="Eilean Siar Local Authority",0,hosp_count(20,B78,C78,D78,$C$1,G78+H78,1,F78,E78*F78))))))) -> 0 | AN78: 0 | AP78: 0.5 | AQ78: 5
A79: Male 60-64 | B79: 62.5 | C79: male | D79: 1 | E79: =HLOOKUP('III Tool Overview'!$H$7,Prevalence!$B$2:$CH$268,Prevalence!CI75,FALSE) -> 0.5117548 | F79: =HLOOKUP('III Tool Overview'!$H$7,LookUpData_Pop!$B$1:$AV$269,LookUpData_Pop!BB80,FALSE)/5 -> 0 | G79: ='III Tool Overview'!$H$10/110 -> 0 | H79: =IF('III Tool Overview'!$H$11="Even distribution",Targeting!C77,IF('III Tool Overview'!$H$11="Targeting to Q1",Targeting!D77,IF('III Tool Overview'!$H$11="Targeting to Q1 & Q2",Targeting!E77,IF('III Tool Overview'!$H$11="Proportionate to need",Targeting!F77)))) -> 0 | I79: =IF('III Tool Overview'!$H$7="Orkney Health Board",0,IF('III Tool Overview'!$H$7="Shetland Health Board",0,IF('III Tool Overview'!$H$7="Western Isles Health Board",0,IF('III Tool Overview'!$H$7="Orkney Islands Local Authority",0,IF('III Tool Overview'!$H$7="Shetland Islands Local Authority",0,IF('III Tool Overview'!$H$7="Eilean Siar Local Authority",0,new_ci(2,B79,C79,D79,$C$1,G79,1,F79,E79*F79))))))) -> 0 | J79: =IF('III Tool Overview'!$H$7="Orkney Health Board",0,IF('III Tool Overview'!$H$7="Shetland Health Board",0,IF('III Tool Overview'!$H$7="Western Isles Health Board",0,IF('III Tool Overview'!$H$7="Orkney Islands Local Authority",0,IF('III Tool Overview'!$H$7="Shetland Islands Local Authority",0,IF('III Tool Overview'!$H$7="Eilean Siar Local Authority",0,new_ci(2,B79,C79,D79,$C$1,G79+H79,1,F79,E79*F79))))))) -> 0 | K79: =IF('III Tool Overview'!$H$7="Orkney Health Board",0,IF('III Tool Overview'!$H$7="Shetland Health Board",0,IF('III Tool Overview'!$H$7="Western Isles Health Board",0,IF('III Tool Overview'!$H$7="Orkney Islands Local Authority",0,IF('III Tool Overview'!$H$7="Shetland Islands Local Authority",0,IF('III Tool Overview'!$H$7="Eilean Siar Local Authority",0,new_ci(5,B79,C79,D79,$C$1,G79,1,F79,E79*F79))))))) -> 0 | L79: =IF('III Tool Overview'!$H$7="Orkney Health Board",0,IF('III Tool Overview'!$H$7="Shetland Health Board",0,IF('III Tool Overview'!$H$7="Western Isles Health Board",0,IF('III Tool Overview'!$H$7="Orkney Islands Local Authority",0,IF('III Tool Overview'!$H$7="Shetland Islands Local Authority",0,IF('III Tool Overview'!$H$7="Eilean Siar Local Authority",0,new_ci(5,B79,C79,D79,$C$1,G79+H79,1,F79,E79*F79))))))) -> 0 | M79: =IF('III Tool Overview'!$H$7="Orkney Health Board",0,IF('III Tool Overview'!$H$7="Shetland Health Board",0,IF('III Tool Overview'!$H$7="Western Isles Health Board",0,IF('III Tool Overview'!$H$7="Orkney Islands Local Authority",0,IF('III Tool Overview'!$H$7="Shetland Islands Local Authority",0,IF('III Tool Overview'!$H$7="Eilean Siar Local Authority",0,new_ci(10,B79,C79,D79,$C$1,G79,1,F79,E79*F79))))))) -> 0 | N79: =IF('III Tool Overview'!$H$7="Orkney Health Board",0,IF('III Tool Overview'!$H$7="Shetland Health Board",0,IF('III Tool Overview'!$H$7="Western Isles Health Board",0,IF('III Tool Overview'!$H$7="Orkney Islands Local Authority",0,IF('III Tool Overview'!$H$7="Shetland Islands Local Authority",0,IF('III Tool Overview'!$H$7="Eilean Siar Local Authority",0,new_ci(10,B79,C79,D79,$C$1,G79+H79,1,F79,E79*F79))))))) -> 0 | O79: =IF('III Tool Overview'!$H$7="Orkney Health Board",0,IF('III Tool Overview'!$H$7="Shetland Health Board",0,IF('III Tool Overview'!$H$7="Western Isles Health Board",0,IF('III Tool Overview'!$H$7="Orkney Islands Local Authority",0,IF('III Tool Overview'!$H$7="Shetland Islands Local Authority",0,IF('III Tool Overview'!$H$7="Eilean Siar Local Authority",0,new_ci(20,B79,C79,D79,$C$1,G79,1,F79,E79*F79))))))) -> 0 | P79: =IF('III Tool Overview'!$H$7="Orkney Health Board",0,IF('III Tool Overview'!$H$7="Shetland Health Board",0,IF('III Tool Overview'!$H$7="Western Isles Health Board",0,IF('III Tool Overview'!$H$7="Orkney Islands Local Authority",0,IF('III Tool Overview'!$H$7="Shetland Islands Local Authority",0,IF('III Tool Overview'!$H$7="Eilean Siar Local Authority",0,new_ci(20,B79,C79,D79,$C$1,G79+H79,1,F79,E79*F79))))))) -> 0 | Q79: =IF('III Tool Overview'!$H$7="Orkney Health Board",0,IF('III Tool Overview'!$H$7="Shetland Health Board",0,IF('III Tool Overview'!$H$7="Western Isles Health Board",0,IF('III Tool Overview'!$H$7="Orkney Islands Local Authority",0,IF('III Tool Overview'!$H$7="Shetland Islands Local Authority",0,IF('III Tool Overview'!$H$7="Eilean Siar Local Authority",0,new_yll(2,B79,C79,D79,$C$1,G79,1,F79,E79*F79))))))) -> 0 | R79: =IF('III Tool Overview'!$H$7="Orkney Health Board",0,IF('III Tool Overview'!$H$7="Shetland Health Board",0,IF('III Tool Overview'!$H$7="Western Isles Health Board",0,IF('III Tool Overview'!$H$7="Orkney Islands Local Authority",0,IF('III Tool Overview'!$H$7="Shetland Islands Local Authority",0,IF('III Tool Overview'!$H$7="Eilean Siar Local Authority",0,new_yll(2,B79,C79,D79,$C$1,G79+H79,1,F79,E79*F79))))))) -> 0 | S79: 0 | T79: =IF('III Tool Overview'!$H$7="Orkney Health Board",0,IF('III Tool Overview'!$H$7="Shetland Health Board",0,IF('III Tool Overview'!$H$7="Western Isles Health Board",0,IF('III Tool Overview'!$H$7="Orkney Islands Local Authority",0,IF('III Tool Overview'!$H$7="Shetland Islands Local Authority",0,IF('III Tool Overview'!$H$7="Eilean Siar Local Authority",0,new_yll(5,B79,C79,D79,$C$1,G79,1,F79,E79*F79))))))) -> 0 | U79: =IF('III Tool Overview'!$H$7="Orkney Health Board",0,IF('III Tool Overview'!$H$7="Shetland Health Board",0,IF('III Tool Overview'!$H$7="Western Isles Health Board",0,IF('III Tool Overview'!$H$7="Orkney Islands Local Authority",0,IF('III Tool Overview'!$H$7="Shetland Islands Local Authority",0,IF('III Tool Overview'!$H$7="Eilean Siar Local Authority",0,new_yll(5,B79,C79,D79,$C$1,G79+H79,1,F79,E79*F79))))))) -> 0 | V79: 0 | W79: =IF('III Tool Overview'!$H$7="Orkney Health Board",0,IF('III Tool Overview'!$H$7="Shetland Health Board",0,IF('III Tool Overview'!$H$7="Western Isles Health Board",0,IF('III Tool Overview'!$H$7="Orkney Islands Local Authority",0,IF('III Tool Overview'!$H$7="Shetland Islands Local Authority",0,IF('III Tool Overview'!$H$7="Eilean Siar Local Authority",0,new_yll(10,B79,C79,D79,$C$1,G79,1,F79,E79*F79))))))) -> 0 | X79: =IF('III Tool Overview'!$H$7="Orkney Health Board",0,IF('III Tool Overview'!$H$7="Shetland Health Board",0,IF('III Tool Overview'!$H$7="Western Isles Health Board",0,IF('III Tool Overview'!$H$7="Orkney Islands Local Authority",0,IF('III Tool Overview'!$H$7="Shetland Islands Local Authority",0,IF('III Tool Overview'!$H$7="Eilean Siar Local Authority",0,new_yll(10,B79,C79,D79,$C$1,G79+H79,1,F79,E79*F79))))))) -> 0 | Y79: 0 | Z79: =IF('III Tool Overview'!$H$7="Orkney Health Board",0,IF('III Tool Overview'!$H$7="Shetland Health Board",0,IF('III Tool Overview'!$H$7="Western Isles Health Board",0,IF('III Tool Overview'!$H$7="Orkney Islands Local Authority",0,IF('III Tool Overview'!$H$7="Shetland Islands Local Authority",0,IF('III Tool Overview'!$H$7="Eilean Siar Local Authority",0,new_yll(20,B79,C79,D79,$C$1,G79,1,F79,E79*F79))))))) -> 0 | AA79: =IF('III Tool Overview'!$H$7="Orkney Health Board",0,IF('III Tool Overview'!$H$7="Shetland Health Board",0,IF('III Tool Overview'!$H$7="Western Isles Health Board",0,IF('III Tool Overview'!$H$7="Orkney Islands Local Authority",0,IF('III Tool Overview'!$H$7="Shetland Islands Local Authority",0,IF('III Tool Overview'!$H$7="Eilean Siar Local Authority",0,new_yll(20,B79,C79,D79,$C$1,G79+H79,1,F79,E79*F79))))))) -> 0 | AB79: 0 | AC79: =IF('III Tool Overview'!$H$7="Orkney Health Board",0,IF('III Tool Overview'!$H$7="Shetland Health Board",0,IF('III Tool Overview'!$H$7="Western Isles Health Board",0,IF('III Tool Overview'!$H$7="Orkney Islands Local Authority",0,IF('III Tool Overview'!$H$7="Shetland Islands Local Authority",0,IF('III Tool Overview'!$H$7="Eilean Siar Local Authority",0,hosp_count(2,B79,C79,D79,$C$1,G79,1,F79,E79*F79))))))) -> 0 | AD79: =IF('III Tool Overview'!$H$7="Orkney Health Board",0,IF('III Tool Overview'!$H$7="Shetland Health Board",0,IF('III Tool Overview'!$H$7="Western Isles Health Board",0,IF('III Tool Overview'!$H$7="Orkney Islands Local Authority",0,IF('III Tool Overview'!$H$7="Shetland Islands Local Authority",0,IF('III Tool Overview'!$H$7="Eilean Siar Local Authority",0,hosp_count(2,B79,C79,D79,$C$1,G79+H79,1,F79,E79*F79))))))) -> 0 | AE79: 0 | AF79: =IF('III Tool Overview'!$H$7="Orkney Health Board",0,IF('III Tool Overview'!$H$7="Shetland Health Board",0,IF('III Tool Overview'!$H$7="Western Isles Health Board",0,IF('III Tool Overview'!$H$7="Orkney Islands Local Authority",0,IF('III Tool Overview'!$H$7="Shetland Islands Local Authority",0,IF('III Tool Overview'!$H$7="Eilean Siar Local Authority",0,hosp_count(5,B79,C79,D79,$C$1,G79,1,F79,E79*F79))))))) -> 0 | AG79: =IF('III Tool Overview'!$H$7="Orkney Health Board",0,IF('III Tool Overview'!$H$7="Shetland Health Board",0,IF('III Tool Overview'!$H$7="Western Isles Health Board",0,IF('III Tool Overview'!$H$7="Orkney Islands Local Authority",0,IF('III Tool Overview'!$H$7="Shetland Islands Local Authority",0,IF('III Tool Overview'!$H$7="Eilean Siar Local Authority",0,hosp_count(5,B79,C79,D79,$C$1,G79+H79,1,F79,E79*F79))))))) -> 0 | AH79: 0 | AI79: =IF('III Tool Overview'!$H$7="Orkney Health Board",0,IF('III Tool Overview'!$H$7="Shetland Health Board",0,IF('III Tool Overview'!$H$7="Western Isles Health Board",0,IF('III Tool Overview'!$H$7="Orkney Islands Local Authority",0,IF('III Tool Overview'!$H$7="Shetland Islands Local Authority",0,IF('III Tool Overview'!$H$7="Eilean Siar Local Authority",0,hosp_count(10,B79,C79,D79,$C$1,G79,1,F79,E79*F79))))))) -> 0 | AJ79: =IF('III Tool Overview'!$H$7="Orkney Health Board",0,IF('III Tool Overview'!$H$7="Shetland Health Board",0,IF('III Tool Overview'!$H$7="Western Isles Health Board",0,IF('III Tool Overview'!$H$7="Orkney Islands Local Authority",0,IF('III Tool Overview'!$H$7="Shetland Islands Local Authority",0,IF('III Tool Overview'!$H$7="Eilean Siar Local Authority",0,hosp_count(10,B79,C79,D79,$C$1,G79+H79,1,F79,E79*F79))))))) -> 0 | AK79: 0 | AL79: =IF('III Tool Overview'!$H$7="Orkney Health Board",0,IF('III Tool Overview'!$H$7="Shetland Health Board",0,IF('III Tool Overview'!$H$7="Western Isles Health Board",0,IF('III Tool Overview'!$H$7="Orkney Islands Local Authority",0,IF('III Tool Overview'!$H$7="Shetland Islands Local Authority",0,IF('III Tool Overview'!$H$7="Eilean Siar Local Authority",0,hosp_count(20,B79,C79,D79,$C$1,G79,1,F79,E79*F79))))))) -> 0 | AM79: =IF('III Tool Overview'!$H$7="Orkney Health Board",0,IF('III Tool Overview'!$H$7="Shetland Health Board",0,IF('III Tool Overview'!$H$7="Western Isles Health Board",0,IF('III Tool Overview'!$H$7="Orkney Islands Local Authority",0,IF('III Tool Overview'!$H$7="Shetland Islands Local Authority",0,IF('III Tool Overview'!$H$7="Eilean Siar Local Authority",0,hosp_count(20,B79,C79,D79,$C$1,G79+H79,1,F79,E79*F79))))))) -> 0 | AN79: 0 | AP79: 0.5 | AQ79: 5
A80: Male 65-69 | B80: 67.5 | C80: male | D80: 1 | E80: =HLOOKUP('III Tool Overview'!$H$7,Prevalence!$B$2:$CH$268,Prevalence!CI76,FALSE) -> 0.4738663556 | F80: =HLOOKUP('III Tool Overview'!$H$7,LookUpData_Pop!$B$1:$AV$269,LookUpData_Pop!BB81,FALSE)/5 -> 0 | G80: ='III Tool Overview'!$H$10/110 -> 0 | H80: =IF('III Tool Overview'!$H$11="Even distribution",Targeting!C78,IF('III Tool Overview'!$H$11="Targeting to Q1",Targeting!D78,IF('III Tool Overview'!$H$11="Targeting to Q1 & Q2",Targeting!E78,IF('III Tool Overview'!$H$11="Proportionate to need",Targeting!F78)))) -> 0 | I80: =IF('III Tool Overview'!$H$7="Orkney Health Board",0,IF('III Tool Overview'!$H$7="Shetland Health Board",0,IF('III Tool Overview'!$H$7="Western Isles Health Board",0,IF('III Tool Overview'!$H$7="Orkney Islands Local Authority",0,IF('III Tool Overview'!$H$7="Shetland Islands Local Authority",0,IF('III Tool Overview'!$H$7="Eilean Siar Local Authority",0,new_ci(2,B80,C80,D80,$C$1,G80,1,F80,E80*F80))))))) -> 0 | J80: =IF('III Tool Overview'!$H$7="Orkney Health Board",0,IF('III Tool Overview'!$H$7="Shetland Health Board",0,IF('III Tool Overview'!$H$7="Western Isles Health Board",0,IF('III Tool Overview'!$H$7="Orkney Islands Local Authority",0,IF('III Tool Overview'!$H$7="Shetland Islands Local Authority",0,IF('III Tool Overview'!$H$7="Eilean Siar Local Authority",0,new_ci(2,B80,C80,D80,$C$1,G80+H80,1,F80,E80*F80))))))) -> 0 | K80: =IF('III Tool Overview'!$H$7="Orkney Health Board",0,IF('III Tool Overview'!$H$7="Shetland Health Board",0,IF('III Tool Overview'!$H$7="Western Isles Health Board",0,IF('III Tool Overview'!$H$7="Orkney Islands Local Authority",0,IF('III Tool Overview'!$H$7="Shetland Islands Local Authority",0,IF('III Tool Overview'!$H$7="Eilean Siar Local Authority",0,new_ci(5,B80,C80,D80,$C$1,G80,1,F80,E80*F80))))))) -> 0 | L80: =IF('III Tool Overview'!$H$7="Orkney Health Board",0,IF('III Tool Overview'!$H$7="Shetland Health Board",0,IF('III Tool Overview'!$H$7="Western Isles Health Board",0,IF('III Tool Overview'!$H$7="Orkney Islands Local Authority",0,IF('III Tool Overview'!$H$7="Shetland Islands Local Authority",0,IF('III Tool Overview'!$H$7="Eilean Siar Local Authority",0,new_ci(5,B80,C80,D80,$C$1,G80+H80,1,F80,E80*F80))))))) -> 0 | M80: =IF('III Tool Overview'!$H$7="Orkney Health Board",0,IF('III Tool Overview'!$H$7="Shetland Health Board",0,IF('III Tool Overview'!$H$7="Western Isles Health Board",0,IF('III Tool Overview'!$H$7="Orkney Islands Local Authority",0,IF('III Tool Overview'!$H$7="Shetland Islands Local Authority",0,IF('III Tool Overview'!$H$7="Eilean Siar Local Authority",0,new_ci(10,B80,C80,D80,$C$1,G80,1,F80,E80*F80))))))) -> 0 | N80: =IF('III Tool Overview'!$H$7="Orkney Health Board",0,IF('III Tool Overview'!$H$7="Shetland Health Board",0,IF('III Tool Overview'!$H$7="Western Isles Health Board",0,IF('III Tool Overview'!$H$7="Orkney Islands Local Authority",0,IF('III Tool Overview'!$H$7="Shetland Islands Local Authority",0,IF('III Tool Overview'!$H$7="Eilean Siar Local Authority",0,new_ci(10,B80,C80,D80,$C$1,G80+H80,1,F80,E80*F80))))))) -> 0 | O80: =IF('III Tool Overview'!$H$7="Orkney Health Board",0,IF('III Tool Overview'!$H$7="Shetland Health Board",0,IF('III Tool Overview'!$H$7="Western Isles Health Board",0,IF('III Tool Overview'!$H$7="Orkney Islands Local Authority",0,IF('III Tool Overview'!$H$7="Shetland Islands Local Authority",0,IF('III Tool Overview'!$H$7="Eilean Siar Local Authority",0,new_ci(20,B80,C80,D80,$C$1,G80,1,F80,E80*F80))))))) -> 0 | P80: =IF('III Tool Overview'!$H$7="Orkney Health Board",0,IF('III Tool Overview'!$H$7="Shetland Health Board",0,IF('III Tool Overview'!$H$7="Western Isles Health Board",0,IF('III Tool Overview'!$H$7="Orkney Islands Local Authority",0,IF('III Tool Overview'!$H$7="Shetland Islands Local Authority",0,IF('III Tool Overview'!$H$7="Eilean Siar Local Authority",0,new_ci(20,B80,C80,D80,$C$1,G80+H80,1,F80,E80*F80))))))) -> 0 | Q80: =IF('III Tool Overview'!$H$7="Orkney Health Board",0,IF('III Tool Overview'!$H$7="Shetland Health Board",0,IF('III Tool Overview'!$H$7="Western Isles Health Board",0,IF('III Tool Overview'!$H$7="Orkney Islands Local Authority",0,IF('III Tool Overview'!$H$7="Shetland Islands Local Authority",0,IF('III Tool Overview'!$H$7="Eilean Siar Local Authority",0,new_yll(2,B80,C80,D80,$C$1,G80,1,F80,E80*F80))))))) -> 0 | R80: =IF('III Tool Overview'!$H$7="Orkney Health Board",0,IF('III Tool Overview'!$H$7="Shetland Health Board",0,IF('III Tool Overview'!$H$7="Western Isles Health Board",0,IF('III Tool Overview'!$H$7="Orkney Islands Local Authority",0,IF('III Tool Overview'!$H$7="Shetland Islands Local Authority",0,IF('III Tool Overview'!$H$7="Eilean Siar Local Authority",0,new_yll(2,B80,C80,D80,$C$1,G80+H80,1,F80,E80*F80))))))) -> 0 | S80: 0 | T80: =IF('III Tool Overview'!$H$7="Orkney Health Board",0,IF('III Tool Overview'!$H$7="Shetland Health Board",0,IF('III Tool Overview'!$H$7="Western Isles Health Board",0,IF('III Tool Overview'!$H$7="Orkney Islands Local Authority",0,IF('III Tool Overview'!$H$7="Shetland Islands Local Authority",0,IF('III Tool Overview'!$H$7="Eilean Siar Local Authority",0,new_yll(5,B80,C80,D80,$C$1,G80,1,F80,E80*F80))))))) -> 0 | U80: =IF('III Tool Overview'!$H$7="Orkney Health Board",0,IF('III Tool Overview'!$H$7="Shetland Health Board",0,IF('III Tool Overview'!$H$7="Western Isles Health Board",0,IF('III Tool Overview'!$H$7="Orkney Islands Local Authority",0,IF('III Tool Overview'!$H$7="Shetland Islands Local Authority",0,IF('III Tool Overview'!$H$7="Eilean Siar Local Authority",0,new_yll(5,B80,C80,D80,$C$1,G80+H80,1,F80,E80*F80))))))) -> 0 | V80: 0 | W80: =IF('III Tool Overview'!$H$7="Orkney Health Board",0,IF('III Tool Overview'!$H$7="Shetland Health Board",0,IF('III Tool Overview'!$H$7="Western Isles Health Board",0,IF('III Tool Overview'!$H$7="Orkney Islands Local Authority",0,IF('III Tool Overview'!$H$7="Shetland Islands Local Authority",0,IF('III Tool Overview'!$H$7="Eilean Siar Local Authority",0,new_yll(10,B80,C80,D80,$C$1,G80,1,F80,E80*F80))))))) -> 0 | X80: =IF('III Tool Overview'!$H$7="Orkney Health Board",0,IF('III Tool Overview'!$H$7="Shetland Health Board",0,IF('III Tool Overview'!$H$7="Western Isles Health Board",0,IF('III Tool Overview'!$H$7="Orkney Islands Local Authority",0,IF('III Tool Overview'!$H$7="Shetland Islands Local Authority",0,IF('III Tool Overview'!$H$7="Eilean Siar Local Authority",0,new_yll(10,B80,C80,D80,$C$1,G80+H80,1,F80,E80*F80))))))) -> 0 | Y80: 0 | Z80: =IF('III Tool Overview'!$H$7="Orkney Health Board",0,IF('III Tool Overview'!$H$7="Shetland Health Board",0,IF('III Tool Overview'!$H$7="Western Isles Health Board",0,IF('III Tool Overview'!$H$7="Orkney Islands Local Authority",0,IF('III Tool Overview'!$H$7="Shetland Islands Local Authority",0,IF('III Tool Overview'!$H$7="Eilean Siar Local Authority",0,new_yll(20,B80,C80,D80,$C$1,G80,1,F80,E80*F80))))))) -> 0 | AA80: =IF('III Tool Overview'!$H$7="Orkney Health Board",0,IF('III Tool Overview'!$H$7="Shetland Health Board",0,IF('III Tool Overview'!$H$7="Western Isles Health Board",0,IF('III Tool Overview'!$H$7="Orkney Islands Local Authority",0,IF('III Tool Overview'!$H$7="Shetland Islands Local Authority",0,IF('III Tool Overview'!$H$7="Eilean Siar Local Authority",0,new_yll(20,B80,C80,D80,$C$1,G80+H80,1,F80,E80*F80))))))) -> 0 | AB80: 0 | AC80: =IF('III Tool Overview'!$H$7="Orkney Health Board",0,IF('III Tool Overview'!$H$7="Shetland Health Board",0,IF('III Tool Overview'!$H$7="Western Isles Health Board",0,IF('III Tool Overview'!$H$7="Orkney Islands Local Authority",0,IF('III Tool Overview'!$H$7="Shetland Islands Local Authority",0,IF('III Tool Overview'!$H$7="Eilean Siar Local Authority",0,hosp_count(2,B80,C80,D80,$C$1,G80,1,F80,E80*F80))))))) -> 0 | AD80: =IF('III Tool Overview'!$H$7="Orkney Health Board",0,IF('III Tool Overview'!$H$7="Shetland Health Board",0,IF('III Tool Overview'!$H$7="Western Isles Health Board",0,IF('III Tool Overview'!$H$7="Orkney Islands Local Authority",0,IF('III Tool Overview'!$H$7="Shetland Islands Local Authority",0,IF('III Tool Overview'!$H$7="Eilean Siar Local Authority",0,hosp_count(2,B80,C80,D80,$C$1,G80+H80,1,F80,E80*F80))))))) -> 0 | AE80: 0 | AF80: =IF('III Tool Overview'!$H$7="Orkney Health Board",0,IF('III Tool Overview'!$H$7="Shetland Health Board",0,IF('III Tool Overview'!$H$7="Western Isles Health Board",0,IF('III Tool Overview'!$H$7="Orkney Islands Local Authority",0,IF('III Tool Overview'!$H$7="Shetland Islands Local Authority",0,IF('III Tool Overview'!$H$7="Eilean Siar Local Authority",0,hosp_count(5,B80,C80,D80,$C$1,G80,1,F80,E80*F80))))))) -> 0 | AG80: =IF('III Tool Overview'!$H$7="Orkney Health Board",0,IF('III Tool Overview'!$H$7="Shetland Health Board",0,IF('III Tool Overview'!$H$7="Western Isles Health Board",0,IF('III Tool Overview'!$H$7="Orkney Islands Local Authority",0,IF('III Tool Overview'!$H$7="Shetland Islands Local Authority",0,IF('III Tool Overview'!$H$7="Eilean Siar Local Authority",0,hosp_count(5,B80,C80,D80,$C$1,G80+H80,1,F80,E80*F80))))))) -> 0 | AH80: 0 | AI80: =IF('III Tool Overview'!$H$7="Orkney Health Board",0,IF('III Tool Overview'!$H$7="Shetland Health Board",0,IF('III Tool Overview'!$H$7="Western Isles Health Board",0,IF('III Tool Overview'!$H$7="Orkney Islands Local Authority",0,IF('III Tool Overview'!$H$7="Shetland Islands Local Authority",0,IF('III Tool Overview'!$H$7="Eilean Siar Local Authority",0,hosp_count(10,B80,C80,D80,$C$1,G80,1,F80,E80*F80))))))) -> 0 | AJ80: =IF('III Tool Overview'!$H$7="Orkney Health Board",0,IF('III Tool Overview'!$H$7="Shetland Health Board",0,IF('III Tool Overview'!$H$7="Western Isles Health Board",0,IF('III Tool Overview'!$H$7="Orkney Islands Local Authority",0,IF('III Tool Overview'!$H$7="Shetland Islands Local Authority",0,IF('III Tool Overview'!$H$7="Eilean Siar Local Authority",0,hosp_count(10,B80,C80,D80,$C$1,G80+H80,1,F80,E80*F80))))))) -> 0 | AK80: 0 | AL80: =IF('III Tool Overview'!$H$7="Orkney Health Board",0,IF('III Tool Overview'!$H$7="Shetland Health Board",0,IF('III Tool Overview'!$H$7="Western Isles Health Board",0,IF('III Tool Overview'!$H$7="Orkney Islands Local Authority",0,IF('III Tool Overview'!$H$7="Shetland Islands Local Authority",0,IF('III Tool Overview'!$H$7="Eilean Siar Local Authority",0,hosp_count(20,B80,C80,D80,$C$1,G80,1,F80,E80*F80))))))) -> 0 | AM80: =IF('III Tool Overview'!$H$7="Orkney Health Board",0,IF('III Tool Overview'!$H$7="Shetland Health Board",0,IF('III Tool Overview'!$H$7="Western Isles Health Board",0,IF('III Tool Overview'!$H$7="Orkney Islands Local Authority",0,IF('III Tool Overview'!$H$7="Shetland Islands Local Authority",0,IF('III Tool Overview'!$H$7="Eilean Siar Local Authority",0,hosp_count(20,B80,C80,D80,$C$1,G80+H80,1,F80,E80*F80))))))) -> 0 | AN80: 0 | AP80: 0.5 | AQ80: 5
A81: Male 70-74 | B81: 72.5 | C81: male | D81: 1 | E81: =HLOOKUP('III Tool Overview'!$H$7,Prevalence!$B$2:$CH$268,Prevalence!CI77,FALSE) -> 0.4738663556 | F81: =HLOOKUP('III Tool Overview'!$H$7,LookUpData_Pop!$B$1:$AV$269,LookUpData_Pop!BB82,FALSE)/5 -> 0 | G81: ='III Tool Overview'!$H$10/110 -> 0 | H81: =IF('III Tool Overview'!$H$11="Even distribution",Targeting!C79,IF('III Tool Overview'!$H$11="Targeting to Q1",Targeting!D79,IF('III Tool Overview'!$H$11="Targeting to Q1 & Q2",Targeting!E79,IF('III Tool Overview'!$H$11="Proportionate to need",Targeting!F79)))) -> 0 | I81: =IF('III Tool Overview'!$H$7="Orkney Health Board",0,IF('III Tool Overview'!$H$7="Shetland Health Board",0,IF('III Tool Overview'!$H$7="Western Isles Health Board",0,IF('III Tool Overview'!$H$7="Orkney Islands Local Authority",0,IF('III Tool Overview'!$H$7="Shetland Islands Local Authority",0,IF('III Tool Overview'!$H$7="Eilean Siar Local Authority",0,new_ci(2,B81,C81,D81,$C$1,G81,1,F81,E81*F81))))))) -> 0 | J81: =IF('III Tool Overview'!$H$7="Orkney Health Board",0,IF('III Tool Overview'!$H$7="Shetland Health Board",0,IF('III Tool Overview'!$H$7="Western Isles Health Board",0,IF('III Tool Overview'!$H$7="Orkney Islands Local Authority",0,IF('III Tool Overview'!$H$7="Shetland Islands Local Authority",0,IF('III Tool Overview'!$H$7="Eilean Siar Local Authority",0,new_ci(2,B81,C81,D81,$C$1,G81+H81,1,F81,E81*F81))))))) -> 0 | K81: =IF('III Tool Overview'!$H$7="Orkney Health Board",0,IF('III Tool Overview'!$H$7="Shetland Health Board",0,IF('III Tool Overview'!$H$7="Western Isles Health Board",0,IF('III Tool Overview'!$H$7="Orkney Islands Local Authority",0,IF('III Tool Overview'!$H$7="Shetland Islands Local Authority",0,IF('III Tool Overview'!$H$7="Eilean Siar Local Authority",0,new_ci(5,B81,C81,D81,$C$1,G81,1,F81,E81*F81))))))) -> 0 | L81: =IF('III Tool Overview'!$H$7="Orkney Health Board",0,IF('III Tool Overview'!$H$7="Shetland Health Board",0,IF('III Tool Overview'!$H$7="Western Isles Health Board",0,IF('III Tool Overview'!$H$7="Orkney Islands Local Authority",0,IF('III Tool Overview'!$H$7="Shetland Islands Local Authority",0,IF('III Tool Overview'!$H$7="Eilean Siar Local Authority",0,new_ci(5,B81,C81,D81,$C$1,G81+H81,1,F81,E81*F81))))))) -> 0 | M81: =IF('III Tool Overview'!$H$7="Orkney Health Board",0,IF('III Tool Overview'!$H$7="Shetland Health Board",0,IF('III Tool Overview'!$H$7="Western Isles Health Board",0,IF('III Tool Overview'!$H$7="Orkney Islands Local Authority",0,IF('III Tool Overview'!$H$7="Shetland Islands Local Authority",0,IF('III Tool Overview'!$H$7="Eilean Siar Local Authority",0,new_ci(10,B81,C81,D81,$C$1,G81,1,F81,E81*F81))))))) -> 0 | N81: =IF('III Tool Overview'!$H$7="Orkney Health Board",0,IF('III Tool Overview'!$H$7="Shetland Health Board",0,IF('III Tool Overview'!$H$7="Western Isles Health Board",0,IF('III Tool Overview'!$H$7="Orkney Islands Local Authority",0,IF('III Tool Overview'!$H$7="Shetland Islands Local Authority",0,IF('III Tool Overview'!$H$7="Eilean Siar Local Authority",0,new_ci(10,B81,C81,D81,$C$1,G81+H81,1,F81,E81*F81))))))) -> 0 | O81: =IF('III Tool Overview'!$H$7="Orkney Health Board",0,IF('III Tool Overview'!$H$7="Shetland Health Board",0,IF('III Tool Overview'!$H$7="Western Isles Health Board",0,IF('III Tool Overview'!$H$7="Orkney Islands Local Authority",0,IF('III Tool Overview'!$H$7="Shetland Islands Local Authority",0,IF('III Tool Overview'!$H$7="Eilean Siar Local Authority",0,new_ci(20,B81,C81,D81,$C$1,G81,1,F81,E81*F81))))))) -> 0 | P81: =IF('III Tool Overview'!$H$7="Orkney Health Board",0,IF('III Tool Overview'!$H$7="Shetland Health Board",0,IF('III Tool Overview'!$H$7="Western Isles Health Board",0,IF('III Tool Overview'!$H$7="Orkney Islands Local Authority",0,IF('III Tool Overview'!$H$7="Shetland Islands Local Authority",0,IF('III Tool Overview'!$H$7="Eilean Siar Local Authority",0,new_ci(20,B81,C81,D81,$C$1,G81+H81,1,F81,E81*F81))))))) -> 0 | Q81: =IF('III Tool Overview'!$H$7="Orkney Health Board",0,IF('III Tool Overview'!$H$7="Shetland Health Board",0,IF('III Tool Overview'!$H$7="Western Isles Health Board",0,IF('III Tool Overview'!$H$7="Orkney Islands Local Authority",0,IF('III Tool Overview'!$H$7="Shetland Islands Local Authority",0,IF('III Tool Overview'!$H$7="Eilean Siar Local Authority",0,new_yll(2,B81,C81,D81,$C$1,G81,1,F81,E81*F81))))))) -> 0 | R81: =IF('III Tool Overview'!$H$7="Orkney Health Board",0,IF('III Tool Overview'!$H$7="Shetland Health Board",0,IF('III Tool Overview'!$H$7="Western Isles Health Board",0,IF('III Tool Overview'!$H$7="Orkney Islands Local Authority",0,IF('III Tool Overview'!$H$7="Shetland Islands Local Authority",0,IF('III Tool Overview'!$H$7="Eilean Siar Local Authority",0,new_yll(2,B81,C81,D81,$C$1,G81+H81,1,F81,E81*F81))))))) -> 0 | S81: 0 | T81: =IF('III Tool Overview'!$H$7="Orkney Health Board",0,IF('III Tool Overview'!$H$7="Shetland Health Board",0,IF('III Tool Overview'!$H$7="Western Isles Health Board",0,IF('III Tool Overview'!$H$7="Orkney Islands Local Authority",0,IF('III Tool Overview'!$H$7="Shetland Islands Local Authority",0,IF('III Tool Overview'!$H$7="Eilean Siar Local Authority",0,new_yll(5,B81,C81,D81,$C$1,G81,1,F81,E81*F81))))))) -> 0 | U81: =IF('III Tool Overview'!$H$7="Orkney Health Board",0,IF('III Tool Overview'!$H$7="Shetland Health Board",0,IF('III Tool Overview'!$H$7="Western Isles Health Board",0,IF('III Tool Overview'!$H$7="Orkney Islands Local Authority",0,IF('III Tool Overview'!$H$7="Shetland Islands Local Authority",0,IF('III Tool Overview'!$H$7="Eilean Siar Local Authority",0,new_yll(5,B81,C81,D81,$C$1,G81+H81,1,F81,E81*F81))))))) -> 0 | V81: 0 | W81: =IF('III Tool Overview'!$H$7="Orkney Health Board",0,IF('III Tool Overview'!$H$7="Shetland Health Board",0,IF('III Tool Overview'!$H$7="Western Isles Health Board",0,IF('III Tool Overview'!$H$7="Orkney Islands Local Authority",0,IF('III Tool Overview'!$H$7="Shetland Islands Local Authority",0,IF('III Tool Overview'!$H$7="Eilean Siar Local Authority",0,new_yll(10,B81,C81,D81,$C$1,G81,1,F81,E81*F81))))))) -> 0 | X81: =IF('III Tool Overview'!$H$7="Orkney Health Board",0,IF('III Tool Overview'!$H$7="Shetland Health Board",0,IF('III Tool Overview'!$H$7="Western Isles Health Board",0,IF('III Tool Overview'!$H$7="Orkney Islands Local Authority",0,IF('III Tool Overview'!$H$7="Shetland Islands Local Authority",0,IF('III Tool Overview'!$H$7="Eilean Siar Local Authority",0,new_yll(10,B81,C81,D81,$C$1,G81+H81,1,F81,E81*F81))))))) -> 0 | Y81: 0 | Z81: =IF('III Tool Overview'!$H$7="Orkney Health Board",0,IF('III Tool Overview'!$H$7="Shetland Health Board",0,IF('III Tool Overview'!$H$7="Western Isles Health Board",0,IF('III Tool Overview'!$H$7="Orkney Islands Local Authority",0,IF('III Tool Overview'!$H$7="Shetland Islands Local Authority",0,IF('III Tool Overview'!$H$7="Eilean Siar Local Authority",0,new_yll(20,B81,C81,D81,$C$1,G81,1,F81,E81*F81))))))) -> 0 | AA81: =IF('III Tool Overview'!$H$7="Orkney Health Board",0,IF('III Tool Overview'!$H$7="Shetland Health Board",0,IF('III Tool Overview'!$H$7="Western Isles Health Board",0,IF('III Tool Overview'!$H$7="Orkney Islands Local Authority",0,IF('III Tool Overview'!$H$7="Shetland Islands Local Authority",0,IF('III Tool Overview'!$H$7="Eilean Siar Local Authority",0,new_yll(20,B81,C81,D81,$C$1,G81+H81,1,F81,E81*F81))))))) -> 0 | AB81: 0 | AC81: =IF('III Tool Overview'!$H$7="Orkney Health Board",0,IF('III Tool Overview'!$H$7="Shetland Health Board",0,IF('III Tool Overview'!$H$7="Western Isles Health Board",0,IF('III Tool Overview'!$H$7="Orkney Islands Local Authority",0,IF('III Tool Overview'!$H$7="Shetland Islands Local Authority",0,IF('III Tool Overview'!$H$7="Eilean Siar Local Authority",0,hosp_count(2,B81,C81,D81,$C$1,G81,1,F81,E81*F81))))))) -> 0 | AD81: =IF('III Tool Overview'!$H$7="Orkney Health Board",0,IF('III Tool Overview'!$H$7="Shetland Health Board",0,IF('III Tool Overview'!$H$7="Western Isles Health Board",0,IF('III Tool Overview'!$H$7="Orkney Islands Local Authority",0,IF('III Tool Overview'!$H$7="Shetland Islands Local Authority",0,IF('III Tool Overview'!$H$7="Eilean Siar Local Authority",0,hosp_count(2,B81,C81,D81,$C$1,G81+H81,1,F81,E81*F81))))))) -> 0 | AE81: 0 | AF81: =IF('III Tool Overview'!$H$7="Orkney Health Board",0,IF('III Tool Overview'!$H$7="Shetland Health Board",0,IF('III Tool Overview'!$H$7="Western Isles Health Board",0,IF('III Tool Overview'!$H$7="Orkney Islands Local Authority",0,IF('III Tool Overview'!$H$7="Shetland Islands Local Authority",0,IF('III Tool Overview'!$H$7="Eilean Siar Local Authority",0,hosp_count(5,B81,C81,D81,$C$1,G81,1,F81,E81*F81))))))) -> 0 | AG81: =IF('III Tool Overview'!$H$7="Orkney Health Board",0,IF('III Tool Overview'!$H$7="Shetland Health Board",0,IF('III Tool Overview'!$H$7="Western Isles Health Board",0,IF('III Tool Overview'!$H$7="Orkney Islands Local Authority",0,IF('III Tool Overview'!$H$7="Shetland Islands Local Authority",0,IF('III Tool Overview'!$H$7="Eilean Siar Local Authority",0,hosp_count(5,B81,C81,D81,$C$1,G81+H81,1,F81,E81*F81))))))) -> 0 | AH81: 0 | AI81: =IF('III Tool Overview'!$H$7="Orkney Health Board",0,IF('III Tool Overview'!$H$7="Shetland Health Board",0,IF('III Tool Overview'!$H$7="Western Isles Health Board",0,IF('III Tool Overview'!$H$7="Orkney Islands Local Authority",0,IF('III Tool Overview'!$H$7="Shetland Islands Local Authority",0,IF('III Tool Overview'!$H$7="Eilean Siar Local Authority",0,hosp_count(10,B81,C81,D81,$C$1,G81,1,F81,E81*F81))))))) -> 0 | AJ81: =IF('III Tool Overview'!$H$7="Orkney Health Board",0,IF('III Tool Overview'!$H$7="Shetland Health Board",0,IF('III Tool Overview'!$H$7="Western Isles Health Board",0,IF('III Tool Overview'!$H$7="Orkney Islands Local Authority",0,IF('III Tool Overview'!$H$7="Shetland Islands Local Authority",0,IF('III Tool Overview'!$H$7="Eilean Siar Local Authority",0,hosp_count(10,B81,C81,D81,$C$1,G81+H81,1,F81,E81*F81))))))) -> 0 | AK81: 0 | AL81: =IF('III Tool Overview'!$H$7="Orkney Health Board",0,IF('III Tool Overview'!$H$7="Shetland Health Board",0,IF('III Tool Overview'!$H$7="Western Isles Health Board",0,IF('III Tool Overview'!$H$7="Orkney Islands Local Authority",0,IF('III Tool Overview'!$H$7="Shetland Islands Local Authority",0,IF('III Tool Overview'!$H$7="Eilean Siar Local Authority",0,hosp_count(20,B81,C81,D81,$C$1,G81,1,F81,E81*F81))))))) -> 0 | AM81: =IF('III Tool Overview'!$H$7="Orkney Health Board",0,IF('III Tool Overview'!$H$7="Shetland Health Board",0,IF('III Tool Overview'!$H$7="Western Isles Health Board",0,IF('III Tool Overview'!$H$7="Orkney Islands Local Authority",0,IF('III Tool Overview'!$H$7="Shetland Islands Local Authority",0,IF('III Tool Overview'!$H$7="Eilean Siar Local Authority",0,hosp_count(20,B81,C81,D81,$C$1,G81+H81,1,F81,E81*F81))))))) -> 0 | AN81: 0 | AP81: 0.5 | AQ81: 5
A82: Male 75-79 | B82: 77.5 | C82: male | D82: 1 | E82: =HLOOKUP('III Tool Overview'!$H$7,Prevalence!$B$2:$CH$268,Prevalence!CI78,FALSE) -> 0.2541073407 | F82: =HLOOKUP('III Tool Overview'!$H$7,LookUpData_Pop!$B$1:$AV$269,LookUpData_Pop!BB83,FALSE)/5 -> 0 | G82: ='III Tool Overview'!$H$10/110 -> 0 | H82: =IF('III Tool Overview'!$H$11="Even distribution",Targeting!C80,IF('III Tool Overview'!$H$11="Targeting to Q1",Targeting!D80,IF('III Tool Overview'!$H$11="Targeting to Q1 & Q2",Targeting!E80,IF('III Tool Overview'!$H$11="Proportionate to need",Targeting!F80)))) -> 0 | I82: =IF('III Tool Overview'!$H$7="Orkney Health Board",0,IF('III Tool Overview'!$H$7="Shetland Health Board",0,IF('III Tool Overview'!$H$7="Western Isles Health Board",0,IF('III Tool Overview'!$H$7="Orkney Islands Local Authority",0,IF('III Tool Overview'!$H$7="Shetland Islands Local Authority",0,IF('III Tool Overview'!$H$7="Eilean Siar Local Authority",0,new_ci(2,B82,C82,D82,$C$1,G82,1,F82,E82*F82))))))) -> 0 | J82: =IF('III Tool Overview'!$H$7="Orkney Health Board",0,IF('III Tool Overview'!$H$7="Shetland Health Board",0,IF('III Tool Overview'!$H$7="Western Isles Health Board",0,IF('III Tool Overview'!$H$7="Orkney Islands Local Authority",0,IF('III Tool Overview'!$H$7="Shetland Islands Local Authority",0,IF('III Tool Overview'!$H$7="Eilean Siar Local Authority",0,new_ci(2,B82,C82,D82,$C$1,G82+H82,1,F82,E82*F82))))))) -> 0 | K82: =IF('III Tool Overview'!$H$7="Orkney Health Board",0,IF('III Tool Overview'!$H$7="Shetland Health Board",0,IF('III Tool Overview'!$H$7="Western Isles Health Board",0,IF('III Tool Overview'!$H$7="Orkney Islands Local Authority",0,IF('III Tool Overview'!$H$7="Shetland Islands Local Authority",0,IF('III Tool Overview'!$H$7="Eilean Siar Local Authority",0,new_ci(5,B82,C82,D82,$C$1,G82,1,F82,E82*F82))))))) -> 0 | L82: =IF('III Tool Overview'!$H$7="Orkney Health Board",0,IF('III Tool Overview'!$H$7="Shetland Health Board",0,IF('III Tool Overview'!$H$7="Western Isles Health Board",0,IF('III Tool Overview'!$H$7="Orkney Islands Local Authority",0,IF('III Tool Overview'!$H$7="Shetland Islands Local Authority",0,IF('III Tool Overview'!$H$7="Eilean Siar Local Authority",0,new_ci(5,B82,C82,D82,$C$1,G82+H82,1,F82,E82*F82))))))) -> 0 | M82: =IF('III Tool Overview'!$H$7="Orkney Health Board",0,IF('III Tool Overview'!$H$7="Shetland Health Board",0,IF('III Tool Overview'!$H$7="Western Isles Health Board",0,IF('III Tool Overview'!$H$7="Orkney Islands Local Authority",0,IF('III Tool Overview'!$H$7="Shetland Islands Local Authority",0,IF('III Tool Overview'!$H$7="Eilean Siar Local Authority",0,new_ci(10,B82,C82,D82,$C$1,G82,1,F82,E82*F82))))))) -> 0 | N82: =IF('III Tool Overview'!$H$7="Orkney Health Board",0,IF('III Tool Overview'!$H$7="Shetland Health Board",0,IF('III Tool Overview'!$H$7="Western Isles Health Board",0,IF('III Tool Overview'!$H$7="Orkney Islands Local Authority",0,IF('III Tool Overview'!$H$7="Shetland Islands Local Authority",0,IF('III Tool Overview'!$H$7="Eilean Siar Local Authority",0,new_ci(10,B82,C82,D82,$C$1,G82+H82,1,F82,E82*F82))))))) -> 0 | O82: =IF('III Tool Overview'!$H$7="Orkney Health Board",0,IF('III Tool Overview'!$H$7="Shetland Health Board",0,IF('III Tool Overview'!$H$7="Western Isles Health Board",0,IF('III Tool Overview'!$H$7="Orkney Islands Local Authority",0,IF('III Tool Overview'!$H$7="Shetland Islands Local Authority",0,IF('III Tool Overview'!$H$7="Eilean Siar Local Authority",0,new_ci(20,B82,C82,D82,$C$1,G82,1,F82,E82*F82))))))) -> 0 | P82: =IF('III Tool Overview'!$H$7="Orkney Health Board",0,IF('III Tool Overview'!$H$7="Shetland Health Board",0,IF('III Tool Overview'!$H$7="Western Isles Health Board",0,IF('III Tool Overview'!$H$7="Orkney Islands Local Authority",0,IF('III Tool Overview'!$H$7="Shetland Islands Local Authority",0,IF('III Tool Overview'!$H$7="Eilean Siar Local Authority",0,new_ci(20,B82,C82,D82,$C$1,G82+H82,1,F82,E82*F82))))))) -> 0 | Q82: =IF('III Tool Overview'!$H$7="Orkney Health Board",0,IF('III Tool Overview'!$H$7="Shetland Health Board",0,IF('III Tool Overview'!$H$7="Western Isles Health Board",0,IF('III Tool Overview'!$H$7="Orkney Islands Local Authority",0,IF('III Tool Overview'!$H$7="Shetland Islands Local Authority",0,IF('III Tool Overview'!$H$7="Eilean Siar Local Authority",0,new_yll(2,B82,C82,D82,$C$1,G82,1,F82,E82*F82))))))) -> 0 | R82: =IF('III Tool Overview'!$H$7="Orkney Health Board",0,IF('III Tool Overview'!$H$7="Shetland Health Board",0,IF('III Tool Overview'!$H$7="Western Isles Health Board",0,IF('III Tool Overview'!$H$7="Orkney Islands Local Authority",0,IF('III Tool Overview'!$H$7="Shetland Islands Local Authority",0,IF('III Tool Overview'!$H$7="Eilean Siar Local Authority",0,new_yll(2,B82,C82,D82,$C$1,G82+H82,1,F82,E82*F82))))))) -> 0 | S82: 0 | T82: =IF('III Tool Overview'!$H$7="Orkney Health Board",0,IF('III Tool Overview'!$H$7="Shetland Health Board",0,IF('III Tool Overview'!$H$7="Western Isles Health Board",0,IF('III Tool Overview'!$H$7="Orkney Islands Local Authority",0,IF('III Tool Overview'!$H$7="Shetland Islands Local Authority",0,IF('III Tool Overview'!$H$7="Eilean Siar Local Authority",0,new_yll(5,B82,C82,D82,$C$1,G82,1,F82,E82*F82))))))) -> 0 | U82: =IF('III Tool Overview'!$H$7="Orkney Health Board",0,IF('III Tool Overview'!$H$7="Shetland Health Board",0,IF('III Tool Overview'!$H$7="Western Isles Health Board",0,IF('III Tool Overview'!$H$7="Orkney Islands Local Authority",0,IF('III Tool Overview'!$H$7="Shetland Islands Local Authority",0,IF('III Tool Overview'!$H$7="Eilean Siar Local Authority",0,new_yll(5,B82,C82,D82,$C$1,G82+H82,1,F82,E82*F82))))))) -> 0 | V82: 0 | W82: =IF('III Tool Overview'!$H$7="Orkney Health Board",0,IF('III Tool Overview'!$H$7="Shetland Health Board",0,IF('III Tool Overview'!$H$7="Western Isles Health Board",0,IF('III Tool Overview'!$H$7="Orkney Islands Local Authority",0,IF('III Tool Overview'!$H$7="Shetland Islands Local Authority",0,IF('III Tool Overview'!$H$7="Eilean Siar Local Authority",0,new_yll(10,B82,C82,D82,$C$1,G82,1,F82,E82*F82))))))) -> 0 | X82: =IF('III Tool Overview'!$H$7="Orkney Health Board",0,IF('III Tool Overview'!$H$7="Shetland Health Board",0,IF('III Tool Overview'!$H$7="Western Isles Health Board",0,IF('III Tool Overview'!$H$7="Orkney Islands Local Authority",0,IF('III Tool Overview'!$H$7="Shetland Islands Local Authority",0,IF('III Tool Overview'!$H$7="Eilean Siar Local Authority",0,new_yll(10,B82,C82,D82,$C$1,G82+H82,1,F82,E82*F82))))))) -> 0 | Y82: 0 | Z82: =IF('III Tool Overview'!$H$7="Orkney Health Board",0,IF('III Tool Overview'!$H$7="Shetland Health Board",0,IF('III Tool Overview'!$H$7="Western Isles Health Board",0,IF('III Tool Overview'!$H$7="Orkney Islands Local Authority",0,IF('III Tool Overview'!$H$7="Shetland Islands Local Authority",0,IF('III Tool Overview'!$H$7="Eilean Siar Local Authority",0,new_yll(20,B82,C82,D82,$C$1,G82,1,F82,E82*F82))))))) -> 0 | AA82: =IF('III Tool Overview'!$H$7="Orkney Health Board",0,IF('III Tool Overview'!$H$7="Shetland Health Board",0,IF('III Tool Overview'!$H$7="Western Isles Health Board",0,IF('III Tool Overview'!$H$7="Orkney Islands Local Authority",0,IF('III Tool Overview'!$H$7="Shetland Islands Local Authority",0,IF('III Tool Overview'!$H$7="Eilean Siar Local Authority",0,new_yll(20,B82,C82,D82,$C$1,G82+H82,1,F82,E82*F82))))))) -> 0 | AB82: 0 | AC82: =IF('III Tool Overview'!$H$7="Orkney Health Board",0,IF('III Tool Overview'!$H$7="Shetland Health Board",0,IF('III Tool Overview'!$H$7="Western Isles Health Board",0,IF('III Tool Overview'!$H$7="Orkney Islands Local Authority",0,IF('III Tool Overview'!$H$7="Shetland Islands Local Authority",0,IF('III Tool Overview'!$H$7="Eilean Siar Local Authority",0,hosp_count(2,B82,C82,D82,$C$1,G82,1,F82,E82*F82))))))) -> 0 | AD82: =IF('III Tool Overview'!$H$7="Orkney Health Board",0,IF('III Tool Overview'!$H$7="Shetland Health Board",0,IF('III Tool Overview'!$H$7="Western Isles Health Board",0,IF('III Tool Overview'!$H$7="Orkney Islands Local Authority",0,IF('III Tool Overview'!$H$7="Shetland Islands Local Authority",0,IF('III Tool Overview'!$H$7="Eilean Siar Local Authority",0,hosp_count(2,B82,C82,D82,$C$1,G82+H82,1,F82,E82*F82))))))) -> 0 | AE82: 0 | AF82: =IF('III Tool Overview'!$H$7="Orkney Health Board",0,IF('III Tool Overview'!$H$7="Shetland Health Board",0,IF('III Tool Overview'!$H$7="Western Isles Health Board",0,IF('III Tool Overview'!$H$7="Orkney Islands Local Authority",0,IF('III Tool Overview'!$H$7="Shetland Islands Local Authority",0,IF('III Tool Overview'!$H$7="Eilean Siar Local Authority",0,hosp_count(5,B82,C82,D82,$C$1,G82,1,F82,E82*F82))))))) -> 0 | AG82: =IF('III Tool Overview'!$H$7="Orkney Health Board",0,IF('III Tool Overview'!$H$7="Shetland Health Board",0,IF('III Tool Overview'!$H$7="Western Isles Health Board",0,IF('III Tool Overview'!$H$7="Orkney Islands Local Authority",0,IF('III Tool Overview'!$H$7="Shetland Islands Local Authority",0,IF('III Tool Overview'!$H$7="Eilean Siar Local Authority",0,hosp_count(5,B82,C82,D82,$C$1,G82+H82,1,F82,E82*F82))))))) -> 0 | AH82: 0 | AI82: =IF('III Tool Overview'!$H$7="Orkney Health Board",0,IF('III Tool Overview'!$H$7="Shetland Health Board",0,IF('III Tool Overview'!$H$7="Western Isles Health Board",0,IF('III Tool Overview'!$H$7="Orkney Islands Local Authority",0,IF('III Tool Overview'!$H$7="Shetland Islands Local Authority",0,IF('III Tool Overview'!$H$7="Eilean Siar Local Authority",0,hosp_count(10,B82,C82,D82,$C$1,G82,1,F82,E82*F82))))))) -> 0 | AJ82: =IF('III Tool Overview'!$H$7="Orkney Health Board",0,IF('III Tool Overview'!$H$7="Shetland Health Board",0,IF('III Tool Overview'!$H$7="Western Isles Health Board",0,IF('III Tool Overview'!$H$7="Orkney Islands Local Authority",0,IF('III Tool Overview'!$H$7="Shetland Islands Local Authority",0,IF('III Tool Overview'!$H$7="Eilean Siar Local Authority",0,hosp_count(10,B82,C82,D82,$C$1,G82+H82,1,F82,E82*F82))))))) -> 0 | AK82: 0 | AL82: =IF('III Tool Overview'!$H$7="Orkney Health Board",0,IF('III Tool Overview'!$H$7="Shetland Health Board",0,IF('III Tool Overview'!$H$7="Western Isles Health Board",0,IF('III Tool Overview'!$H$7="Orkney Islands Local Authority",0,IF('III Tool Overview'!$H$7="Shetland Islands Local Authority",0,IF('III Tool Overview'!$H$7="Eilean Siar Local Authority",0,hosp_count(20,B82,C82,D82,$C$1,G82,1,F82,E82*F82))))))) -> 0 | AM82: =IF('III Tool Overview'!$H$7="Orkney Health Board",0,IF('III Tool Overview'!$H$7="Shetland Health Board",0,IF('III Tool Overview'!$H$7="Western Isles Health Board",0,IF('III Tool Overview'!$H$7="Orkney Islands Local Authority",0,IF('III Tool Overview'!$H$7="Shetland Islands Local Authority",0,IF('III Tool Overview'!$H$7="Eilean Siar Local Authority",0,hosp_count(20,B82,C82,D82,$C$1,G82+H82,1,F82,E82*F82))))))) -> 0 | AN82: 0 | AP82: 0.5 | AQ82: 5
A83: Male 80-84 | B83: 82.5 | C83: male | D83: 1 | E83: =HLOOKUP('III Tool Overview'!$H$7,Prevalence!$B$2:$CH$268,Prevalence!CI79,FALSE) -> 0.2541073407 | F83: =HLOOKUP('III Tool Overview'!$H$7,LookUpData_Pop!$B$1:$AV$269,LookUpData_Pop!BB84,FALSE)/5 -> 0 | G83: ='III Tool Overview'!$H$10/110 -> 0 | H83: =IF('III Tool Overview'!$H$11="Even distribution",Targeting!C81,IF('III Tool Overview'!$H$11="Targeting to Q1",Targeting!D81,IF('III Tool Overview'!$H$11="Targeting to Q1 & Q2",Targeting!E81,IF('III Tool Overview'!$H$11="Proportionate to need",Targeting!F81)))) -> 0 | I83: =IF('III Tool Overview'!$H$7="Orkney Health Board",0,IF('III Tool Overview'!$H$7="Shetland Health Board",0,IF('III Tool Overview'!$H$7="Western Isles Health Board",0,IF('III Tool Overview'!$H$7="Orkney Islands Local Authority",0,IF('III Tool Overview'!$H$7="Shetland Islands Local Authority",0,IF('III Tool Overview'!$H$7="Eilean Siar Local Authority",0,new_ci(2,B83,C83,D83,$C$1,G83,1,F83,E83*F83))))))) -> 0 | J83: =IF('III Tool Overview'!$H$7="Orkney Health Board",0,IF('III Tool Overview'!$H$7="Shetland Health Board",0,IF('III Tool Overview'!$H$7="Western Isles Health Board",0,IF('III Tool Overview'!$H$7="Orkney Islands Local Authority",0,IF('III Tool Overview'!$H$7="Shetland Islands Local Authority",0,IF('III Tool Overview'!$H$7="Eilean Siar Local Authority",0,new_ci(2,B83,C83,D83,$C$1,G83+H83,1,F83,E83*F83))))))) -> 0 | K83: =IF('III Tool Overview'!$H$7="Orkney Health Board",0,IF('III Tool Overview'!$H$7="Shetland Health Board",0,IF('III Tool Overview'!$H$7="Western Isles Health Board",0,IF('III Tool Overview'!$H$7="Orkney Islands Local Authority",0,IF('III Tool Overview'!$H$7="Shetland Islands Local Authority",0,IF('III Tool Overview'!$H$7="Eilean Siar Local Authority",0,new_ci(5,B83,C83,D83,$C$1,G83,1,F83,E83*F83))))))) -> 0 | L83: =IF('III Tool Overview'!$H$7="Orkney Health Board",0,IF('III Tool Overview'!$H$7="Shetland Health Board",0,IF('III Tool Overview'!$H$7="Western Isles Health Board",0,IF('III Tool Overview'!$H$7="Orkney Islands Local Authority",0,IF('III Tool Overview'!$H$7="Shetland Islands Local Authority",0,IF('III Tool Overview'!$H$7="Eilean Siar Local Authority",0,new_ci(5,B83,C83,D83,$C$1,G83+H83,1,F83,E83*F83))))))) -> 0 | M83: =IF('III Tool Overview'!$H$7="Orkney Health Board",0,IF('III Tool Overview'!$H$7="Shetland Health Board",0,IF('III Tool Overview'!$H$7="Western Isles Health Board",0,IF('III Tool Overview'!$H$7="Orkney Islands Local Authority",0,IF('III Tool Overview'!$H$7="Shetland Islands Local Authority",0,IF('III Tool Overview'!$H$7="Eilean Siar Local Authority",0,new_ci(10,B83,C83,D83,$C$1,G83,1,F83,E83*F83))))))) -> 0 | N83: =IF('III Tool Overview'!$H$7="Orkney Health Board",0,IF('III Tool Overview'!$H$7="Shetland Health Board",0,IF('III Tool Overview'!$H$7="Western Isles Health Board",0,IF('III Tool Overview'!$H$7="Orkney Islands Local Authority",0,IF('III Tool Overview'!$H$7="Shetland Islands Local Authority",0,IF('III Tool Overview'!$H$7="Eilean Siar Local Authority",0,new_ci(10,B83,C83,D83,$C$1,G83+H83,1,F83,E83*F83))))))) -> 0 | O83: =IF('III Tool Overview'!$H$7="Orkney Health Board",0,IF('III Tool Overview'!$H$7="Shetland Health Board",0,IF('III Tool Overview'!$H$7="Western Isles Health Board",0,IF('III Tool Overview'!$H$7="Orkney Islands Local Authority",0,IF('III Tool Overview'!$H$7="Shetland Islands Local Authority",0,IF('III Tool Overview'!$H$7="Eilean Siar Local Authority",0,new_ci(20,B83,C83,D83,$C$1,G83,1,F83,E83*F83))))))) -> 0 | P83: =IF('III Tool Overview'!$H$7="Orkney Health Board",0,IF('III Tool Overview'!$H$7="Shetland Health Board",0,IF('III Tool Overview'!$H$7="Western Isles Health Board",0,IF('III Tool Overview'!$H$7="Orkney Islands Local Authority",0,IF('III Tool Overview'!$H$7="Shetland Islands Local Authority",0,IF('III Tool Overview'!$H$7="Eilean Siar Local Authority",0,new_ci(20,B83,C83,D83,$C$1,G83+H83,1,F83,E83*F83))))))) -> 0 | Q83: =IF('III Tool Overview'!$H$7="Orkney Health Board",0,IF('III Tool Overview'!$H$7="Shetland Health Board",0,IF('III Tool Overview'!$H$7="Western Isles Health Board",0,IF('III Tool Overview'!$H$7="Orkney Islands Local Authority",0,IF('III Tool Overview'!$H$7="Shetland Islands Local Authority",0,IF('III Tool Overview'!$H$7="Eilean Siar Local Authority",0,new_yll(2,B83,C83,D83,$C$1,G83,1,F83,E83*F83))))))) -> 0 | R83: =IF('III Tool Overview'!$H$7="Orkney Health Board",0,IF('III Tool Overview'!$H$7="Shetland Health Board",0,IF('III Tool Overview'!$H$7="Western Isles Health Board",0,IF('III Tool Overview'!$H$7="Orkney Islands Local Authority",0,IF('III Tool Overview'!$H$7="Shetland Islands Local Authority",0,IF('III Tool Overview'!$H$7="Eilean Siar Local Authority",0,new_yll(2,B83,C83,D83,$C$1,G83+H83,1,F83,E83*F83))))))) -> 0 | S83: 0 | T83: =IF('III Tool Overview'!$H$7="Orkney Health Board",0,IF('III Tool Overview'!$H$7="Shetland Health Board",0,IF('III Tool Overview'!$H$7="Western Isles Health Board",0,IF('III Tool Overview'!$H$7="Orkney Islands Local Authority",0,IF('III Tool Overview'!$H$7="Shetland Islands Local Authority",0,IF('III Tool Overview'!$H$7="Eilean Siar Local Authority",0,new_yll(5,B83,C83,D83,$C$1,G83,1,F83,E83*F83))))))) -> 0 | U83: =IF('III Tool Overview'!$H$7="Orkney Health Board",0,IF('III Tool Overview'!$H$7="Shetland Health Board",0,IF('III Tool Overview'!$H$7="Western Isles Health Board",0,IF('III Tool Overview'!$H$7="Orkney Islands Local Authority",0,IF('III Tool Overview'!$H$7="Shetland Islands Local Authority",0,IF('III Tool Overview'!$H$7="Eilean Siar Local Authority",0,new_yll(5,B83,C83,D83,$C$1,G83+H83,1,F83,E83*F83))))))) -> 0 | V83: 0 | W83: =IF('III Tool Overview'!$H$7="Orkney Health Board",0,IF('III Tool Overview'!$H$7="Shetland Health Board",0,IF('III Tool Overview'!$H$7="Western Isles Health Board",0,IF('III Tool Overview'!$H$7="Orkney Islands Local Authority",0,IF('III Tool Overview'!$H$7="Shetland Islands Local Authority",0,IF('III Tool Overview'!$H$7="Eilean Siar Local Authority",0,new_yll(10,B83,C83,D83,$C$1,G83,1,F83,E83*F83))))))) -> 0 | X83: =IF('III Tool Overview'!$H$7="Orkney Health Board",0,IF('III Tool Overview'!$H$7="Shetland Health Board",0,IF('III Tool Overview'!$H$7="Western Isles Health Board",0,IF('III Tool Overview'!$H$7="Orkney Islands Local Authority",0,IF('III Tool Overview'!$H$7="Shetland Islands Local Authority",0,IF('III Tool Overview'!$H$7="Eilean Siar Local Authority",0,new_yll(10,B83,C83,D83,$C$1,G83+H83,1,F83,E83*F83))))))) -> 0 | Y83: 0 | Z83: =IF('III Tool Overview'!$H$7="Orkney Health Board",0,IF('III Tool Overview'!$H$7="Shetland Health Board",0,IF('III Tool Overview'!$H$7="Western Isles Health Board",0,IF('III Tool Overview'!$H$7="Orkney Islands Local Authority",0,IF('III Tool Overview'!$H$7="Shetland Islands Local Authority",0,IF('III Tool Overview'!$H$7="Eilean Siar Local Authority",0,new_yll(20,B83,C83,D83,$C$1,G83,1,F83,E83*F83))))))) -> 0 | AA83: =IF('III Tool Overview'!$H$7="Orkney Health Board",0,IF('III Tool Overview'!$H$7="Shetland Health Board",0,IF('III Tool Overview'!$H$7="Western Isles Health Board",0,IF('III Tool Overview'!$H$7="Orkney Islands Local Authority",0,IF('III Tool Overview'!$H$7="Shetland Islands Local Authority",0,IF('III Tool Overview'!$H$7="Eilean Siar Local Authority",0,new_yll(20,B83,C83,D83,$C$1,G83+H83,1,F83,E83*F83))))))) -> 0 | AB83: 0 | AC83: =IF('III Tool Overview'!$H$7="Orkney Health Board",0,IF('III Tool Overview'!$H$7="Shetland Health Board",0,IF('III Tool Overview'!$H$7="Western Isles Health Board",0,IF('III Tool Overview'!$H$7="Orkney Islands Local Authority",0,IF('III Tool Overview'!$H$7="Shetland Islands Local Authority",0,IF('III Tool Overview'!$H$7="Eilean Siar Local Authority",0,hosp_count(2,B83,C83,D83,$C$1,G83,1,F83,E83*F83))))))) -> 0 | AD83: =IF('III Tool Overview'!$H$7="Orkney Health Board",0,IF('III Tool Overview'!$H$7="Shetland Health Board",0,IF('III Tool Overview'!$H$7="Western Isles Health Board",0,IF('III Tool Overview'!$H$7="Orkney Islands Local Authority",0,IF('III Tool Overview'!$H$7="Shetland Islands Local Authority",0,IF('III Tool Overview'!$H$7="Eilean Siar Local Authority",0,hosp_count(2,B83,C83,D83,$C$1,G83+H83,1,F83,E83*F83))))))) -> 0 | AE83: 0 | AF83: =IF('III Tool Overview'!$H$7="Orkney Health Board",0,IF('III Tool Overview'!$H$7="Shetland Health Board",0,IF('III Tool Overview'!$H$7="Western Isles Health Board",0,IF('III Tool Overview'!$H$7="Orkney Islands Local Authority",0,IF('III Tool Overview'!$H$7="Shetland Islands Local Authority",0,IF('III Tool Overview'!$H$7="Eilean Siar Local Authority",0,hosp_count(5,B83,C83,D83,$C$1,G83,1,F83,E83*F83))))))) -> 0 | AG83: =IF('III Tool Overview'!$H$7="Orkney Health Board",0,IF('III Tool Overview'!$H$7="Shetland Health Board",0,IF('III Tool Overview'!$H$7="Western Isles Health Board",0,IF('III Tool Overview'!$H$7="Orkney Islands Local Authority",0,IF('III Tool Overview'!$H$7="Shetland Islands Local Authority",0,IF('III Tool Overview'!$H$7="Eilean Siar Local Authority",0,hosp_count(5,B83,C83,D83,$C$1,G83+H83,1,F83,E83*F83))))))) -> 0 | AH83: 0 | AI83: =IF('III Tool Overview'!$H$7="Orkney Health Board",0,IF('III Tool Overview'!$H$7="Shetland Health Board",0,IF('III Tool Overview'!$H$7="Western Isles Health Board",0,IF('III Tool Overview'!$H$7="Orkney Islands Local Authority",0,IF('III Tool Overview'!$H$7="Shetland Islands Local Authority",0,IF('III Tool Overview'!$H$7="Eilean Siar Local Authority",0,hosp_count(10,B83,C83,D83,$C$1,G83,1,F83,E83*F83))))))) -> 0 | AJ83: =IF('III Tool Overview'!$H$7="Orkney Health Board",0,IF('III Tool Overview'!$H$7="Shetland Health Board",0,IF('III Tool Overview'!$H$7="Western Isles Health Board",0,IF('III Tool Overview'!$H$7="Orkney Islands Local Authority",0,IF('III Tool Overview'!$H$7="Shetland Islands Local Authority",0,IF('III Tool Overview'!$H$7="Eilean Siar Local Authority",0,hosp_count(10,B83,C83,D83,$C$1,G83+H83,1,F83,E83*F83))))))) -> 0 | AK83: 0 | AL83: =IF('III Tool Overview'!$H$7="Orkney Health Board",0,IF('III Tool Overview'!$H$7="Shetland Health Board",0,IF('III Tool Overview'!$H$7="Western Isles Health Board",0,IF('III Tool Overview'!$H$7="Orkney Islands Local Authority",0,IF('III Tool Overview'!$H$7="Shetland Islands Local Authority",0,IF('III Tool Overview'!$H$7="Eilean Siar Local Authority",0,hosp_count(20,B83,C83,D83,$C$1,G83,1,F83,E83*F83))))))) -> 0 | AM83: =IF('III Tool Overview'!$H$7="Orkney Health Board",0,IF('III Tool Overview'!$H$7="Shetland Health Board",0,IF('III Tool Overview'!$H$7="Western Isles Health Board",0,IF('III Tool Overview'!$H$7="Orkney Islands Local Authority",0,IF('III Tool Overview'!$H$7="Shetland Islands Local Authority",0,IF('III Tool Overview'!$H$7="Eilean Siar Local Authority",0,hosp_count(20,B83,C83,D83,$C$1,G83+H83,1,F83,E83*F83))))))) -> 0 | AN83: 0 | AP83: 0.5 | AQ83: 5
A84: Male 85-89 | B84: 87.5 | C84: male | D84: 1 | E84: =HLOOKUP('III Tool Overview'!$H$7,Prevalence!$B$2:$CH$268,Prevalence!CI80,FALSE) -> 0.2541073407 | F84: =HLOOKUP('III Tool Overview'!$H$7,LookUpData_Pop!$B$1:$AV$269,LookUpData_Pop!BB85,FALSE)/5 -> 0 | G84: ='III Tool Overview'!$H$10/110 -> 0 | H84: =IF('III Tool Overview'!$H$11="Even distribution",Targeting!C82,IF('III Tool Overview'!$H$11="Targeting to Q1",Targeting!D82,IF('III Tool Overview'!$H$11="Targeting to Q1 & Q2",Targeting!E82,IF('III Tool Overview'!$H$11="Proportionate to need",Targeting!F82)))) -> 0 | I84: =IF('III Tool Overview'!$H$7="Orkney Health Board",0,IF('III Tool Overview'!$H$7="Shetland Health Board",0,IF('III Tool Overview'!$H$7="Western Isles Health Board",0,IF('III Tool Overview'!$H$7="Orkney Islands Local Authority",0,IF('III Tool Overview'!$H$7="Shetland Islands Local Authority",0,IF('III Tool Overview'!$H$7="Eilean Siar Local Authority",0,new_ci(2,B84,C84,D84,$C$1,G84,1,F84,E84*F84))))))) -> 0 | J84: =IF('III Tool Overview'!$H$7="Orkney Health Board",0,IF('III Tool Overview'!$H$7="Shetland Health Board",0,IF('III Tool Overview'!$H$7="Western Isles Health Board",0,IF('III Tool Overview'!$H$7="Orkney Islands Local Authority",0,IF('III Tool Overview'!$H$7="Shetland Islands Local Authority",0,IF('III Tool Overview'!$H$7="Eilean Siar Local Authority",0,new_ci(2,B84,C84,D84,$C$1,G84+H84,1,F84,E84*F84))))))) -> 0 | K84: =IF('III Tool Overview'!$H$7="Orkney Health Board",0,IF('III Tool Overview'!$H$7="Shetland Health Board",0,IF('III Tool Overview'!$H$7="Western Isles Health Board",0,IF('III Tool Overview'!$H$7="Orkney Islands Local Authority",0,IF('III Tool Overview'!$H$7="Shetland Islands Local Authority",0,IF('III Tool Overview'!$H$7="Eilean Siar Local Authority",0,new_ci(5,B84,C84,D84,$C$1,G84,1,F84,E84*F84))))))) -> 0 | L84: =IF('III Tool Overview'!$H$7="Orkney Health Board",0,IF('III Tool Overview'!$H$7="Shetland Health Board",0,IF('III Tool Overview'!$H$7="Western Isles Health Board",0,IF('III Tool Overview'!$H$7="Orkney Islands Local Authority",0,IF('III Tool Overview'!$H$7="Shetland Islands Local Authority",0,IF('III Tool Overview'!$H$7="Eilean Siar Local Authority",0,new_ci(5,B84,C84,D84,$C$1,G84+H84,1,F84,E84*F84))))))) -> 0 | M84: =IF('III Tool Overview'!$H$7="Orkney Health Board",0,IF('III Tool Overview'!$H$7="Shetland Health Board",0,IF('III Tool Overview'!$H$7="Western Isles Health Board",0,IF('III Tool Overview'!$H$7="Orkney Islands Local Authority",0,IF('III Tool Overview'!$H$7="Shetland Islands Local Authority",0,IF('III Tool Overview'!$H$7="Eilean Siar Local Authority",0,new_ci(10,B84,C84,D84,$C$1,G84,1,F84,E84*F84))))))) -> 0 | N84: =IF('III Tool Overview'!$H$7="Orkney Health Board",0,IF('III Tool Overview'!$H$7="Shetland Health Board",0,IF('III Tool Overview'!$H$7="Western Isles Health Board",0,IF('III Tool Overview'!$H$7="Orkney Islands Local Authority",0,IF('III Tool Overview'!$H$7="Shetland Islands Local Authority",0,IF('III Tool Overview'!$H$7="Eilean Siar Local Authority",0,new_ci(10,B84,C84,D84,$C$1,G84+H84,1,F84,E84*F84))))))) -> 0 | O84: =IF('III Tool Overview'!$H$7="Orkney Health Board",0,IF('III Tool Overview'!$H$7="Shetland Health Board",0,IF('III Tool Overview'!$H$7="Western Isles Health Board",0,IF('III Tool Overview'!$H$7="Orkney Islands Local Authority",0,IF('III Tool Overview'!$H$7="Shetland Islands Local Authority",0,IF('III Tool Overview'!$H$7="Eilean Siar Local Authority",0,new_ci(20,B84,C84,D84,$C$1,G84,1,F84,E84*F84))))))) -> 0 | P84: =IF('III Tool Overview'!$H$7="Orkney Health Board",0,IF('III Tool Overview'!$H$7="Shetland Health Board",0,IF('III Tool Overview'!$H$7="Western Isles Health Board",0,IF('III Tool Overview'!$H$7="Orkney Islands Local Authority",0,IF('III Tool Overview'!$H$7="Shetland Islands Local Authority",0,IF('III Tool Overview'!$H$7="Eilean Siar Local Authority",0,new_ci(20,B84,C84,D84,$C$1,G84+H84,1,F84,E84*F84))))))) -> 0 | Q84: =IF('III Tool Overview'!$H$7="Orkney Health Board",0,IF('III Tool Overview'!$H$7="Shetland Health Board",0,IF('III Tool Overview'!$H$7="Western Isles Health Board",0,IF('III Tool Overview'!$H$7="Orkney Islands Local Authority",0,IF('III Tool Overview'!$H$7="Shetland Islands Local Authority",0,IF('III Tool Overview'!$H$7="Eilean Siar Local Authority",0,new_yll(2,B84,C84,D84,$C$1,G84,1,F84,E84*F84))))))) -> 0 | R84: =IF('III Tool Overview'!$H$7="Orkney Health Board",0,IF('III Tool Overview'!$H$7="Shetland Health Board",0,IF('III Tool Overview'!$H$7="Western Isles Health Board",0,IF('III Tool Overview'!$H$7="Orkney Islands Local Authority",0,IF('III Tool Overview'!$H$7="Shetland Islands Local Authority",0,IF('III Tool Overview'!$H$7="Eilean Siar Local Authority",0,new_yll(2,B84,C84,D84,$C$1,G84+H84,1,F84,E84*F84))))))) -> 0 | S84: 0 | T84: =IF('III Tool Overview'!$H$7="Orkney Health Board",0,IF('III Tool Overview'!$H$7="Shetland Health Board",0,IF('III Tool Overview'!$H$7="Western Isles Health Board",0,IF('III Tool Overview'!$H$7="Orkney Islands Local Authority",0,IF('III Tool Overview'!$H$7="Shetland Islands Local Authority",0,IF('III Tool Overview'!$H$7="Eilean Siar Local Authority",0,new_yll(5,B84,C84,D84,$C$1,G84,1,F84,E84*F84))))))) -> 0 | U84: =IF('III Tool Overview'!$H$7="Orkney Health Board",0,IF('III Tool Overview'!$H$7="Shetland Health Board",0,IF('III Tool Overview'!$H$7="Western Isles Health Board",0,IF('III Tool Overview'!$H$7="Orkney Islands Local Authority",0,IF('III Tool Overview'!$H$7="Shetland Islands Local Authority",0,IF('III Tool Overview'!$H$7="Eilean Siar Local Authority",0,new_yll(5,B84,C84,D84,$C$1,G84+H84,1,F84,E84*F84))))))) -> 0 | V84: 0 | W84: =IF('III Tool Overview'!$H$7="Orkney Health Board",0,IF('III Tool Overview'!$H$7="Shetland Health Board",0,IF('III Tool Overview'!$H$7="Western Isles Health Board",0,IF('III Tool Overview'!$H$7="Orkney Islands Local Authority",0,IF('III Tool Overview'!$H$7="Shetland Islands Local Authority",0,IF('III Tool Overview'!$H$7="Eilean Siar Local Authority",0,new_yll(10,B84,C84,D84,$C$1,G84,1,F84,E84*F84))))))) -> 0 | X84: =IF('III Tool Overview'!$H$7="Orkney Health Board",0,IF('III Tool Overview'!$H$7="Shetland Health Board",0,IF('III Tool Overview'!$H$7="Western Isles Health Board",0,IF('III Tool Overview'!$H$7="Orkney Islands Local Authority",0,IF('III Tool Overview'!$H$7="Shetland Islands Local Authority",0,IF('III Tool Overview'!$H$7="Eilean Siar Local Authority",0,new_yll(10,B84,C84,D84,$C$1,G84+H84,1,F84,E84*F84))))))) -> 0 | Y84: 0 | Z84: =IF('III Tool Overview'!$H$7="Orkney Health Board",0,IF('III Tool Overview'!$H$7="Shetland Health Board",0,IF('III Tool Overview'!$H$7="Western Isles Health Board",0,IF('III Tool Overview'!$H$7="Orkney Islands Local Authority",0,IF('III Tool Overview'!$H$7="Shetland Islands Local Authority",0,IF('III Tool Overview'!$H$7="Eilean Siar Local Authority",0,new_yll(20,B84,C84,D84,$C$1,G84,1,F84,E84*F84))))))) -> 0 | AA84: =IF('III Tool Overview'!$H$7="Orkney Health Board",0,IF('III Tool Overview'!$H$7="Shetland Health Board",0,IF('III Tool Overview'!$H$7="Western Isles Health Board",0,IF('III Tool Overview'!$H$7="Orkney Islands Local Authority",0,IF('III Tool Overview'!$H$7="Shetland Islands Local Authority",0,IF('III Tool Overview'!$H$7="Eilean Siar Local Authority",0,new_yll(20,B84,C84,D84,$C$1,G84+H84,1,F84,E84*F84))))))) -> 0 | AB84: 0 | AC84: =IF('III Tool Overview'!$H$7="Orkney Health Board",0,IF('III Tool Overview'!$H$7="Shetland Health Board",0,IF('III Tool Overview'!$H$7="Western Isles Health Board",0,IF('III Tool Overview'!$H$7="Orkney Islands Local Authority",0,IF('III Tool Overview'!$H$7="Shetland Islands Local Authority",0,IF('III Tool Overview'!$H$7="Eilean Siar Local Authority",0,hosp_count(2,B84,C84,D84,$C$1,G84,1,F84,E84*F84))))))) -> 0 | AD84: =IF('III Tool Overview'!$H$7="Orkney Health Board",0,IF('III Tool Overview'!$H$7="Shetland Health Board",0,IF('III Tool Overview'!$H$7="Western Isles Health Board",0,IF('III Tool Overview'!$H$7="Orkney Islands Local Authority",0,IF('III Tool Overview'!$H$7="Shetland Islands Local Authority",0,IF('III Tool Overview'!$H$7="Eilean Siar Local Authority",0,hosp_count(2,B84,C84,D84,$C$1,G84+H84,1,F84,E84*F84))))))) -> 0 | AE84: 0 | AF84: =IF('III Tool Overview'!$H$7="Orkney Health Board",0,IF('III Tool Overview'!$H$7="Shetland Health Board",0,IF('III Tool Overview'!$H$7="Western Isles Health Board",0,IF('III Tool Overview'!$H$7="Orkney Islands Local Authority",0,IF('III Tool Overview'!$H$7="Shetland Islands Local Authority",0,IF('III Tool Overview'!$H$7="Eilean Siar Local Authority",0,hosp_count(5,B84,C84,D84,$C$1,G84,1,F84,E84*F84))))))) -> 0 | AG84: =IF('III Tool Overview'!$H$7="Orkney Health Board",0,IF('III Tool Overview'!$H$7="Shetland Health Board",0,IF('III Tool Overview'!$H$7="Western Isles Health Board",0,IF('III Tool Overview'!$H$7="Orkney Islands Local Authority",0,IF('III Tool Overview'!$H$7="Shetland Islands Local Authority",0,IF('III Tool Overview'!$H$7="Eilean Siar Local Authority",0,hosp_count(5,B84,C84,D84,$C$1,G84+H84,1,F84,E84*F84))))))) -> 0 | AH84: 0 | AI84: =IF('III Tool Overview'!$H$7="Orkney Health Board",0,IF('III Tool Overview'!$H$7="Shetland Health Board",0,IF('III Tool Overview'!$H$7="Western Isles Health Board",0,IF('III Tool Overview'!$H$7="Orkney Islands Local Authority",0,IF('III Tool Overview'!$H$7="Shetland Islands Local Authority",0,IF('III Tool Overview'!$H$7="Eilean Siar Local Authority",0,hosp_count(10,B84,C84,D84,$C$1,G84,1,F84,E84*F84))))))) -> 0 | AJ84: =IF('III Tool Overview'!$H$7="Orkney Health Board",0,IF('III Tool Overview'!$H$7="Shetland Health Board",0,IF('III Tool Overview'!$H$7="Western Isles Health Board",0,IF('III Tool Overview'!$H$7="Orkney Islands Local Authority",0,IF('III Tool Overview'!$H$7="Shetland Islands Local Authority",0,IF('III Tool Overview'!$H$7="Eilean Siar Local Authority",0,hosp_count(10,B84,C84,D84,$C$1,G84+H84,1,F84,E84*F84))))))) -> 0 | AK84: 0 | AL84: =IF('III Tool Overview'!$H$7="Orkney Health Board",0,IF('III Tool Overview'!$H$7="Shetland Health Board",0,IF('III Tool Overview'!$H$7="Western Isles Health Board",0,IF('III Tool Overview'!$H$7="Orkney Islands Local Authority",0,IF('III Tool Overview'!$H$7="Shetland Islands Local Authority",0,IF('III Tool Overview'!$H$7="Eilean Siar Local Authority",0,hosp_count(20,B84,C84,D84,$C$1,G84,1,F84,E84*F84))))))) -> 0 | AM84: =IF('III Tool Overview'!$H$7="Orkney Health Board",0,IF('III Tool Overview'!$H$7="Shetland Health Board",0,IF('III Tool Overview'!$H$7="Western Isles Health Board",0,IF('III Tool Overview'!$H$7="Orkney Islands Local Authority",0,IF('III Tool Overview'!$H$7="Shetland Islands Local Authority",0,IF('III Tool Overview'!$H$7="Eilean Siar Local Authority",0,hosp_count(20,B84,C84,D84,$C$1,G84+H84,1,F84,E84*F84))))))) -> 0 | AN84: 0 | AP84: 0.5 | AQ84: =2/#REF! -> 
A85: Male 90+ | B85: 95 | C85: male | D85: 1 | E85: =HLOOKUP('III Tool Overview'!$H$7,Prevalence!$B$2:$CH$268,Prevalence!CI81,FALSE) -> 0.2541073407 | F85: =HLOOKUP('III Tool Overview'!$H$7,LookUpData_Pop!$B$1:$AV$269,LookUpData_Pop!BB86,FALSE)/5 -> 0 | G85: ='III Tool Overview'!$H$10/110 -> 0 | H85: =IF('III Tool Overview'!$H$11="Even distribution",Targeting!C83,IF('III Tool Overview'!$H$11="Targeting to Q1",Targeting!D83,IF('III Tool Overview'!$H$11="Targeting to Q1 & Q2",Targeting!E83,IF('III Tool Overview'!$H$11="Proportionate to need",Targeting!F83)))) -> 0 | I85: =IF('III Tool Overview'!$H$7="Orkney Health Board",0,IF('III Tool Overview'!$H$7="Shetland Health Board",0,IF('III Tool Overview'!$H$7="Western Isles Health Board",0,IF('III Tool Overview'!$H$7="Orkney Islands Local Authority",0,IF('III Tool Overview'!$H$7="Shetland Islands Local Authority",0,IF('III Tool Overview'!$H$7="Eilean Siar Local Authority",0,new_ci(2,B85,C85,D85,$C$1,G85,1,F85,E85*F85))))))) -> 0 | J85: =IF('III Tool Overview'!$H$7="Orkney Health Board",0,IF('III Tool Overview'!$H$7="Shetland Health Board",0,IF('III Tool Overview'!$H$7="Western Isles Health Board",0,IF('III Tool Overview'!$H$7="Orkney Islands Local Authority",0,IF('III Tool Overview'!$H$7="Shetland Islands Local Authority",0,IF('III Tool Overview'!$H$7="Eilean Siar Local Authority",0,new_ci(2,B85,C85,D85,$C$1,G85+H85,1,F85,E85*F85))))))) -> 0 | K85: =IF('III Tool Overview'!$H$7="Orkney Health Board",0,IF('III Tool Overview'!$H$7="Shetland Health Board",0,IF('III Tool Overview'!$H$7="Western Isles Health Board",0,IF('III Tool Overview'!$H$7="Orkney Islands Local Authority",0,IF('III Tool Overview'!$H$7="Shetland Islands Local Authority",0,IF('III Tool Overview'!$H$7="Eilean Siar Local Authority",0,new_ci(5,B85,C85,D85,$C$1,G85,1,F85,E85*F85))))))) -> 0 | L85: =IF('III Tool Overview'!$H$7="Orkney Health Board",0,IF('III Tool Overview'!$H$7="Shetland Health Board",0,IF('III Tool Overview'!$H$7="Western Isles Health Board",0,IF('III Tool Overview'!$H$7="Orkney Islands Local Authority",0,IF('III Tool Overview'!$H$7="Shetland Islands Local Authority",0,IF('III Tool Overview'!$H$7="Eilean Siar Local Authority",0,new_ci(5,B85,C85,D85,$C$1,G85+H85,1,F85,E85*F85))))))) -> 0 | M85: =IF('III Tool Overview'!$H$7="Orkney Health Board",0,IF('III Tool Overview'!$H$7="Shetland Health Board",0,IF('III Tool Overview'!$H$7="Western Isles Health Board",0,IF('III Tool Overview'!$H$7="Orkney Islands Local Authority",0,IF('III Tool Overview'!$H$7="Shetland Islands Local Authority",0,IF('III Tool Overview'!$H$7="Eilean Siar Local Authority",0,new_ci(10,B85,C85,D85,$C$1,G85,1,F85,E85*F85))))))) -> 0 | N85: =IF('III Tool Overview'!$H$7="Orkney Health Board",0,IF('III Tool Overview'!$H$7="Shetland Health Board",0,IF('III Tool Overview'!$H$7="Western Isles Health Board",0,IF('III Tool Overview'!$H$7="Orkney Islands Local Authority",0,IF('III Tool Overview'!$H$7="Shetland Islands Local Authority",0,IF('III Tool Overview'!$H$7="Eilean Siar Local Authority",0,new_ci(10,B85,C85,D85,$C$1,G85+H85,1,F85,E85*F85))))))) -> 0 | O85: =IF('III Tool Overview'!$H$7="Orkney Health Board",0,IF('III Tool Overview'!$H$7="Shetland Health Board",0,IF('III Tool Overview'!$H$7="Western Isles Health Board",0,IF('III Tool Overview'!$H$7="Orkney Islands Local Authority",0,IF('III Tool Overview'!$H$7="Shetland Islands Local Authority",0,IF('III Tool Overview'!$H$7="Eilean Siar Local Authority",0,new_ci(20,B85,C85,D85,$C$1,G85,1,F85,E85*F85))))))) -> 0 | P85: =IF('III Tool Overview'!$H$7="Orkney Health Board",0,IF('III Tool Overview'!$H$7="Shetland Health Board",0,IF('III Tool Overview'!$H$7="Western Isles Health Board",0,IF('III Tool Overview'!$H$7="Orkney Islands Local Authority",0,IF('III Tool Overview'!$H$7="Shetland Islands Local Authority",0,IF('III Tool Overview'!$H$7="Eilean Siar Local Authority",0,new_ci(20,B85,C85,D85,$C$1,G85+H85,1,F85,E85*F85))))))) -> 0 | Q85: =IF('III Tool Overview'!$H$7="Orkney Health Board",0,IF('III Tool Overview'!$H$7="Shetland Health Board",0,IF('III Tool Overview'!$H$7="Western Isles Health Board",0,IF('III Tool Overview'!$H$7="Orkney Islands Local Authority",0,IF('III Tool Overview'!$H$7="Shetland Islands Local Authority",0,IF('III Tool Overview'!$H$7="Eilean Siar Local Authority",0,new_yll(2,B85,C85,D85,$C$1,G85,1,F85,E85*F85))))))) -> 0 | R85: =IF('III Tool Overview'!$H$7="Orkney Health Board",0,IF('III Tool Overview'!$H$7="Shetland Health Board",0,IF('III Tool Overview'!$H$7="Western Isles Health Board",0,IF('III Tool Overview'!$H$7="Orkney Islands Local Authority",0,IF('III Tool Overview'!$H$7="Shetland Islands Local Authority",0,IF('III Tool Overview'!$H$7="Eilean Siar Local Authority",0,new_yll(2,B85,C85,D85,$C$1,G85+H85,1,F85,E85*F85))))))) -> 0 | S85: 0 | T85: =IF('III Tool Overview'!$H$7="Orkney Health Board",0,IF('III Tool Overview'!$H$7="Shetland Health Board",0,IF('III Tool Overview'!$H$7="Western Isles Health Board",0,IF('III Tool Overview'!$H$7="Orkney Islands Local Authority",0,IF('III Tool Overview'!$H$7="Shetland Islands Local Authority",0,IF('III Tool Overview'!$H$7="Eilean Siar Local Authority",0,new_yll(5,B85,C85,D85,$C$1,G85,1,F85,E85*F85))))))) -> 0 | U85: =IF('III Tool Overview'!$H$7="Orkney Health Board",0,IF('III Tool Overview'!$H$7="Shetland Health Board",0,IF('III Tool Overview'!$H$7="Western Isles Health Board",0,IF('III Tool Overview'!$H$7="Orkney Islands Local Authority",0,IF('III Tool Overview'!$H$7="Shetland Islands Local Authority",0,IF('III Tool Overview'!$H$7="Eilean Siar Local Authority",0,new_yll(5,B85,C85,D85,$C$1,G85+H85,1,F85,E85*F85))))))) -> 0 | V85: 0 | W85: =IF('III Tool Overview'!$H$7="Orkney Health Board",0,IF('III Tool Overview'!$H$7="Shetland Health Board",0,IF('III Tool Overview'!$H$7="Western Isles Health Board",0,IF('III Tool Overview'!$H$7="Orkney Islands Local Authority",0,IF('III Tool Overview'!$H$7="Shetland Islands Local Authority",0,IF('III Tool Overview'!$H$7="Eilean Siar Local Authority",0,new_yll(10,B85,C85,D85,$C$1,G85,1,F85,E85*F85))))))) -> 0 | X85: =IF('III Tool Overview'!$H$7="Orkney Health Board",0,IF('III Tool Overview'!$H$7="Shetland Health Board",0,IF('III Tool Overview'!$H$7="Western Isles Health Board",0,IF('III Tool Overview'!$H$7="Orkney Islands Local Authority",0,IF('III Tool Overview'!$H$7="Shetland Islands Local Authority",0,IF('III Tool Overview'!$H$7="Eilean Siar Local Authority",0,new_yll(10,B85,C85,D85,$C$1,G85+H85,1,F85,E85*F85))))))) -> 0 | Y85: 0 | Z85: =IF('III Tool Overview'!$H$7="Orkney Health Board",0,IF('III Tool Overview'!$H$7="Shetland Health Board",0,IF('III Tool Overview'!$H$7="Western Isles Health Board",0,IF('III Tool Overview'!$H$7="Orkney Islands Local Authority",0,IF('III Tool Overview'!$H$7="Shetland Islands Local Authority",0,IF('III Tool Overview'!$H$7="Eilean Siar Local Authority",0,new_yll(20,B85,C85,D85,$C$1,G85,1,F85,E85*F85))))))) -> 0 | AA85: =IF('III Tool Overview'!$H$7="Orkney Health Board",0,IF('III Tool Overview'!$H$7="Shetland Health Board",0,IF('III Tool Overview'!$H$7="Western Isles Health Board",0,IF('III Tool Overview'!$H$7="Orkney Islands Local Authority",0,IF('III Tool Overview'!$H$7="Shetland Islands Local Authority",0,IF('III Tool Overview'!$H$7="Eilean Siar Local Authority",0,new_yll(20,B85,C85,D85,$C$1,G85+H85,1,F85,E85*F85))))))) -> 0 | AB85: 0 | AC85: =IF('III Tool Overview'!$H$7="Orkney Health Board",0,IF('III Tool Overview'!$H$7="Shetland Health Board",0,IF('III Tool Overview'!$H$7="Western Isles Health Board",0,IF('III Tool Overview'!$H$7="Orkney Islands Local Authority",0,IF('III Tool Overview'!$H$7="Shetland Islands Local Authority",0,IF('III Tool Overview'!$H$7="Eilean Siar Local Authority",0,hosp_count(2,B85,C85,D85,$C$1,G85,1,F85,E85*F85))))))) -> 0 | AD85: =IF('III Tool Overview'!$H$7="Orkney Health Board",0,IF('III Tool Overview'!$H$7="Shetland Health Board",0,IF('III Tool Overview'!$H$7="Western Isles Health Board",0,IF('III Tool Overview'!$H$7="Orkney Islands Local Authority",0,IF('III Tool Overview'!$H$7="Shetland Islands Local Authority",0,IF('III Tool Overview'!$H$7="Eilean Siar Local Authority",0,hosp_count(2,B85,C85,D85,$C$1,G85+H85,1,F85,E85*F85))))))) -> 0 | AE85: 0 | AF85: =IF('III Tool Overview'!$H$7="Orkney Health Board",0,IF('III Tool Overview'!$H$7="Shetland Health Board",0,IF('III Tool Overview'!$H$7="Western Isles Health Board",0,IF('III Tool Overview'!$H$7="Orkney Islands Local Authority",0,IF('III Tool Overview'!$H$7="Shetland Islands Local Authority",0,IF('III Tool Overview'!$H$7="Eilean Siar Local Authority",0,hosp_count(5,B85,C85,D85,$C$1,G85,1,F85,E85*F85))))))) -> 0 | AG85: =IF('III Tool Overview'!$H$7="Orkney Health Board",0,IF('III Tool Overview'!$H$7="Shetland Health Board",0,IF('III Tool Overview'!$H$7="Western Isles Health Board",0,IF('III Tool Overview'!$H$7="Orkney Islands Local Authority",0,IF('III Tool Overview'!$H$7="Shetland Islands Local Authority",0,IF('III Tool Overview'!$H$7="Eilean Siar Local Authority",0,hosp_count(5,B85,C85,D85,$C$1,G85+H85,1,F85,E85*F85))))))) -> 0 | AH85: 0 | AI85: =IF('III Tool Overview'!$H$7="Orkney Health Board",0,IF('III Tool Overview'!$H$7="Shetland Health Board",0,IF('III Tool Overview'!$H$7="Western Isles Health Board",0,IF('III Tool Overview'!$H$7="Orkney Islands Local Authority",0,IF('III Tool Overview'!$H$7="Shetland Islands Local Authority",0,IF('III Tool Overview'!$H$7="Eilean Siar Local Authority",0,hosp_count(10,B85,C85,D85,$C$1,G85,1,F85,E85*F85))))))) -> 0 | AJ85: =IF('III Tool Overview'!$H$7="Orkney Health Board",0,IF('III Tool Overview'!$H$7="Shetland Health Board",0,IF('III Tool Overview'!$H$7="Western Isles Health Board",0,IF('III Tool Overview'!$H$7="Orkney Islands Local Authority",0,IF('III Tool Overview'!$H$7="Shetland Islands Local Authority",0,IF('III Tool Overview'!$H$7="Eilean Siar Local Authority",0,hosp_count(10,B85,C85,D85,$C$1,G85+H85,1,F85,E85*F85))))))) -> 0 | AK85: 0 | AL85: =IF('III Tool Overview'!$H$7="Orkney Health Board",0,IF('III Tool Overview'!$H$7="Shetland Health Board",0,IF('III Tool Overview'!$H$7="Western Isles Health Board",0,IF('III Tool Overview'!$H$7="Orkney Islands Local Authority",0,IF('III Tool Overview'!$H$7="Shetland Islands Local Authority",0,IF('III Tool Overview'!$H$7="Eilean Siar Local Authority",0,hosp_count(20,B85,C85,D85,$C$1,G85,1,F85,E85*F85))))))) -> 0 | AM85: =IF('III Tool Overview'!$H$7="Orkney Health Board",0,IF('III Tool Overview'!$H$7="Shetland Health Board",0,IF('III Tool Overview'!$H$7="Western Isles Health Board",0,IF('III Tool Overview'!$H$7="Orkney Islands Local Authority",0,IF('III Tool Overview'!$H$7="Shetland Islands Local Authority",0,IF('III Tool Overview'!$H$7="Eilean Siar Local Authority",0,hosp_count(20,B85,C85,D85,$C$1,G85+H85,1,F85,E85*F85))))))) -> 0 | AN85: 0
A86: TOTAL | F86: =SUM(F70:F85) -> 0 | G86: =SUM(G70:G85) -> 0 | H86: 0 | I86: 0 | J86: 0 | K86: 0 | L86: 0 | M86: 0 | N86: 0 | O86: 0 | P86: 0 | Q86: 0 | R86: 0 | S86: 0 | T86: 0 | U86: 0 | V86: 0 | W86: 0 | X86: 0 | Y86: 0 | Z86: 0 | AA86: 0 | AB86: 0 | AC86: 0 | AD86: 0 | AE86: 0 | AF86: 0 | AG86: 0 | AH86: 0 | AI86: 0 | AJ86: 0 | AK86: 0 | AL86: 0 | AM86: 0 | AN86: 0
A87: Female <1 | B87: 0.5 | C87: female | D87: 1 | F87: =HLOOKUP('III Tool Overview'!$H$7,LookUpData_Pop!$B$1:$AV$269,LookUpData_Pop!BB87,FALSE)/5 -> 0 | AP87: 0.1 | AQ87: 1
A88: Female 1-4 | B88: 2.5 | C88: female | D88: 1 | F88: =HLOOKUP('III Tool Overview'!$H$7,LookUpData_Pop!$B$1:$AV$269,LookUpData_Pop!BB88,FALSE)/5 -> 0 | AP88: 0.5 | AQ88: 4
A89: Female 5-9 | B89: 7.5 | C89: female | D89: 1 | F89: =HLOOKUP('III Tool Overview'!$H$7,LookUpData_Pop!$B$1:$AV$269,LookUpData_Pop!BB89,FALSE)/5 -> 0 | AP89: 0.5 | AQ89: 5
A90: Female 10-14 | B90: 12.5 | C90: female | D90: 1 | F90: =HLOOKUP('III Tool Overview'!$H$7,LookUpData_Pop!$B$1:$AV$269,LookUpData_Pop!BB90,FALSE)/5 -> 0 | AP90: 0.5 | AQ90: 5
A91: Female 15-19 | B91: 17.5 | C91: female | D91: 1 | E91: =HLOOKUP('III Tool Overview'!$H$7,Prevalence!$B$2:$CH$268,Prevalence!CI86,FALSE) -> 0.2526064713 | F91: =HLOOKUP('III Tool Overview'!$H$7,LookUpData_Pop!$B$1:$AV$269,LookUpData_Pop!BB91,FALSE)/5 -> 0 | G91: ='III Tool Overview'!$H$10/110 -> 0 | H91: =IF('III Tool Overview'!$H$11="Even distribution",Targeting!C89,IF('III Tool Overview'!$H$11="Targeting to Q1",Targeting!D89,IF('III Tool Overview'!$H$11="Targeting to Q1 & Q2",Targeting!E89,IF('III Tool Overview'!$H$11="Proportionate to need",Targeting!F89)))) -> 0 | I91: =IF('III Tool Overview'!$H$7="Orkney Health Board",0,IF('III Tool Overview'!$H$7="Shetland Health Board",0,IF('III Tool Overview'!$H$7="Western Isles Health Board",0,IF('III Tool Overview'!$H$7="Orkney Islands Local Authority",0,IF('III Tool Overview'!$H$7="Shetland Islands Local Authority",0,IF('III Tool Overview'!$H$7="Eilean Siar Local Authority",0,new_ci(2,B91,C91,D91,$C$1,G91,1,F91,E91*F91))))))) -> 0 | J91: =IF('III Tool Overview'!$H$7="Orkney Health Board",0,IF('III Tool Overview'!$H$7="Shetland Health Board",0,IF('III Tool Overview'!$H$7="Western Isles Health Board",0,IF('III Tool Overview'!$H$7="Orkney Islands Local Authority",0,IF('III Tool Overview'!$H$7="Shetland Islands Local Authority",0,IF('III Tool Overview'!$H$7="Eilean Siar Local Authority",0,new_ci(2,B91,C91,D91,$C$1,G91+H91,1,F91,E91*F91))))))) -> 0 | K91: =IF('III Tool Overview'!$H$7="Orkney Health Board",0,IF('III Tool Overview'!$H$7="Shetland Health Board",0,IF('III Tool Overview'!$H$7="Western Isles Health Board",0,IF('III Tool Overview'!$H$7="Orkney Islands Local Authority",0,IF('III Tool Overview'!$H$7="Shetland Islands Local Authority",0,IF('III Tool Overview'!$H$7="Eilean Siar Local Authority",0,new_ci(5,B91,C91,D91,$C$1,G91,1,F91,E91*F91))))))) -> 0 | L91: =IF('III Tool Overview'!$H$7="Orkney Health Board",0,IF('III Tool Overview'!$H$7="Shetland Health Board",0,IF('III Tool Overview'!$H$7="Western Isles Health Board",0,IF('III Tool Overview'!$H$7="Orkney Islands Local Authority",0,IF('III Tool Overview'!$H$7="Shetland Islands Local Authority",0,IF('III Tool Overview'!$H$7="Eilean Siar Local Authority",0,new_ci(5,B91,C91,D91,$C$1,G91+H91,1,F91,E91*F91))))))) -> 0 | M91: =IF('III Tool Overview'!$H$7="Orkney Health Board",0,IF('III Tool Overview'!$H$7="Shetland Health Board",0,IF('III Tool Overview'!$H$7="Western Isles Health Board",0,IF('III Tool Overview'!$H$7="Orkney Islands Local Authority",0,IF('III Tool Overview'!$H$7="Shetland Islands Local Authority",0,IF('III Tool Overview'!$H$7="Eilean Siar Local Authority",0,new_ci(10,B91,C91,D91,$C$1,G91,1,F91,E91*F91))))))) -> 0 | N91: =IF('III Tool Overview'!$H$7="Orkney Health Board",0,IF('III Tool Overview'!$H$7="Shetland Health Board",0,IF('III Tool Overview'!$H$7="Western Isles Health Board",0,IF('III Tool Overview'!$H$7="Orkney Islands Local Authority",0,IF('III Tool Overview'!$H$7="Shetland Islands Local Authority",0,IF('III Tool Overview'!$H$7="Eilean Siar Local Authority",0,new_ci(10,B91,C91,D91,$C$1,G91+H91,1,F91,E91*F91))))))) -> 0 | O91: =IF('III Tool Overview'!$H$7="Orkney Health Board",0,IF('III Tool Overview'!$H$7="Shetland Health Board",0,IF('III Tool Overview'!$H$7="Western Isles Health Board",0,IF('III Tool Overview'!$H$7="Orkney Islands Local Authority",0,IF('III Tool Overview'!$H$7="Shetland Islands Local Authority",0,IF('III Tool Overview'!$H$7="Eilean Siar Local Authority",0,new_ci(20,B91,C91,D91,$C$1,G91,1,F91,E91*F91))))))) -> 0 | P91: =IF('III Tool Overview'!$H$7="Orkney Health Board",0,IF('III Tool Overview'!$H$7="Shetland Health Board",0,IF('III Tool Overview'!$H$7="Western Isles Health Board",0,IF('III Tool Overview'!$H$7="Orkney Islands Local Authority",0,IF('III Tool Overview'!$H$7="Shetland Islands Local Authority",0,IF('III Tool Overview'!$H$7="Eilean Siar Local Authority",0,new_ci(20,B91,C91,D91,$C$1,G91+H91,1,F91,E91*F91))))))) -> 0 | Q91: =IF('III Tool Overview'!$H$7="Orkney Health Board",0,IF('III Tool Overview'!$H$7="Shetland Health Board",0,IF('III Tool Overview'!$H$7="Western Isles Health Board",0,IF('III Tool Overview'!$H$7="Orkney Islands Local Authority",0,IF('III Tool Overview'!$H$7="Shetland Islands Local Authority",0,IF('III Tool Overview'!$H$7="Eilean Siar Local Authority",0,new_yll(2,B91,C91,D91,$C$1,G91,1,F91,E91*F91))))))) -> 0 | R91: =IF('III Tool Overview'!$H$7="Orkney Health Board",0,IF('III Tool Overview'!$H$7="Shetland Health Board",0,IF('III Tool Overview'!$H$7="Western Isles Health Board",0,IF('III Tool Overview'!$H$7="Orkney Islands Local Authority",0,IF('III Tool Overview'!$H$7="Shetland Islands Local Authority",0,IF('III Tool Overview'!$H$7="Eilean Siar Local Authority",0,new_yll(2,B91,C91,D91,$C$1,G91+H91,1,F91,E91*F91))))))) -> 0 | S91: =Q91-R91 -> 0 | T91: =IF('III Tool Overview'!$H$7="Orkney Health Board",0,IF('III Tool Overview'!$H$7="Shetland Health Board",0,IF('III Tool Overview'!$H$7="Western Isles Health Board",0,IF('III Tool Overview'!$H$7="Orkney Islands Local Authority",0,IF('III Tool Overview'!$H$7="Shetland Islands Local Authority",0,IF('III Tool Overview'!$H$7="Eilean Siar Local Authority",0,new_yll(5,B91,C91,D91,$C$1,G91,1,F91,E91*F91))))))) -> 0 | U91: =IF('III Tool Overview'!$H$7="Orkney Health Board",0,IF('III Tool Overview'!$H$7="Shetland Health Board",0,IF('III Tool Overview'!$H$7="Western Isles Health Board",0,IF('III Tool Overview'!$H$7="Orkney Islands Local Authority",0,IF('III Tool Overview'!$H$7="Shetland Islands Local Authority",0,IF('III Tool Overview'!$H$7="Eilean Siar Local Authority",0,new_yll(5,B91,C91,D91,$C$1,G91+H91,1,F91,E91*F91))))))) -> 0 | V91: =T91-U91 -> 0 | W91: =IF('III Tool Overview'!$H$7="Orkney Health Board",0,IF('III Tool Overview'!$H$7="Shetland Health Board",0,IF('III Tool Overview'!$H$7="Western Isles Health Board",0,IF('III Tool Overview'!$H$7="Orkney Islands Local Authority",0,IF('III Tool Overview'!$H$7="Shetland Islands Local Authority",0,IF('III Tool Overview'!$H$7="Eilean Siar Local Authority",0,new_yll(10,B91,C91,D91,$C$1,G91,1,F91,E91*F91))))))) -> 0 | X91: =IF('III Tool Overview'!$H$7="Orkney Health Board",0,IF('III Tool Overview'!$H$7="Shetland Health Board",0,IF('III Tool Overview'!$H$7="Western Isles Health Board",0,IF('III Tool Overview'!$H$7="Orkney Islands Local Authority",0,IF('III Tool Overview'!$H$7="Shetland Islands Local Authority",0,IF('III Tool Overview'!$H$7="Eilean Siar Local Authority",0,new_yll(10,B91,C91,D91,$C$1,G91+H91,1,F91,E91*F91))))))) -> 0 | Y91: =W91-X91 -> 0 | Z91: =IF('III Tool Overview'!$H$7="Orkney Health Board",0,IF('III Tool Overview'!$H$7="Shetland Health Board",0,IF('III Tool Overview'!$H$7="Western Isles Health Board",0,IF('III Tool Overview'!$H$7="Orkney Islands Local Authority",0,IF('III Tool Overview'!$H$7="Shetland Islands Local Authority",0,IF('III Tool Overview'!$H$7="Eilean Siar Local Authority",0,new_yll(20,B91,C91,D91,$C$1,G91,1,F91,E91*F91))))))) -> 0 | AA91: =IF('III Tool Overview'!$H$7="Orkney Health Board",0,IF('III Tool Overview'!$H$7="Shetland Health Board",0,IF('III Tool Overview'!$H$7="Western Isles Health Board",0,IF('III Tool Overview'!$H$7="Orkney Islands Local Authority",0,IF('III Tool Overview'!$H$7="Shetland Islands Local Authority",0,IF('III Tool Overview'!$H$7="Eilean Siar Local Authority",0,new_yll(20,B91,C91,D91,$C$1,G91+H91,1,F91,E91*F91))))))) -> 0 | AB91: =Z91-AA91 -> 0 | AC91: =IF('III Tool Overview'!$H$7="Orkney Health Board",0,IF('III Tool Overview'!$H$7="Shetland Health Board",0,IF('III Tool Overview'!$H$7="Western Isles Health Board",0,IF('III Tool Overview'!$H$7="Orkney Islands Local Authority",0,IF('III Tool Overview'!$H$7="Shetland Islands Local Authority",0,IF('III Tool Overview'!$H$7="Eilean Siar Local Authority",0,hosp_count(2,B91,C91,D91,$C$1,G91,1,F91,E91*F91))))))) -> 0 | AD91: =IF('III Tool Overview'!$H$7="Orkney Health Board",0,IF('III Tool Overview'!$H$7="Shetland Health Board",0,IF('III Tool Overview'!$H$7="Western Isles Health Board",0,IF('III Tool Overview'!$H$7="Orkney Islands Local Authority",0,IF('III Tool Overview'!$H$7="Shetland Islands Local Authority",0,IF('III Tool Overview'!$H$7="Eilean Siar Local Authority",0,hosp_count(2,B91,C91,D91,$C$1,G91+H91,1,F91,E91*F91))))))) -> 0 | AE91: =AC91-AD91 -> 0 | AF91: =IF('III Tool Overview'!$H$7="Orkney Health Board",0,IF('III Tool Overview'!$H$7="Shetland Health Board",0,IF('III Tool Overview'!$H$7="Western Isles Health Board",0,IF('III Tool Overview'!$H$7="Orkney Islands Local Authority",0,IF('III Tool Overview'!$H$7="Shetland Islands Local Authority",0,IF('III Tool Overview'!$H$7="Eilean Siar Local Authority",0,hosp_count(5,B91,C91,D91,$C$1,G91,1,F91,E91*F91))))))) -> 0 | AG91: =IF('III Tool Overview'!$H$7="Orkney Health Board",0,IF('III Tool Overview'!$H$7="Shetland Health Board",0,IF('III Tool Overview'!$H$7="Western Isles Health Board",0,IF('III Tool Overview'!$H$7="Orkney Islands Local Authority",0,IF('III Tool Overview'!$H$7="Shetland Islands Local Authority",0,IF('III Tool Overview'!$H$7="Eilean Siar Local Authority",0,hosp_count(5,B91,C91,D91,$C$1,G91+H91,1,F91,E91*F91))))))) -> 0 | AH91: =AF91-AG91 -> 0 | AI91: =IF('III Tool Overview'!$H$7="Orkney Health Board",0,IF('III Tool Overview'!$H$7="Shetland Health Board",0,IF('III Tool Overview'!$H$7="Western Isles Health Board",0,IF('III Tool Overview'!$H$7="Orkney Islands Local Authority",0,IF('III Tool Overview'!$H$7="Shetland Islands Local Authority",0,IF('III Tool Overview'!$H$7="Eilean Siar Local Authority",0,hosp_count(10,B91,C91,D91,$C$1,G91,1,F91,E91*F91))))))) -> 0 | AJ91: =IF('III Tool Overview'!$H$7="Orkney Health Board",0,IF('III Tool Overview'!$H$7="Shetland Health Board",0,IF('III Tool Overview'!$H$7="Western Isles Health Board",0,IF('III Tool Overview'!$H$7="Orkney Islands Local Authority",0,IF('III Tool Overview'!$H$7="Shetland Islands Local Authority",0,IF('III Tool Overview'!$H$7="Eilean Siar Local Authority",0,hosp_count(10,B91,C91,D91,$C$1,G91+H91,1,F91,E91*F91))))))) -> 0 | AK91: =AI91-AJ91 -> 0 | AL91: =IF('III Tool Overview'!$H$7="Orkney Health Board",0,IF('III Tool Overview'!$H$7="Shetland Health Board",0,IF('III Tool Overview'!$H$7="Western Isles Health Board",0,IF('III Tool Overview'!$H$7="Orkney Islands Local Authority",0,IF('III Tool Overview'!$H$7="Shetland Islands Local Authority",0,IF('III Tool Overview'!$H$7="Eilean Siar Local Authority",0,hosp_count(20,B91,C91,D91,$C$1,G91,1,F91,E91*F91))))))) -> 0 | AM91: =IF('III Tool Overview'!$H$7="Orkney Health Board",0,IF('III Tool Overview'!$H$7="Shetland Health Board",0,IF('III Tool Overview'!$H$7="Western Isles Health Board",0,IF('III Tool Overview'!$H$7="Orkney Islands Local Authority",0,IF('III Tool Overview'!$H$7="Shetland Islands Local Authority",0,IF('III Tool Overview'!$H$7="Eilean Siar Local Authority",0,hosp_count(20,B91,C91,D91,$C$1,G91+H91,1,F91,E91*F91))))))) -> 0 | AN91: =AL91-AM91 -> 0 | AP91: 0.5 | AQ91: 5
A92: Female 20-24 | B92: 22.5 | C92: female | D92: 1 | E92: =HLOOKUP('III Tool Overview'!$H$7,Prevalence!$B$2:$CH$268,Prevalence!CI87,FALSE) -> 0.2526064713 | F92: =HLOOKUP('III Tool Overview'!$H$7,LookUpData_Pop!$B$1:$AV$269,LookUpData_Pop!BB92,FALSE)/5 -> 0 | G92: ='III Tool Overview'!$H$10/110 -> 0 | H92: =IF('III Tool Overview'!$H$11="Even distribution",Targeting!C90,IF('III Tool Overview'!$H$11="Targeting to Q1",Targeting!D90,IF('III Tool Overview'!$H$11="Targeting to Q1 & Q2",Targeting!E90,IF('III Tool Overview'!$H$11="Proportionate to need",Targeting!F90)))) -> 0 | I92: =IF('III Tool Overview'!$H$7="Orkney Health Board",0,IF('III Tool Overview'!$H$7="Shetland Health Board",0,IF('III Tool Overview'!$H$7="Western Isles Health Board",0,IF('III Tool Overview'!$H$7="Orkney Islands Local Authority",0,IF('III Tool Overview'!$H$7="Shetland Islands Local Authority",0,IF('III Tool Overview'!$H$7="Eilean Siar Local Authority",0,new_ci(2,B92,C92,D92,$C$1,G92,1,F92,E92*F92))))))) -> 0 | J92: =IF('III Tool Overview'!$H$7="Orkney Health Board",0,IF('III Tool Overview'!$H$7="Shetland Health Board",0,IF('III Tool Overview'!$H$7="Western Isles Health Board",0,IF('III Tool Overview'!$H$7="Orkney Islands Local Authority",0,IF('III Tool Overview'!$H$7="Shetland Islands Local Authority",0,IF('III Tool Overview'!$H$7="Eilean Siar Local Authority",0,new_ci(2,B92,C92,D92,$C$1,G92+H92,1,F92,E92*F92))))))) -> 0 | K92: =IF('III Tool Overview'!$H$7="Orkney Health Board",0,IF('III Tool Overview'!$H$7="Shetland Health Board",0,IF('III Tool Overview'!$H$7="Western Isles Health Board",0,IF('III Tool Overview'!$H$7="Orkney Islands Local Authority",0,IF('III Tool Overview'!$H$7="Shetland Islands Local Authority",0,IF('III Tool Overview'!$H$7="Eilean Siar Local Authority",0,new_ci(5,B92,C92,D92,$C$1,G92,1,F92,E92*F92))))))) -> 0 | L92: =IF('III Tool Overview'!$H$7="Orkney Health Board",0,IF('III Tool Overview'!$H$7="Shetland Health Board",0,IF('III Tool Overview'!$H$7="Western Isles Health Board",0,IF('III Tool Overview'!$H$7="Orkney Islands Local Authority",0,IF('III Tool Overview'!$H$7="Shetland Islands Local Authority",0,IF('III Tool Overview'!$H$7="Eilean Siar Local Authority",0,new_ci(5,B92,C92,D92,$C$1,G92+H92,1,F92,E92*F92))))))) -> 0 | M92: =IF('III Tool Overview'!$H$7="Orkney Health Board",0,IF('III Tool Overview'!$H$7="Shetland Health Board",0,IF('III Tool Overview'!$H$7="Western Isles Health Board",0,IF('III Tool Overview'!$H$7="Orkney Islands Local Authority",0,IF('III Tool Overview'!$H$7="Shetland Islands Local Authority",0,IF('III Tool Overview'!$H$7="Eilean Siar Local Authority",0,new_ci(10,B92,C92,D92,$C$1,G92,1,F92,E92*F92))))))) -> 0 | N92: =IF('III Tool Overview'!$H$7="Orkney Health Board",0,IF('III Tool Overview'!$H$7="Shetland Health Board",0,IF('III Tool Overview'!$H$7="Western Isles Health Board",0,IF('III Tool Overview'!$H$7="Orkney Islands Local Authority",0,IF('III Tool Overview'!$H$7="Shetland Islands Local Authority",0,IF('III Tool Overview'!$H$7="Eilean Siar Local Authority",0,new_ci(10,B92,C92,D92,$C$1,G92+H92,1,F92,E92*F92))))))) -> 0 | O92: =IF('III Tool Overview'!$H$7="Orkney Health Board",0,IF('III Tool Overview'!$H$7="Shetland Health Board",0,IF('III Tool Overview'!$H$7="Western Isles Health Board",0,IF('III Tool Overview'!$H$7="Orkney Islands Local Authority",0,IF('III Tool Overview'!$H$7="Shetland Islands Local Authority",0,IF('III Tool Overview'!$H$7="Eilean Siar Local Authority",0,new_ci(20,B92,C92,D92,$C$1,G92,1,F92,E92*F92))))))) -> 0 | P92: =IF('III Tool Overview'!$H$7="Orkney Health Board",0,IF('III Tool Overview'!$H$7="Shetland Health Board",0,IF('III Tool Overview'!$H$7="Western Isles Health Board",0,IF('III Tool Overview'!$H$7="Orkney Islands Local Authority",0,IF('III Tool Overview'!$H$7="Shetland Islands Local Authority",0,IF('III Tool Overview'!$H$7="Eilean Siar Local Authority",0,new_ci(20,B92,C92,D92,$C$1,G92+H92,1,F92,E92*F92))))))) -> 0 | Q92: =IF('III Tool Overview'!$H$7="Orkney Health Board",0,IF('III Tool Overview'!$H$7="Shetland Health Board",0,IF('III Tool Overview'!$H$7="Western Isles Health Board",0,IF('III Tool Overview'!$H$7="Orkney Islands Local Authority",0,IF('III Tool Overview'!$H$7="Shetland Islands Local Authority",0,IF('III Tool Overview'!$H$7="Eilean Siar Local Authority",0,new_yll(2,B92,C92,D92,$C$1,G92,1,F92,E92*F92))))))) -> 0 | R92: =IF('III Tool Overview'!$H$7="Orkney Health Board",0,IF('III Tool Overview'!$H$7="Shetland Health Board",0,IF('III Tool Overview'!$H$7="Western Isles Health Board",0,IF('III Tool Overview'!$H$7="Orkney Islands Local Authority",0,IF('III Tool Overview'!$H$7="Shetland Islands Local Authority",0,IF('III Tool Overview'!$H$7="Eilean Siar Local Authority",0,new_yll(2,B92,C92,D92,$C$1,G92+H92,1,F92,E92*F92))))))) -> 0 | S92: =Q92-R92 -> 0 | T92: =IF('III Tool Overview'!$H$7="Orkney Health Board",0,IF('III Tool Overview'!$H$7="Shetland Health Board",0,IF('III Tool Overview'!$H$7="Western Isles Health Board",0,IF('III Tool Overview'!$H$7="Orkney Islands Local Authority",0,IF('III Tool Overview'!$H$7="Shetland Islands Local Authority",0,IF('III Tool Overview'!$H$7="Eilean Siar Local Authority",0,new_yll(5,B92,C92,D92,$C$1,G92,1,F92,E92*F92))))))) -> 0 | U92: =IF('III Tool Overview'!$H$7="Orkney Health Board",0,IF('III Tool Overview'!$H$7="Shetland Health Board",0,IF('III Tool Overview'!$H$7="Western Isles Health Board",0,IF('III Tool Overview'!$H$7="Orkney Islands Local Authority",0,IF('III Tool Overview'!$H$7="Shetland Islands Local Authority",0,IF('III Tool Overview'!$H$7="Eilean Siar Local Authority",0,new_yll(5,B92,C92,D92,$C$1,G92+H92,1,F92,E92*F92))))))) -> 0 | V92: =T92-U92 -> 0 | W92: =IF('III Tool Overview'!$H$7="Orkney Health Board",0,IF('III Tool Overview'!$H$7="Shetland Health Board",0,IF('III Tool Overview'!$H$7="Western Isles Health Board",0,IF('III Tool Overview'!$H$7="Orkney Islands Local Authority",0,IF('III Tool Overview'!$H$7="Shetland Islands Local Authority",0,IF('III Tool Overview'!$H$7="Eilean Siar Local Authority",0,new_yll(10,B92,C92,D92,$C$1,G92,1,F92,E92*F92))))))) -> 0 | X92: =IF('III Tool Overview'!$H$7="Orkney Health Board",0,IF('III Tool Overview'!$H$7="Shetland Health Board",0,IF('III Tool Overview'!$H$7="Western Isles Health Board",0,IF('III Tool Overview'!$H$7="Orkney Islands Local Authority",0,IF('III Tool Overview'!$H$7="Shetland Islands Local Authority",0,IF('III Tool Overview'!$H$7="Eilean Siar Local Authority",0,new_yll(10,B92,C92,D92,$C$1,G92+H92,1,F92,E92*F92))))))) -> 0 | Y92: =W92-X92 -> 0 | Z92: =IF('III Tool Overview'!$H$7="Orkney Health Board",0,IF('III Tool Overview'!$H$7="Shetland Health Board",0,IF('III Tool Overview'!$H$7="Western Isles Health Board",0,IF('III Tool Overview'!$H$7="Orkney Islands Local Authority",0,IF('III Tool Overview'!$H$7="Shetland Islands Local Authority",0,IF('III Tool Overview'!$H$7="Eilean Siar Local Authority",0,new_yll(20,B92,C92,D92,$C$1,G92,1,F92,E92*F92))))))) -> 0 | AA92: =IF('III Tool Overview'!$H$7="Orkney Health Board",0,IF('III Tool Overview'!$H$7="Shetland Health Board",0,IF('III Tool Overview'!$H$7="Western Isles Health Board",0,IF('III Tool Overview'!$H$7="Orkney Islands Local Authority",0,IF('III Tool Overview'!$H$7="Shetland Islands Local Authority",0,IF('III Tool Overview'!$H$7="Eilean Siar Local Authority",0,new_yll(20,B92,C92,D92,$C$1,G92+H92,1,F92,E92*F92))))))) -> 0 | AB92: =Z92-AA92 -> 0 | AC92: =IF('III Tool Overview'!$H$7="Orkney Health Board",0,IF('III Tool Overview'!$H$7="Shetland Health Board",0,IF('III Tool Overview'!$H$7="Western Isles Health Board",0,IF('III Tool Overview'!$H$7="Orkney Islands Local Authority",0,IF('III Tool Overview'!$H$7="Shetland Islands Local Authority",0,IF('III Tool Overview'!$H$7="Eilean Siar Local Authority",0,hosp_count(2,B92,C92,D92,$C$1,G92,1,F92,E92*F92))))))) -> 0 | AD92: =IF('III Tool Overview'!$H$7="Orkney Health Board",0,IF('III Tool Overview'!$H$7="Shetland Health Board",0,IF('III Tool Overview'!$H$7="Western Isles Health Board",0,IF('III Tool Overview'!$H$7="Orkney Islands Local Authority",0,IF('III Tool Overview'!$H$7="Shetland Islands Local Authority",0,IF('III Tool Overview'!$H$7="Eilean Siar Local Authority",0,hosp_count(2,B92,C92,D92,$C$1,G92+H92,1,F92,E92*F92))))))) -> 0 | AE92: =AC92-AD92 -> 0 | AF92: =IF('III Tool Overview'!$H$7="Orkney Health Board",0,IF('III Tool Overview'!$H$7="Shetland Health Board",0,IF('III Tool Overview'!$H$7="Western Isles Health Board",0,IF('III Tool Overview'!$H$7="Orkney Islands Local Authority",0,IF('III Tool Overview'!$H$7="Shetland Islands Local Authority",0,IF('III Tool Overview'!$H$7="Eilean Siar Local Authority",0,hosp_count(5,B92,C92,D92,$C$1,G92,1,F92,E92*F92))))))) -> 0 | AG92: =IF('III Tool Overview'!$H$7="Orkney Health Board",0,IF('III Tool Overview'!$H$7="Shetland Health Board",0,IF('III Tool Overview'!$H$7="Western Isles Health Board",0,IF('III Tool Overview'!$H$7="Orkney Islands Local Authority",0,IF('III Tool Overview'!$H$7="Shetland Islands Local Authority",0,IF('III Tool Overview'!$H$7="Eilean Siar Local Authority",0,hosp_count(5,B92,C92,D92,$C$1,G92+H92,1,F92,E92*F92))))))) -> 0 | AH92: =AF92-AG92 -> 0 | AI92: =IF('III Tool Overview'!$H$7="Orkney Health Board",0,IF('III Tool Overview'!$H$7="Shetland Health Board",0,IF('III Tool Overview'!$H$7="Western Isles Health Board",0,IF('III Tool Overview'!$H$7="Orkney Islands Local Authority",0,IF('III Tool Overview'!$H$7="Shetland Islands Local Authority",0,IF('III Tool Overview'!$H$7="Eilean Siar Local Authority",0,hosp_count(10,B92,C92,D92,$C$1,G92,1,F92,E92*F92))))))) -> 0 | AJ92: =IF('III Tool Overview'!$H$7="Orkney Health Board",0,IF('III Tool Overview'!$H$7="Shetland Health Board",0,IF('III Tool Overview'!$H$7="Western Isles Health Board",0,IF('III Tool Overview'!$H$7="Orkney Islands Local Authority",0,IF('III Tool Overview'!$H$7="Shetland Islands Local Authority",0,IF('III Tool Overview'!$H$7="Eilean Siar Local Authority",0,hosp_count(10,B92,C92,D92,$C$1,G92+H92,1,F92,E92*F92))))))) -> 0 | AK92: =AI92-AJ92 -> 0 | AL92: =IF('III Tool Overview'!$H$7="Orkney Health Board",0,IF('III Tool Overview'!$H$7="Shetland Health Board",0,IF('III Tool Overview'!$H$7="Western Isles Health Board",0,IF('III Tool Overview'!$H$7="Orkney Islands Local Authority",0,IF('III Tool Overview'!$H$7="Shetland Islands Local Authority",0,IF('III Tool Overview'!$H$7="Eilean Siar Local Authority",0,hosp_count(20,B92,C92,D92,$C$1,G92,1,F92,E92*F92))))))) -> 0 | AM92: =IF('III Tool Overview'!$H$7="Orkney Health Board",0,IF('III Tool Overview'!$H$7="Shetland Health Board",0,IF('III Tool Overview'!$H$7="Western Isles Health Board",0,IF('III Tool Overview'!$H$7="Orkney Islands Local Authority",0,IF('III Tool Overview'!$H$7="Shetland Islands Local Authority",0,IF('III Tool Overview'!$H$7="Eilean Siar Local Authority",0,hosp_count(20,B92,C92,D92,$C$1,G92+H92,1,F92,E92*F92))))))) -> 0 | AN92: =AL92-AM92 -> 0 | AP92: 0.5 | AQ92: 5
A93: Female 25-29 | B93: 27.5 | C93: female | D93: 1 | E93: =HLOOKUP('III Tool Overview'!$H$7,Prevalence!$B$2:$CH$268,Prevalence!CI88,FALSE) -> 0.2988477307 | F93: =HLOOKUP('III Tool Overview'!$H$7,LookUpData_Pop!$B$1:$AV$269,LookUpData_Pop!BB93,FALSE)/5 -> 0 | G93: ='III Tool Overview'!$H$10/110 -> 0 | H93: =IF('III Tool Overview'!$H$11="Even distribution",Targeting!C91,IF('III Tool Overview'!$H$11="Targeting to Q1",Targeting!D91,IF('III Tool Overview'!$H$11="Targeting to Q1 & Q2",Targeting!E91,IF('III Tool Overview'!$H$11="Proportionate to need",Targeting!F91)))) -> 0 | I93: =IF('III Tool Overview'!$H$7="Orkney Health Board",0,IF('III Tool Overview'!$H$7="Shetland Health Board",0,IF('III Tool Overview'!$H$7="Western Isles Health Board",0,IF('III Tool Overview'!$H$7="Orkney Islands Local Authority",0,IF('III Tool Overview'!$H$7="Shetland Islands Local Authority",0,IF('III Tool Overview'!$H$7="Eilean Siar Local Authority",0,new_ci(2,B93,C93,D93,$C$1,G93,1,F93,E93*F93))))))) -> 0 | J93: =IF('III Tool Overview'!$H$7="Orkney Health Board",0,IF('III Tool Overview'!$H$7="Shetland Health Board",0,IF('III Tool Overview'!$H$7="Western Isles Health Board",0,IF('III Tool Overview'!$H$7="Orkney Islands Local Authority",0,IF('III Tool Overview'!$H$7="Shetland Islands Local Authority",0,IF('III Tool Overview'!$H$7="Eilean Siar Local Authority",0,new_ci(2,B93,C93,D93,$C$1,G93+H93,1,F93,E93*F93))))))) -> 0 | K93: =IF('III Tool Overview'!$H$7="Orkney Health Board",0,IF('III Tool Overview'!$H$7="Shetland Health Board",0,IF('III Tool Overview'!$H$7="Western Isles Health Board",0,IF('III Tool Overview'!$H$7="Orkney Islands Local Authority",0,IF('III Tool Overview'!$H$7="Shetland Islands Local Authority",0,IF('III Tool Overview'!$H$7="Eilean Siar Local Authority",0,new_ci(5,B93,C93,D93,$C$1,G93,1,F93,E93*F93))))))) -> 0 | L93: =IF('III Tool Overview'!$H$7="Orkney Health Board",0,IF('III Tool Overview'!$H$7="Shetland Health Board",0,IF('III Tool Overview'!$H$7="Western Isles Health Board",0,IF('III Tool Overview'!$H$7="Orkney Islands Local Authority",0,IF('III Tool Overview'!$H$7="Shetland Islands Local Authority",0,IF('III Tool Overview'!$H$7="Eilean Siar Local Authority",0,new_ci(5,B93,C93,D93,$C$1,G93+H93,1,F93,E93*F93))))))) -> 0 | M93: =IF('III Tool Overview'!$H$7="Orkney Health Board",0,IF('III Tool Overview'!$H$7="Shetland Health Board",0,IF('III Tool Overview'!$H$7="Western Isles Health Board",0,IF('III Tool Overview'!$H$7="Orkney Islands Local Authority",0,IF('III Tool Overview'!$H$7="Shetland Islands Local Authority",0,IF('III Tool Overview'!$H$7="Eilean Siar Local Authority",0,new_ci(10,B93,C93,D93,$C$1,G93,1,F93,E93*F93))))))) -> 0 | N93: =IF('III Tool Overview'!$H$7="Orkney Health Board",0,IF('III Tool Overview'!$H$7="Shetland Health Board",0,IF('III Tool Overview'!$H$7="Western Isles Health Board",0,IF('III Tool Overview'!$H$7="Orkney Islands Local Authority",0,IF('III Tool Overview'!$H$7="Shetland Islands Local Authority",0,IF('III Tool Overview'!$H$7="Eilean Siar Local Authority",0,new_ci(10,B93,C93,D93,$C$1,G93+H93,1,F93,E93*F93))))))) -> 0 | O93: =IF('III Tool Overview'!$H$7="Orkney Health Board",0,IF('III Tool Overview'!$H$7="Shetland Health Board",0,IF('III Tool Overview'!$H$7="Western Isles Health Board",0,IF('III Tool Overview'!$H$7="Orkney Islands Local Authority",0,IF('III Tool Overview'!$H$7="Shetland Islands Local Authority",0,IF('III Tool Overview'!$H$7="Eilean Siar Local Authority",0,new_ci(20,B93,C93,D93,$C$1,G93,1,F93,E93*F93))))))) -> 0 | P93: =IF('III Tool Overview'!$H$7="Orkney Health Board",0,IF('III Tool Overview'!$H$7="Shetland Health Board",0,IF('III Tool Overview'!$H$7="Western Isles Health Board",0,IF('III Tool Overview'!$H$7="Orkney Islands Local Authority",0,IF('III Tool Overview'!$H$7="Shetland Islands Local Authority",0,IF('III Tool Overview'!$H$7="Eilean Siar Local Authority",0,new_ci(20,B93,C93,D93,$C$1,G93+H93,1,F93,E93*F93))))))) -> 0 | Q93: =IF('III Tool Overview'!$H$7="Orkney Health Board",0,IF('III Tool Overview'!$H$7="Shetland Health Board",0,IF('III Tool Overview'!$H$7="Western Isles Health Board",0,IF('III Tool Overview'!$H$7="Orkney Islands Local Authority",0,IF('III Tool Overview'!$H$7="Shetland Islands Local Authority",0,IF('III Tool Overview'!$H$7="Eilean Siar Local Authority",0,new_yll(2,B93,C93,D93,$C$1,G93,1,F93,E93*F93))))))) -> 0 | R93: =IF('III Tool Overview'!$H$7="Orkney Health Board",0,IF('III Tool Overview'!$H$7="Shetland Health Board",0,IF('III Tool Overview'!$H$7="Western Isles Health Board",0,IF('III Tool Overview'!$H$7="Orkney Islands Local Authority",0,IF('III Tool Overview'!$H$7="Shetland Islands Local Authority",0,IF('III Tool Overview'!$H$7="Eilean Siar Local Authority",0,new_yll(2,B93,C93,D93,$C$1,G93+H93,1,F93,E93*F93))))))) -> 0 | S93: 0 | T93: =IF('III Tool Overview'!$H$7="Orkney Health Board",0,IF('III Tool Overview'!$H$7="Shetland Health Board",0,IF('III Tool Overview'!$H$7="Western Isles Health Board",0,IF('III Tool Overview'!$H$7="Orkney Islands Local Authority",0,IF('III Tool Overview'!$H$7="Shetland Islands Local Authority",0,IF('III Tool Overview'!$H$7="Eilean Siar Local Authority",0,new_yll(5,B93,C93,D93,$C$1,G93,1,F93,E93*F93))))))) -> 0 | U93: =IF('III Tool Overview'!$H$7="Orkney Health Board",0,IF('III Tool Overview'!$H$7="Shetland Health Board",0,IF('III Tool Overview'!$H$7="Western Isles Health Board",0,IF('III Tool Overview'!$H$7="Orkney Islands Local Authority",0,IF('III Tool Overview'!$H$7="Shetland Islands Local Authority",0,IF('III Tool Overview'!$H$7="Eilean Siar Local Authority",0,new_yll(5,B93,C93,D93,$C$1,G93+H93,1,F93,E93*F93))))))) -> 0 | V93: 0 | W93: =IF('III Tool Overview'!$H$7="Orkney Health Board",0,IF('III Tool Overview'!$H$7="Shetland Health Board",0,IF('III Tool Overview'!$H$7="Western Isles Health Board",0,IF('III Tool Overview'!$H$7="Orkney Islands Local Authority",0,IF('III Tool Overview'!$H$7="Shetland Islands Local Authority",0,IF('III Tool Overview'!$H$7="Eilean Siar Local Authority",0,new_yll(10,B93,C93,D93,$C$1,G93,1,F93,E93*F93))))))) -> 0 | X93: =IF('III Tool Overview'!$H$7="Orkney Health Board",0,IF('III Tool Overview'!$H$7="Shetland Health Board",0,IF('III Tool Overview'!$H$7="Western Isles Health Board",0,IF('III Tool Overview'!$H$7="Orkney Islands Local Authority",0,IF('III Tool Overview'!$H$7="Shetland Islands Local Authority",0,IF('III Tool Overview'!$H$7="Eilean Siar Local Authority",0,new_yll(10,B93,C93,D93,$C$1,G93+H93,1,F93,E93*F93))))))) -> 0 | Y93: 0 | Z93: =IF('III Tool Overview'!$H$7="Orkney Health Board",0,IF('III Tool Overview'!$H$7="Shetland Health Board",0,IF('III Tool Overview'!$H$7="Western Isles Health Board",0,IF('III Tool Overview'!$H$7="Orkney Islands Local Authority",0,IF('III Tool Overview'!$H$7="Shetland Islands Local Authority",0,IF('III Tool Overview'!$H$7="Eilean Siar Local Authority",0,new_yll(20,B93,C93,D93,$C$1,G93,1,F93,E93*F93))))))) -> 0 | AA93: =IF('III Tool Overview'!$H$7="Orkney Health Board",0,IF('III Tool Overview'!$H$7="Shetland Health Board",0,IF('III Tool Overview'!$H$7="Western Isles Health Board",0,IF('III Tool Overview'!$H$7="Orkney Islands Local Authority",0,IF('III Tool Overview'!$H$7="Shetland Islands Local Authority",0,IF('III Tool Overview'!$H$7="Eilean Siar Local Authority",0,new_yll(20,B93,C93,D93,$C$1,G93+H93,1,F93,E93*F93))))))) -> 0 | AB93: 0 | AC93: =IF('III Tool Overview'!$H$7="Orkney Health Board",0,IF('III Tool Overview'!$H$7="Shetland Health Board",0,IF('III Tool Overview'!$H$7="Western Isles Health Board",0,IF('III Tool Overview'!$H$7="Orkney Islands Local Authority",0,IF('III Tool Overview'!$H$7="Shetland Islands Local Authority",0,IF('III Tool Overview'!$H$7="Eilean Siar Local Authority",0,hosp_count(2,B93,C93,D93,$C$1,G93,1,F93,E93*F93))))))) -> 0 | AD93: =IF('III Tool Overview'!$H$7="Orkney Health Board",0,IF('III Tool Overview'!$H$7="Shetland Health Board",0,IF('III Tool Overview'!$H$7="Western Isles Health Board",0,IF('III Tool Overview'!$H$7="Orkney Islands Local Authority",0,IF('III Tool Overview'!$H$7="Shetland Islands Local Authority",0,IF('III Tool Overview'!$H$7="Eilean Siar Local Authority",0,hosp_count(2,B93,C93,D93,$C$1,G93+H93,1,F93,E93*F93))))))) -> 0 | AE93: 0 | AF93: =IF('III Tool Overview'!$H$7="Orkney Health Board",0,IF('III Tool Overview'!$H$7="Shetland Health Board",0,IF('III Tool Overview'!$H$7="Western Isles Health Board",0,IF('III Tool Overview'!$H$7="Orkney Islands Local Authority",0,IF('III Tool Overview'!$H$7="Shetland Islands Local Authority",0,IF('III Tool Overview'!$H$7="Eilean Siar Local Authority",0,hosp_count(5,B93,C93,D93,$C$1,G93,1,F93,E93*F93))))))) -> 0 | AG93: =IF('III Tool Overview'!$H$7="Orkney Health Board",0,IF('III Tool Overview'!$H$7="Shetland Health Board",0,IF('III Tool Overview'!$H$7="Western Isles Health Board",0,IF('III Tool Overview'!$H$7="Orkney Islands Local Authority",0,IF('III Tool Overview'!$H$7="Shetland Islands Local Authority",0,IF('III Tool Overview'!$H$7="Eilean Siar Local Authority",0,hosp_count(5,B93,C93,D93,$C$1,G93+H93,1,F93,E93*F93))))))) -> 0 | AH93: 0 | AI93: =IF('III Tool Overview'!$H$7="Orkney Health Board",0,IF('III Tool Overview'!$H$7="Shetland Health Board",0,IF('III Tool Overview'!$H$7="Western Isles Health Board",0,IF('III Tool Overview'!$H$7="Orkney Islands Local Authority",0,IF('III Tool Overview'!$H$7="Shetland Islands Local Authority",0,IF('III Tool Overview'!$H$7="Eilean Siar Local Authority",0,hosp_count(10,B93,C93,D93,$C$1,G93,1,F93,E93*F93))))))) -> 0 | AJ93: =IF('III Tool Overview'!$H$7="Orkney Health Board",0,IF('III Tool Overview'!$H$7="Shetland Health Board",0,IF('III Tool Overview'!$H$7="Western Isles Health Board",0,IF('III Tool Overview'!$H$7="Orkney Islands Local Authority",0,IF('III Tool Overview'!$H$7="Shetland Islands Local Authority",0,IF('III Tool Overview'!$H$7="Eilean Siar Local Authority",0,hosp_count(10,B93,C93,D93,$C$1,G93+H93,1,F93,E93*F93))))))) -> 0 | AK93: 0 | AL93: =IF('III Tool Overview'!$H$7="Orkney Health Board",0,IF('III Tool Overview'!$H$7="Shetland Health Board",0,IF('III Tool Overview'!$H$7="Western Isles Health Board",0,IF('III Tool Overview'!$H$7="Orkney Islands Local Authority",0,IF('III Tool Overview'!$H$7="Shetland Islands Local Authority",0,IF('III Tool Overview'!$H$7="Eilean Siar Local Authority",0,hosp_count(20,B93,C93,D93,$C$1,G93,1,F93,E93*F93))))))) -> 0 | AM93: =IF('III Tool Overview'!$H$7="Orkney Health Board",0,IF('III Tool Overview'!$H$7="Shetland Health Board",0,IF('III Tool Overview'!$H$7="Western Isles Health Board",0,IF('III Tool Overview'!$H$7="Orkney Islands Local Authority",0,IF('III Tool Overview'!$H$7="Shetland Islands Local Authority",0,IF('III Tool Overview'!$H$7="Eilean Siar Local Authority",0,hosp_count(20,B93,C93,D93,$C$1,G93+H93,1,F93,E93*F93))))))) -> 0 | AN93: 0 | AP93: 0.5 | AQ93: 5
A94: Female 30-34 | B94: 32.5 | C94: female | D94: 1 | E94: =HLOOKUP('III Tool Overview'!$H$7,Prevalence!$B$2:$CH$268,Prevalence!CI89,FALSE) -> 0.2988477307 | F94: =HLOOKUP('III Tool Overview'!$H$7,LookUpData_Pop!$B$1:$AV$269,LookUpData_Pop!BB94,FALSE)/5 -> 0 | G94: ='III Tool Overview'!$H$10/110 -> 0 | H94: =IF('III Tool Overview'!$H$11="Even distribution",Targeting!C92,IF('III Tool Overview'!$H$11="Targeting to Q1",Targeting!D92,IF('III Tool Overview'!$H$11="Targeting to Q1 & Q2",Targeting!E92,IF('III Tool Overview'!$H$11="Proportionate to need",Targeting!F92)))) -> 0 | I94: =IF('III Tool Overview'!$H$7="Orkney Health Board",0,IF('III Tool Overview'!$H$7="Shetland Health Board",0,IF('III Tool Overview'!$H$7="Western Isles Health Board",0,IF('III Tool Overview'!$H$7="Orkney Islands Local Authority",0,IF('III Tool Overview'!$H$7="Shetland Islands Local Authority",0,IF('III Tool Overview'!$H$7="Eilean Siar Local Authority",0,new_ci(2,B94,C94,D94,$C$1,G94,1,F94,E94*F94))))))) -> 0 | J94: =IF('III Tool Overview'!$H$7="Orkney Health Board",0,IF('III Tool Overview'!$H$7="Shetland Health Board",0,IF('III Tool Overview'!$H$7="Western Isles Health Board",0,IF('III Tool Overview'!$H$7="Orkney Islands Local Authority",0,IF('III Tool Overview'!$H$7="Shetland Islands Local Authority",0,IF('III Tool Overview'!$H$7="Eilean Siar Local Authority",0,new_ci(2,B94,C94,D94,$C$1,G94+H94,1,F94,E94*F94))))))) -> 0 | K94: =IF('III Tool Overview'!$H$7="Orkney Health Board",0,IF('III Tool Overview'!$H$7="Shetland Health Board",0,IF('III Tool Overview'!$H$7="Western Isles Health Board",0,IF('III Tool Overview'!$H$7="Orkney Islands Local Authority",0,IF('III Tool Overview'!$H$7="Shetland Islands Local Authority",0,IF('III Tool Overview'!$H$7="Eilean Siar Local Authority",0,new_ci(5,B94,C94,D94,$C$1,G94,1,F94,E94*F94))))))) -> 0 | L94: =IF('III Tool Overview'!$H$7="Orkney Health Board",0,IF('III Tool Overview'!$H$7="Shetland Health Board",0,IF('III Tool Overview'!$H$7="Western Isles Health Board",0,IF('III Tool Overview'!$H$7="Orkney Islands Local Authority",0,IF('III Tool Overview'!$H$7="Shetland Islands Local Authority",0,IF('III Tool Overview'!$H$7="Eilean Siar Local Authority",0,new_ci(5,B94,C94,D94,$C$1,G94+H94,1,F94,E94*F94))))))) -> 0 | M94: =IF('III Tool Overview'!$H$7="Orkney Health Board",0,IF('III Tool Overview'!$H$7="Shetland Health Board",0,IF('III Tool Overview'!$H$7="Western Isles Health Board",0,IF('III Tool Overview'!$H$7="Orkney Islands Local Authority",0,IF('III Tool Overview'!$H$7="Shetland Islands Local Authority",0,IF('III Tool Overview'!$H$7="Eilean Siar Local Authority",0,new_ci(10,B94,C94,D94,$C$1,G94,1,F94,E94*F94))))))) -> 0 | N94: =IF('III Tool Overview'!$H$7="Orkney Health Board",0,IF('III Tool Overview'!$H$7="Shetland Health Board",0,IF('III Tool Overview'!$H$7="Western Isles Health Board",0,IF('III Tool Overview'!$H$7="Orkney Islands Local Authority",0,IF('III Tool Overview'!$H$7="Shetland Islands Local Authority",0,IF('III Tool Overview'!$H$7="Eilean Siar Local Authority",0,new_ci(10,B94,C94,D94,$C$1,G94+H94,1,F94,E94*F94))))))) -> 0 | O94: =IF('III Tool Overview'!$H$7="Orkney Health Board",0,IF('III Tool Overview'!$H$7="Shetland Health Board",0,IF('III Tool Overview'!$H$7="Western Isles Health Board",0,IF('III Tool Overview'!$H$7="Orkney Islands Local Authority",0,IF('III Tool Overview'!$H$7="Shetland Islands Local Authority",0,IF('III Tool Overview'!$H$7="Eilean Siar Local Authority",0,new_ci(20,B94,C94,D94,$C$1,G94,1,F94,E94*F94))))))) -> 0 | P94: =IF('III Tool Overview'!$H$7="Orkney Health Board",0,IF('III Tool Overview'!$H$7="Shetland Health Board",0,IF('III Tool Overview'!$H$7="Western Isles Health Board",0,IF('III Tool Overview'!$H$7="Orkney Islands Local Authority",0,IF('III Tool Overview'!$H$7="Shetland Islands Local Authority",0,IF('III Tool Overview'!$H$7="Eilean Siar Local Authority",0,new_ci(20,B94,C94,D94,$C$1,G94+H94,1,F94,E94*F94))))))) -> 0 | Q94: =IF('III Tool Overview'!$H$7="Orkney Health Board",0,IF('III Tool Overview'!$H$7="Shetland Health Board",0,IF('III Tool Overview'!$H$7="Western Isles Health Board",0,IF('III Tool Overview'!$H$7="Orkney Islands Local Authority",0,IF('III Tool Overview'!$H$7="Shetland Islands Local Authority",0,IF('III Tool Overview'!$H$7="Eilean Siar Local Authority",0,new_yll(2,B94,C94,D94,$C$1,G94,1,F94,E94*F94))))))) -> 0 | R94: =IF('III Tool Overview'!$H$7="Orkney Health Board",0,IF('III Tool Overview'!$H$7="Shetland Health Board",0,IF('III Tool Overview'!$H$7="Western Isles Health Board",0,IF('III Tool Overview'!$H$7="Orkney Islands Local Authority",0,IF('III Tool Overview'!$H$7="Shetland Islands Local Authority",0,IF('III Tool Overview'!$H$7="Eilean Siar Local Authority",0,new_yll(2,B94,C94,D94,$C$1,G94+H94,1,F94,E94*F94))))))) -> 0 | S94: 0 | T94: =IF('III Tool Overview'!$H$7="Orkney Health Board",0,IF('III Tool Overview'!$H$7="Shetland Health Board",0,IF('III Tool Overview'!$H$7="Western Isles Health Board",0,IF('III Tool Overview'!$H$7="Orkney Islands Local Authority",0,IF('III Tool Overview'!$H$7="Shetland Islands Local Authority",0,IF('III Tool Overview'!$H$7="Eilean Siar Local Authority",0,new_yll(5,B94,C94,D94,$C$1,G94,1,F94,E94*F94))))))) -> 0 | U94: =IF('III Tool Overview'!$H$7="Orkney Health Board",0,IF('III Tool Overview'!$H$7="Shetland Health Board",0,IF('III Tool Overview'!$H$7="Western Isles Health Board",0,IF('III Tool Overview'!$H$7="Orkney Islands Local Authority",0,IF('III Tool Overview'!$H$7="Shetland Islands Local Authority",0,IF('III Tool Overview'!$H$7="Eilean Siar Local Authority",0,new_yll(5,B94,C94,D94,$C$1,G94+H94,1,F94,E94*F94))))))) -> 0 | V94: 0 | W94: =IF('III Tool Overview'!$H$7="Orkney Health Board",0,IF('III Tool Overview'!$H$7="Shetland Health Board",0,IF('III Tool Overview'!$H$7="Western Isles Health Board",0,IF('III Tool Overview'!$H$7="Orkney Islands Local Authority",0,IF('III Tool Overview'!$H$7="Shetland Islands Local Authority",0,IF('III Tool Overview'!$H$7="Eilean Siar Local Authority",0,new_yll(10,B94,C94,D94,$C$1,G94,1,F94,E94*F94))))))) -> 0 | X94: =IF('III Tool Overview'!$H$7="Orkney Health Board",0,IF('III Tool Overview'!$H$7="Shetland Health Board",0,IF('III Tool Overview'!$H$7="Western Isles Health Board",0,IF('III Tool Overview'!$H$7="Orkney Islands Local Authority",0,IF('III Tool Overview'!$H$7="Shetland Islands Local Authority",0,IF('III Tool Overview'!$H$7="Eilean Siar Local Authority",0,new_yll(10,B94,C94,D94,$C$1,G94+H94,1,F94,E94*F94))))))) -> 0 | Y94: 0 | Z94: =IF('III Tool Overview'!$H$7="Orkney Health Board",0,IF('III Tool Overview'!$H$7="Shetland Health Board",0,IF('III Tool Overview'!$H$7="Western Isles Health Board",0,IF('III Tool Overview'!$H$7="Orkney Islands Local Authority",0,IF('III Tool Overview'!$H$7="Shetland Islands Local Authority",0,IF('III Tool Overview'!$H$7="Eilean Siar Local Authority",0,new_yll(20,B94,C94,D94,$C$1,G94,1,F94,E94*F94))))))) -> 0 | AA94: =IF('III Tool Overview'!$H$7="Orkney Health Board",0,IF('III Tool Overview'!$H$7="Shetland Health Board",0,IF('III Tool Overview'!$H$7="Western Isles Health Board",0,IF('III Tool Overview'!$H$7="Orkney Islands Local Authority",0,IF('III Tool Overview'!$H$7="Shetland Islands Local Authority",0,IF('III Tool Overview'!$H$7="Eilean Siar Local Authority",0,new_yll(20,B94,C94,D94,$C$1,G94+H94,1,F94,E94*F94))))))) -> 0 | AB94: 0 | AC94: =IF('III Tool Overview'!$H$7="Orkney Health Board",0,IF('III Tool Overview'!$H$7="Shetland Health Board",0,IF('III Tool Overview'!$H$7="Western Isles Health Board",0,IF('III Tool Overview'!$H$7="Orkney Islands Local Authority",0,IF('III Tool Overview'!$H$7="Shetland Islands Local Authority",0,IF('III Tool Overview'!$H$7="Eilean Siar Local Authority",0,hosp_count(2,B94,C94,D94,$C$1,G94,1,F94,E94*F94))))))) -> 0 | AD94: =IF('III Tool Overview'!$H$7="Orkney Health Board",0,IF('III Tool Overview'!$H$7="Shetland Health Board",0,IF('III Tool Overview'!$H$7="Western Isles Health Board",0,IF('III Tool Overview'!$H$7="Orkney Islands Local Authority",0,IF('III Tool Overview'!$H$7="Shetland Islands Local Authority",0,IF('III Tool Overview'!$H$7="Eilean Siar Local Authority",0,hosp_count(2,B94,C94,D94,$C$1,G94+H94,1,F94,E94*F94))))))) -> 0 | AE94: 0 | AF94: =IF('III Tool Overview'!$H$7="Orkney Health Board",0,IF('III Tool Overview'!$H$7="Shetland Health Board",0,IF('III Tool Overview'!$H$7="Western Isles Health Board",0,IF('III Tool Overview'!$H$7="Orkney Islands Local Authority",0,IF('III Tool Overview'!$H$7="Shetland Islands Local Authority",0,IF('III Tool Overview'!$H$7="Eilean Siar Local Authority",0,hosp_count(5,B94,C94,D94,$C$1,G94,1,F94,E94*F94))))))) -> 0 | AG94: =IF('III Tool Overview'!$H$7="Orkney Health Board",0,IF('III Tool Overview'!$H$7="Shetland Health Board",0,IF('III Tool Overview'!$H$7="Western Isles Health Board",0,IF('III Tool Overview'!$H$7="Orkney Islands Local Authority",0,IF('III Tool Overview'!$H$7="Shetland Islands Local Authority",0,IF('III Tool Overview'!$H$7="Eilean Siar Local Authority",0,hosp_count(5,B94,C94,D94,$C$1,G94+H94,1,F94,E94*F94))))))) -> 0 | AH94: 0 | AI94: =IF('III Tool Overview'!$H$7="Orkney Health Board",0,IF('III Tool Overview'!$H$7="Shetland Health Board",0,IF('III Tool Overview'!$H$7="Western Isles Health Board",0,IF('III Tool Overview'!$H$7="Orkney Islands Local Authority",0,IF('III Tool Overview'!$H$7="Shetland Islands Local Authority",0,IF('III Tool Overview'!$H$7="Eilean Siar Local Authority",0,hosp_count(10,B94,C94,D94,$C$1,G94,1,F94,E94*F94))))))) -> 0 | AJ94: =IF('III Tool Overview'!$H$7="Orkney Health Board",0,IF('III Tool Overview'!$H$7="Shetland Health Board",0,IF('III Tool Overview'!$H$7="Western Isles Health Board",0,IF('III Tool Overview'!$H$7="Orkney Islands Local Authority",0,IF('III Tool Overview'!$H$7="Shetland Islands Local Authority",0,IF('III Tool Overview'!$H$7="Eilean Siar Local Authority",0,hosp_count(10,B94,C94,D94,$C$1,G94+H94,1,F94,E94*F94))))))) -> 0 | AK94: 0 | AL94: =IF('III Tool Overview'!$H$7="Orkney Health Board",0,IF('III Tool Overview'!$H$7="Shetland Health Board",0,IF('III Tool Overview'!$H$7="Western Isles Health Board",0,IF('III Tool Overview'!$H$7="Orkney Islands Local Authority",0,IF('III Tool Overview'!$H$7="Shetland Islands Local Authority",0,IF('III Tool Overview'!$H$7="Eilean Siar Local Authority",0,hosp_count(20,B94,C94,D94,$C$1,G94,1,F94,E94*F94))))))) -> 0 | AM94: =IF('III Tool Overview'!$H$7="Orkney Health Board",0,IF('III Tool Overview'!$H$7="Shetland Health Board",0,IF('III Tool Overview'!$H$7="Western Isles Health Board",0,IF('III Tool Overview'!$H$7="Orkney Islands Local Authority",0,IF('III Tool Overview'!$H$7="Shetland Islands Local Authority",0,IF('III Tool Overview'!$H$7="Eilean Siar Local Authority",0,hosp_count(20,B94,C94,D94,$C$1,G94+H94,1,F94,E94*F94))))))) -> 0 | AN94: 0 | AP94: 0.5 | AQ94: 5
